Workbook

Sheet 홈

Sheet 중요함수모음

Sheet 1.기본함수
B1: 기본함수 : | D1: SUM, AVERAGE, MAX, MIN, COUNT, COUNTA, COUNTBLANK, RANK
B3: 이미남컴퓨터학원 평가표 | K3: 사원 봉사 활동 참여현황
B5: [표1] | G5: 작성일: | K5: [표3]
B6: 신상 | C6: 과목 | G6: 평가 | K6: 이름 | L6: 1차 | M6: 2차 | N6: 3차 | O6: 4차 | P6: 5차 | Q6: 참여횟수 | R6: 불참횟수
B7: 학번 | C7: 성명 | D7: 워드 | E7: 엑셀 | F7: 파워포인트 | G7: 총점 | H7: 평균 | I7: 순위 | K7: 유동근 | L7: O | M7: O | N7: O | O7: O | P7: O
B8: 2001 | C8: 김종국 | D8: 69 | E8: 32 | F8: 40 | K8: 전경숙 | M8: O | N8: O | O8: O | P8: O
B9: 2002 | C9: 신현준 | D9: 70 | E9: 70 | F9: 60 | K9: 백수정 | L9: O | P9: O
B10: 2003 | C10: 이재근 | D10: 60 | E10: 76 | F10: 65 | K10: 안현철 | L10: O | M10: O | N10: O | O10: O | P10: O
B11: 2004 | C11: 김민선 | D11: 50 | E11: 80 | F11: 60 | K11: 고성남 | L11: O | M11: O | O11: O
B12: 2005 | C12: 이종원 | D12: 80 | E12: 60 | F12: 70 | K12: 김종구 | L12: O | M12: O | O12: O | P12: O
B13: 2006 | C13: 한고은 | D13: 90 | E13: 100 | F13: 93 | K13: 박은정 | L13: O | M13: O | N13: O | P13: O
B14: 2007 | C14: 김하늘 | D14: 50 | E14: 83 | F14: 75 | K14: 이태호 | M14: O | N14: O
B15: 2008 | C15: 김소원 | D15: 60 | E15: 64 | F15: 64 | K15: 지준혁 | L15: O | N15: O | O15: O | P15: O
B16: 2009 | C16: 장나라 | D16: 90 | E16: 80 | F16: 79 | K16: 김현서 | L16: O | M16: O | N16: O | O16: O | P16: O
B17: 2010 | C17: 김민종 | D17: 80 | E17: 40 | F17: 69 | K17: 정연우 | L17: O | M17: O | N17: O | O17: O | P17: O
C18: 최대점수 | K18: 한승숙 | L18: O | M18: O | O18: O | P18: O
C19: 최소점수 | K19: 오정연 | M19: O | O19: O | P19: O
C20: 인원수
B22: 가계부처리
B23: [표2]
B24: 구분 | C24: 문화생활비 | D24: 식품비 | E24: 의복비 | F24: 교육비 | G24: 총비용 | H24: 순위
B25: 1일 | C25: 10000 | D25: 10000 | E25: 15000 | F25: 7000
B26: 2일 | C26: 20000 | D26: 15000 | E26: 30000 | F26: 8000
B27: 3일 | C27: 30000 | D27: 30000 | E27: 10000 | F27: 5000
B28: 4일 | C28: 13000 | D28: 24000 | E28: 10000 | F28: 150000
B29: 5일 | C29: 100000 | D29: 5000 | E29: 100000 | F29: 10000
B30: 6일 | C30: 15000 | D30: 30000 | E30: 10000 | F30: 7000
B31: 7일 | C31: 14000 | D31: 17000 | E31: 25000 | F31: 15000
B32: 총액
B33: 평균
B34: 최고비용
B35: 최소비용
B36: 품목개수

Sheet 1.기본함수-정답
B1: 기본함수 : | D1: SUM, AVERAGE, MAX, MIN, COUNT, COUNTA, COUNTBLANK, RANK
B3: 이미남컴퓨터학원 평가표 | K3: 사원 봉사 활동 참여현황
B5: [표1] | G5: 작성일: | K5: [표3]
B6: 신상 | C6: 과목 | G6: 평가 | K6: 이름 | L6: 1차 | M6: 2차 | N6: 3차 | O6: 4차 | P6: 5차 | Q6: 참여횟수 | R6: 불참횟수
B7: 학번 | C7: 성명 | D7: 워드 | E7: 엑셀 | F7: 파워포인트 | G7: 총점 | H7: 평균 | I7: 순위 | K7: 유동근 | L7: O | M7: O | N7: O | O7: O | P7: O | Q7: =COUNTA(L7:P7) -> 5 | R7: =COUNTBLANK(L7:P7) -> 0
B8: 2001 | C8: 김종국 | D8: 69 | E8: 32 | F8: 40 | G8: =SUM(D8:F8) -> 141 | H8: =AVERAGE(D8:F8) -> 47 | I8: =RANK(H8,$H$8:$H$17,0) -> 10 | K8: 전경숙 | M8: O | N8: O | O8: O | P8: O | Q8: =COUNTA(L8:P8) -> 4 | R8: =COUNTBLANK(L8:P8) -> 1
B9: 2002 | C9: 신현준 | D9: 70 | E9: 70 | F9: 60 | G9: =SUM(D9:F9) -> 200 | H9: =AVERAGE(D9:F9) -> 66.66666667 | I9: =RANK(H9,$H$8:$H$17,0) -> 6 | K9: 백수정 | L9: O | P9: O | Q9: 2 | R9: 3
B10: 2003 | C10: 이재근 | D10: 60 | E10: 76 | F10: 65 | G10: 201 | H10: 67 | I10: 5 | K10: 안현철 | L10: O | M10: O | N10: O | O10: O | P10: O | Q10: 5 | R10: 0
B11: 2004 | C11: 김민선 | D11: 50 | E11: 80 | F11: 60 | G11: 190 | H11: 63.33333333 | I11: 7 | K11: 고성남 | L11: O | M11: O | O11: O | Q11: 3 | R11: 2
B12: 2005 | C12: 이종원 | D12: 80 | E12: 60 | F12: 70 | G12: 210 | H12: 70 | I12: 3 | K12: 김종구 | L12: O | M12: O | O12: O | P12: O | Q12: 4 | R12: 1
B13: 2006 | C13: 한고은 | D13: 90 | E13: 100 | F13: 93 | G13: 283 | H13: 94.33333333 | I13: 1 | K13: 박은정 | L13: O | M13: O | N13: O | P13: O | Q13: 4 | R13: 1
B14: 2007 | C14: 김하늘 | D14: 50 | E14: 83 | F14: 75 | G14: 208 | H14: 69.33333333 | I14: 4 | K14: 이태호 | M14: O | N14: O | Q14: 2 | R14: 3
B15: 2008 | C15: 김소원 | D15: 60 | E15: 64 | F15: 64 | G15: 188 | H15: 62.66666667 | I15: 9 | K15: 지준혁 | L15: O | N15: O | O15: O | P15: O | Q15: 4 | R15: 1
B16: 2009 | C16: 장나라 | D16: 90 | E16: 80 | F16: 79 | G16: 249 | H16: 83 | I16: 2 | K16: 김현서 | L16: O | M16: O | N16: O | O16: O | P16: O | Q16: 5 | R16: 0
B17: 2010 | C17: 김민종 | D17: 80 | E17: 40 | F17: 69 | G17: 189 | H17: 63 | I17: 8 | K17: 정연우 | L17: O | M17: O | N17: O | O17: O | P17: O | Q17: 5 | R17: 0
C18: 최대점수 | D18: =MAX(D8:D17) -> 90 | E18: =MAX(E8:E17) -> 100 | F18: 93 | G18: 283 | H18: 94.33333333 | K18: 한승숙 | L18: O | M18: O | O18: O | P18: O | Q18: 4 | R18: 1
C19: 최소점수 | D19: =MIN(D8:D17) -> 50 | E19: =MIN(E8:E17) -> 32 | F19: 40 | G19: 141 | H19: 47 | K19: 오정연 | M19: O | O19: O | P19: O | Q19: 3 | R19: 2
C20: 인원수 | D20: =COUNT(D8:D17) -> 10 | E20: =COUNT(E8:E17) -> 10 | F20: 10 | G20: 10 | H20: 10
B22: 가계부처리
B23: [표2]
B24: 구분 | C24: 문화생활비 | D24: 식품비 | E24: 의복비 | F24: 교육비 | G24: 총비용 | H24: 순위
B25: 1일 | C25: 10000 | D25: 10000 | E25: 15000 | F25: 7000 | G25: =SUM(C25:F25) -> 42000 | H25: =RANK(G25,$G$25:$G$31,0) -> 7
B26: 2일 | C26: 20000 | D26: 15000 | E26: 30000 | F26: 8000 | G26: =SUM(C26:F26) -> 73000 | H26: =RANK(G26,$G$25:$G$31,0) -> 4
B27: 3일 | C27: 30000 | D27: 30000 | E27: 10000 | F27: 5000 | G27: 75000 | H27: 3
B28: 4일 | C28: 13000 | D28: 24000 | E28: 10000 | F28: 150000 | G28: 197000 | H28: 2
B29: 5일 | C29: 100000 | D29: 5000 | E29: 100000 | F29: 10000 | G29: 215000 | H29: 1
B30: 6일 | C30: 15000 | D30: 30000 | E30: 10000 | F30: 7000 | G30: 62000 | H30: 6
B31: 7일 | C31: 14000 | D31: 17000 | E31: 25000 | F31: 15000 | G31: 71000 | H31: 5
B32: 총액 | C32: =SUM(C25:C31) -> 202000 | D32: =SUM(D25:D31) -> 131000 | E32: 200000 | F32: 202000
B33: 평균 | C33: =AVERAGE(C27) -> 30000 | D33: =AVERAGE(D27) -> 30000 | E33: 10000 | F33: 5000
B34: 최고비용 | C34: =MAX(C25:C31) -> 100000 | D34: =MAX(D25:D31) -> 30000 | E34: 100000 | F34: 150000
B35: 최소비용 | C35: =MIN(C25:C31) -> 10000 | D35: =MIN(D25:D31) -> 5000 | E35: 10000 | F35: 5000
B36: 품목개수 | C36: =COUNT(C25:C31) -> 7 | D36: =COUNT(D25:D31) -> 7 | E36: 7 | F36: 7

Sheet 2.논리함수
B2: 논리함수 | D2: IF, COUNTIF, COUNTIFS, SUMIF, SUMIFS, AVERAGEIF, AVERAGEIFS, AND, OR
B4: 신입사원 직무수행 평가
B5: [표1]
B6: 사번 | C6: 성명 | D6: 영어 | E6: 컴퓨터 | F6: 마케팅 | G6: 총점 | H6: 평균 | I6: 합격여부 | J6: 평균평가
B7: 20020101 | C7: 이미희 | D7: 54 | E7: 92 | F7: 100 | N7: 인원수
B8: 20020102 | C8: 최고은 | D8: 67 | E8: 70 | F8: 83 | L8: 합격
B9: 20020103 | C9: 안수현 | D9: 78 | E9: 76 | F9: 64 | L9: 불합격
B10: 20020104 | C10: 이민우 | D10: 80 | E10: 80 | F10: 80
B11: 20020105 | C11: 한진희 | D11: 95 | E11: 83 | F11: 99 | N11: 총점합계
B12: 20020106 | C12: 김상진 | D12: 87 | E12: 64 | F12: 67 | L12: 평균이상
B13: 20020107 | C13: 최승희 | D13: 96 | E13: 80 | F13: 96 | L13: 평균이하
B14: 20020108 | C14: 김상옥 | D14: 93 | E14: 60 | F14: 88
B15: 20020109 | C15: 최현주 | D15: 88 | E15: 76 | F15: 79
B16: 20020110 | C16: 전지연 | D16: 79 | E16: 60 | F16: 75
G17: 전체평균 | L17: 평균점수 | O17: 인원수
L18: 0 | M18: ~ | N18: 20
B19: [표2] | L19: 20 | M19: ~ | N19: 40
B20: 수험번호 | C20: 성명 | D20: 엑셀 | E20: 인터넷 | F20: 평균 | G20: 합격여부1 | H20: 합격여부2 | I20: 평가 | L20: 40 | M20: ~ | N20: 60
B21: SM20001 | C21: 이재근 | D21: 95 | E21: 88 | L21: 60 | M21: ~ | N21: 80
B22: SM20002 | C22: 김민선 | D22: 62 | E22: 75 | L22: 80 | M22: ~ | N22: 100
B23: SM20003 | C23: 이종원 | D23: 86 | E23: 100
B24: SM20004 | C24: 한고은 | D24: 60 | E24: 80
B25: SM20007 | C25: 장나라 | D25: 100 | E25: 70
B26: SM20008 | C26: 김민종 | D26: 77 | E26: 80
B27: SM20009 | C27: 이준희 | D27: 80 | E27: 60
B29: 제품판매 현황
B30: [표3]
B31: 제품코드 | C31: 분류 | D31: 단가 | E31: 판매량 | F31: 판매금액 | G31: 담당자 | I31: [ 분류/담당자 기준 판매건수 ]
B32: 238VM357 | C32: 아동의류 | D32: 75300 | E32: 5 | F32: =D32*E32 -> 376500 | G32: 이하원 | I32: 분류 | J32: 조승재 | K32: 이하원 | L32: 박재민
B33: 537RI257 | C33: 여성의류 | D33: 72400 | E33: 13 | F33: =D33*E33 -> 941200 | G33: 조승재 | I33: 여성의류
B34: 575HE011 | C34: 여성의류 | D34: 31500 | E34: 12 | F34: 378000 | G34: 이하원 | I34: 남성의류
B35: 254DN251 | C35: 기타 | D35: 11400 | E35: 11 | F35: 125400 | G35: 박재민 | I35: 아동의류
B36: 188KY649 | C36: 아동의류 | D36: 24200 | E36: 30 | F36: 726000 | G36: 조승재 | I36: 언더웨어
B37: 143VI197 | C37: 남성의류 | D37: 43400 | E37: 30 | F37: 1302000 | G37: 조승재 | I37: 기타
B38: 640XM642 | C38: 남성의류 | D38: 51900 | E38: 7 | F38: 363300 | G38: 박재민
B39: 661SY624 | C39: 기타 | D39: 59200 | E39: 2 | F39: 118400 | G39: 박재민
B40: 877PF846 | C40: 아동의류 | D40: 65500 | E40: 12 | F40: 786000 | G40: 이하원 | I40: [ 분류/담당자 기준 판매량 합계 ]
B41: 937CR318 | C41: 아동의류 | D41: 75100 | E41: 28 | F41: 2102800 | G41: 조승재 | I41: 분류 | J41: 조승재 | K41: 이하원 | L41: 박재민
B42: 546TK605 | C42: 언더웨어 | D42: 26000 | E42: 8 | F42: 208000 | G42: 조승재 | I42: 여성의류
B43: 897RP526 | C43: 여성의류 | D43: 9200 | E43: 13 | F43: 119600 | G43: 조승재 | I43: 남성의류
B44: 823CC448 | C44: 언더웨어 | D44: 45400 | E44: 23 | F44: 1044200 | G44: 이하원 | I44: 아동의류
B45: 294WR619 | C45: 여성의류 | D45: 44500 | E45: 20 | F45: 890000 | G45: 이하원 | I45: 언더웨어
B46: 582YB244 | C46: 언더웨어 | D46: 27500 | E46: 15 | F46: 412500 | G46: 박재민 | I46: 기타
B48: 영업팀 매출 현황
B49: [표4]
B50: 이름 | C50: 소속 | D50: 상반기 | E50: 하반기
B51: 유동근 | C51: 영업3팀 | D51: 5626 | E51: 8583 | G51: [ 영업팀별 평균 매출량 ]
B52: 전경숙 | C52: 영업2팀 | D52: 3603 | E52: 7406 | G52: 소속 | H52: 상반기 | I52: 하반기
B53: 백수정 | C53: 영업2팀 | D53: 6305 | E53: 5700 | G53: 영업1팀
B54: 안현철 | C54: 영업1팀 | D54: 4905 | E54: 8619 | G54: 영업2팀
B55: 고성남 | C55: 영업3팀 | D55: 4272 | E55: 4082 | G55: 영업3팀
B56: 민병철 | C56: 영업2팀 | D56: 3758 | E56: 4948
B57: 조광연 | C57: 영업1팀 | D57: 5790 | E57: 2765
B58: 김연우 | C58: 영업3팀 | D58: 7122 | E58: 5935
B59: 김범수 | C59: 영업2팀 | D59: 7802 | E59: 4012
B60: 임재범 | C60: 영업1팀 | D60: 2668 | E60: 3682
B61: 박정현 | C61: 영업3팀 | D61: 7763 | E61: 3133
B62: 오동석 | C62: 영업1팀 | D62: 5123 | E62: 5841
B63: 이하원 | C63: 영업1팀 | D63: 2503 | E63: 3864
B64: 박오연 | C64: 영업2팀 | D64: 6126 | E64: 8089

Sheet 2.논리함수-정답
B2: 논리함수 | D2: IF, COUNTIF, COUNTIFS, SUMIF, SUMIFS, AVERAGEIF, AVERAGEIFS, AND, OR
B4: 신입사원 직무수행 평가
B5: [표1]
B6: 사번 | C6: 성명 | D6: 영어 | E6: 컴퓨터 | F6: 마케팅 | G6: 총점 | H6: 평균 | I6: 합격여부 | J6: 평균평가
B7: 20020101 | C7: 이미희 | D7: 54 | E7: 92 | F7: 100 | G7: =SUM(D7:F7) -> 246 | H7: =AVERAGE(D7:F7) -> 82 | I7: =IF(H7>=80,"합격","불합격") -> 합격 | J7: =IF(H7>=$H$17,"평균이상","평균이하") -> 평균이상 | N7: 인원수
B8: 20020102 | C8: 최고은 | D8: 67 | E8: 70 | F8: 83 | G8: =SUM(D8:F8) -> 220 | H8: =AVERAGE(D8:F8) -> 73.33333333 | I8: =IF(H8>=80,"합격","불합격") -> 불합격 | J8: =IF(H8>=$H$17,"평균이상","평균이하") -> 평균이하 | L8: 합격 | N8: =COUNTIF($I$7:$I$16,L8) -> 6
B9: 20020103 | C9: 안수현 | D9: 78 | E9: 76 | F9: 64 | G9: 218 | H9: 72.66666667 | I9: 불합격 | J9: 평균이하 | L9: 불합격 | N9: =COUNTIF($I$7:$I$16,L9) -> 4
B10: 20020104 | C10: 이민우 | D10: 80 | E10: 80 | F10: 80 | G10: 240 | H10: 80 | I10: 합격 | J10: 평균이상
B11: 20020105 | C11: 한진희 | D11: 95 | E11: 83 | F11: 99 | G11: 277 | H11: 92.33333333 | I11: 합격 | J11: 평균이상 | N11: 총점합계
B12: 20020106 | C12: 김상진 | D12: 87 | E12: 64 | F12: 67 | G12: 218 | H12: 72.66666667 | I12: 불합격 | J12: 평균이하 | L12: 평균이상 | N12: =SUMIF($J$7:$J$16,L12,$G$7:$G$16) -> 1519
B13: 20020107 | C13: 최승희 | D13: 96 | E13: 80 | F13: 96 | G13: 272 | H13: 90.66666667 | I13: 합격 | J13: 평균이상 | L13: 평균이하 | N13: =SUMIF($J$7:$J$16,L13,$G$7:$G$16) -> 870
B14: 20020108 | C14: 김상옥 | D14: 93 | E14: 60 | F14: 88 | G14: 241 | H14: 80.33333333 | I14: 합격 | J14: 평균이상
B15: 20020109 | C15: 최현주 | D15: 88 | E15: 76 | F15: 79 | G15: 243 | H15: 81 | I15: 합격 | J15: 평균이상
B16: 20020110 | C16: 전지연 | D16: 79 | E16: 60 | F16: 75 | G16: 214 | H16: 71.33333333 | I16: 불합격 | J16: 평균이하
G17: 전체평균 | H17: =AVERAGE(H7:H16) -> 79.63333333 | L17: 평균점수 | O17: 인원수
L18: 0 | M18: ~ | N18: 20
B19: [표2] | L19: 20 | M19: ~ | N19: 40
B20: 수험번호 | C20: 성명 | D20: 엑셀 | E20: 인터넷 | F20: 평균 | G20: 합격여부1 | H20: 합격여부2 | I20: 평가 | L20: 40 | M20: ~ | N20: 60
B21: SM20001 | C21: 이재근 | D21: 95 | E21: 88 | F21: =AVERAGE(D21:E21) -> 91.5 | G21: =IF(AND(D21>=80,E21>=80),"합격","") -> 합격 | H21: =IF(OR(AND(D21>=70,E21>=70),F21>=80),"합격","") -> 합격 | I21: =IF(F21>=90,"수",IF(F21>=80,"우",IF(F21>=70,"미",IF(F21>=60,"양","가")))) -> 수 | L21: 60 | M21: ~ | N21: 80
B22: SM20002 | C22: 김민선 | D22: 62 | E22: 75 | F22: =AVERAGE(D22:E22) -> 68.5 | G22: =IF(AND(D22>=80,E22>=80),"합격","") ->  | H22: =IF(OR(AND(D22>=70,E22>=70),F22>=80),"합격","") ->  | I22: =IF(F22>=90,"수",IF(F22>=80,"우",IF(F22>=70,"미",IF(F22>=60,"양","가")))) -> 양 | L22: 80 | M22: ~ | N22: 100
B23: SM20003 | C23: 이종원 | D23: 86 | E23: 100 | F23: 93 | G23: 합격 | H23: 합격 | I23: 수
B24: SM20004 | C24: 한고은 | D24: 60 | E24: 80 | F24: 70 | I24: 미
B25: SM20007 | C25: 장나라 | D25: 100 | E25: 70 | F25: 85 | H25: 합격 | I25: 우
B26: SM20008 | C26: 김민종 | D26: 77 | E26: 80 | F26: 78.5 | H26: 합격 | I26: 미
B27: SM20009 | C27: 이준희 | D27: 80 | E27: 60 | F27: 70 | I27: 미
B29: 제품판매 현황
B30: [표3]
B31: 제품코드 | C31: 분류 | D31: 단가 | E31: 판매량 | F31: 판매금액 | G31: 담당자 | I31: [ 분류/담당자 기준 판매건수 ]
B32: 238VM357 | C32: 아동의류 | D32: 75300 | E32: 5 | F32: =D32*E32 -> 376500 | G32: 이하원 | I32: 분류 | J32: 조승재 | K32: 이하원 | L32: 박재민
B33: 537RI257 | C33: 여성의류 | D33: 72400 | E33: 13 | F33: =D33*E33 -> 941200 | G33: 조승재 | I33: 여성의류 | J33: =COUNTIFS($C$32:$C$46,$I33,$G$32:$G$46,J$32) -> 2 | K33: =COUNTIFS($C$32:$C$46,$I33,$G$32:$G$46,K$32) -> 2 | L33: 0
B34: 575HE011 | C34: 여성의류 | D34: 31500 | E34: 12 | F34: 378000 | G34: 이하원 | I34: 남성의류 | J34: =COUNTIFS($C$32:$C$46,$I34,$G$32:$G$46,J$32) -> 1 | K34: 0 | L34: 1
B35: 254DN251 | C35: 기타 | D35: 11400 | E35: 11 | F35: 125400 | G35: 박재민 | I35: 아동의류 | J35: 2 | K35: 2 | L35: 0
B36: 188KY649 | C36: 아동의류 | D36: 24200 | E36: 30 | F36: 726000 | G36: 조승재 | I36: 언더웨어 | J36: 1 | K36: 1 | L36: 1
B37: 143VI197 | C37: 남성의류 | D37: 43400 | E37: 30 | F37: 1302000 | G37: 조승재 | I37: 기타 | J37: 0 | K37: 0 | L37: 2
B38: 640XM642 | C38: 남성의류 | D38: 51900 | E38: 7 | F38: 363300 | G38: 박재민
B39: 661SY624 | C39: 기타 | D39: 59200 | E39: 2 | F39: 118400 | G39: 박재민
B40: 877PF846 | C40: 아동의류 | D40: 65500 | E40: 12 | F40: 786000 | G40: 이하원 | I40: [ 분류/담당자 기준 판매량 합계 ]
B41: 937CR318 | C41: 아동의류 | D41: 75100 | E41: 28 | F41: 2102800 | G41: 조승재 | I41: 분류 | J41: 조승재 | K41: 이하원 | L41: 박재민
B42: 546TK605 | C42: 언더웨어 | D42: 26000 | E42: 8 | F42: 208000 | G42: 조승재 | I42: 여성의류 | J42: =SUMIFS($E$32:$E$46,$C$32:$C$46,$I42,$G$32:$G$46,J$41) -> 26 | K42: =SUMIFS($E$32:$E$46,$C$32:$C$46,$I42,$G$32:$G$46,K$41) -> 32 | L42: 0
B43: 897RP526 | C43: 여성의류 | D43: 9200 | E43: 13 | F43: 119600 | G43: 조승재 | I43: 남성의류 | J43: =SUMIFS($E$32:$E$46,$C$32:$C$46,$I43,$G$32:$G$46,J$41) -> 30 | K43: 0 | L43: 7
B44: 823CC448 | C44: 언더웨어 | D44: 45400 | E44: 23 | F44: 1044200 | G44: 이하원 | I44: 아동의류 | J44: 58 | K44: 17 | L44: 0
B45: 294WR619 | C45: 여성의류 | D45: 44500 | E45: 20 | F45: 890000 | G45: 이하원 | I45: 언더웨어 | J45: 8 | K45: 23 | L45: 15
B46: 582YB244 | C46: 언더웨어 | D46: 27500 | E46: 15 | F46: 412500 | G46: 박재민 | I46: 기타 | J46: 0 | K46: 0 | L46: 13
B48: 영업팀 매출 현황
B49: [표4]
B50: 이름 | C50: 소속 | D50: 상반기 | E50: 하반기
B51: 유동근 | C51: 영업3팀 | D51: 5626 | E51: 8583 | G51: [ 영업팀별 평균 매출량 ]
B52: 전경숙 | C52: 영업2팀 | D52: 3603 | E52: 7406 | G52: 소속 | H52: 상반기 | I52: 하반기
B53: 백수정 | C53: 영업2팀 | D53: 6305 | E53: 5700 | G53: 영업1팀 | H53: =AVERAGEIF($C$51:$C$64,$G53,D$51:D$64) -> 4197.8 | I53: =AVERAGEIF($C$51:$C$64,$G53,E$51:E$64) -> 4954.2
B54: 안현철 | C54: 영업1팀 | D54: 4905 | E54: 8619 | G54: 영업2팀 | H54: =AVERAGEIF($C$51:$C$64,$G54,D$51:D$64) -> 5518.8 | I54: 6031
B55: 고성남 | C55: 영업3팀 | D55: 4272 | E55: 4082 | G55: 영업3팀 | H55: 6195.75 | I55: 5433.25
B56: 민병철 | C56: 영업2팀 | D56: 3758 | E56: 4948
B57: 조광연 | C57: 영업1팀 | D57: 5790 | E57: 2765
B58: 김연우 | C58: 영업3팀 | D58: 7122 | E58: 5935
B59: 김범수 | C59: 영업2팀 | D59: 7802 | E59: 4012
B60: 임재범 | C60: 영업1팀 | D60: 2668 | E60: 3682
B61: 박정현 | C61: 영업3팀 | D61: 7763 | E61: 3133
B62: 오동석 | C62: 영업1팀 | D62: 5123 | E62: 5841
B63: 이하원 | C63: 영업1팀 | D63: 2503 | E63: 3864
B64: 박오연 | C64: 영업2팀 | D64: 6126 | E64: 8089

Sheet 3. 참조함수
B2: 참조함수 | D2: VLOOKUP, HLOOKUP
B4: 이미남학원 강사 급여 | O4: 제품명으로 단가를 구하고, 수량에 따라 할인율 구하기
B5: [표1] | O5: [표5]
B6: 성명 | C6: 직급 | D6: 기본급 | E6: 직급수당 | F6: 총액 | H6: [급여] | O6: 번호 | P6: 제품명 | Q6: 단가 | R6: 수량 | S6: 할인율 | U6: [단가표]
B7: 박상민 | C7: 과장 | H7: 직급 | I7: 기본급 | J7: 직급수당 | O7: 1 | P7: 색연필 | R7: 103 | U7: 제품명 | V7: 단가
B8: 엄정화 | C8: 대리 | H8: 사원 | I8: 750000 | J8: 70000 | O8: 2 | P8: 물통 | R8: 95 | U8: 색연필 | V8: 2500
B9: 장나라 | C9: 사원 | H9: 대리 | I9: 800000 | J9: 80000 | O9: 3 | P9: 색연필 | R9: 108 | U9: 스케치북 | V9: 3000
B10: 박민철 | C10: 사원 | H10: 과장 | I10: 900000 | J10: 90000 | O10: 4 | P10: 스케치북 | R10: 92 | U10: 물통 | V10: 1800
B11: 박상면 | C11: 과장 | O11: 5 | P11: 물통 | R11: 80
B12: 장희선 | C12: 사원 | O12: 6 | P12: 색연필 | R12: 111 | U12: [할인율표]
O13: 7 | P13: 스케치북 | R13: 36 | U13: 수량 | V13: 할인율
B14: 이미남학원 수강생 직업 분포도 | O14: 8 | P14: 색연필 | R14: 20 | U14: 0 | V14: 0
B15: [표2] | O15: 9 | P15: 물통 | R15: 14 | U15: 30 | V15: 0.05
B16: 연번 | C16: 이름 | D16: 직업코드 | E16: 직업 | F16: 사용금액 | H16: [직업표] | O16: 10 | P16: 스케치북 | R16: 80 | U16: 50 | V16: 0.15
B17: 1 | C17: 김미정 | D17: 5 | H17: 코드 | I17: 1 | J17: 2 | K17: 3 | L17: 4 | M17: 5 | O17: 11 | P17: 물통 | R17: 25 | U17: 100 | V17: 0.2
B18: 2 | C18: 김영정 | D18: 1 | H18: 직업 | I18: 학생 | J18: 군인 | K18: 공무원 | L18: 교사 | M18: 회사원 | O18: 12 | P18: 색연필 | R18: 78
B19: 3 | C19: 김영한 | D19: 3 | H19: 사용금액 | I19: 100 | J19: 50 | K19: 20 | L19: 50 | M19: 70 | O19: 13 | P19: 스케치북 | R19: 132
B20: 4 | C20: 남시정 | D20: 2 | O20: 14 | P20: 색연필 | R20: 46
B21: 5 | C21: 민형곤 | D21: 4
B22: 6 | C22: 김시진 | D22: 5
B24: 참조함수 연습문제 | O24: 평균으로 학점 구하기
B25: [표3] | O25: [표6]
B26: 성명 | C26: 주문금액 | D26: 할인금액 | E26: 계산금액 | G26: [할인금액 표] | O26: 이름 | P26: 국어 | Q26: 영어 | R26: 수학 | S26: 평균 | T26: 학점 | V26: [점수 평가표]
B27: 심형래 | C27: 50000 | G27: 주문금액 | H27: 0 | I27: 10000 | J27: 20000 | K27: 40000 | L27: 80000 | O27: 마은성 | P27: 64 | Q27: 77 | R27: 50 | V27: 점수 | W27: 학점
B28: 김봉현 | C28: 10000 | G28: 할인금액 | I28: 100 | J28: 200 | K28: 300 | L28: 500 | O28: 전준호 | P28: 62 | Q28: 82 | R28: 70 | V28: 0 | W28: 가
B29: 이찬호 | C29: 5000 | O29: 임홍삼 | P29: 84 | Q29: 92 | R29: 95 | V29: 60 | W29: 양
B30: 박이슈 | C30: 45000 | O30: 구재석 | P30: 99 | Q30: 80 | R30: 75 | V30: 70 | W30: 미
B31: 이장군 | C31: 15000 | O31: 김혜린 | P31: 87 | Q31: 87 | R31: 54 | V31: 80 | W31: 우
B32: 황건이 | C32: 95000 | O32: 심영국 | P32: 70 | Q32: 46 | R32: 65 | V32: 90 | W32: 수
O33: 강민수 | P33: 91 | Q33: 98 | R33: 85
B34: 사원연수 평가 | O34: 황길호 | P34: 70 | Q34: 90 | R34: 85
B35: [표4] | O35: 장미자 | P35: 90 | Q35: 90 | R35: 88
B36: 사원명 | C36: 1차연수 | D36: 2차연수 | E36: 3차연수 | F36: 평균 | G36: 평가 | I36: [점수 평가표] | O36: 강미란 | P36: 49 | Q36: 51 | R36: 94
B37: 고미근 | C37: 67 | D37: 47 | E37: 61 | I37: 평균점수 | J37: 0 | K37: 70 | L37: 80 | M37: 90
B38: 나미희 | C38: 80 | D38: 90 | E38: 56 | I38: 평가 | J38: D | K38: C | L38: B | M38: A
B39: 김만재 | C39: 78 | D39: 90 | E39: 78
B40: 안달호 | C40: 34 | D40: 56 | E40: 65
B41: 나영일 | C41: 87 | D41: 90 | E41: 100
B42: 지순화 | C42: 65 | D42: 54 | E42: 45
B43: 가운데 | C43: 80 | D43: 70 | E43: 60

Sheet 3. 참조함수-정답
B2: 참조함수 | D2: VLOOKUP, HLOOKUP
B4: 이미남학원 강사 급여 | O4: 제품명으로 단가를 구하고, 수량에 따라 할인율 구하기
B5: [표1] | O5: [표5]
B6: 성명 | C6: 직급 | D6: 기본급 | E6: 직급수당 | F6: 총액 | H6: [급여] | O6: 번호 | P6: 제품명 | Q6: 단가 | R6: 수량 | S6: 할인율 | U6: [단가표]
B7: 박상민 | C7: 과장 | D7: =VLOOKUP(C7,$H$8:$J$10,2,0) -> 900000 | E7: =VLOOKUP(C7,$H$8:$J$10,3,0) -> 90000 | F7: =SUM(D7:E7) -> 990000 | H7: 직급 | I7: 기본급 | J7: 직급수당 | O7: 1 | P7: 색연필 | R7: 103 | U7: 제품명 | V7: 단가
B8: 엄정화 | C8: 대리 | D8: =VLOOKUP(C8,$H$8:$J$10,2,0) -> 800000 | E8: =VLOOKUP(C8,$H$8:$J$10,3,0) -> 80000 | F8: =SUM(D8:E8) -> 880000 | H8: 사원 | I8: 750000 | J8: 70000 | O8: 2 | P8: 물통 | R8: 95 | U8: 색연필 | V8: 2500
B9: 장나라 | C9: 사원 | D9: 750000 | E9: 70000 | F9: 820000 | H9: 대리 | I9: 800000 | J9: 80000 | O9: 3 | P9: 색연필 | R9: 108 | U9: 스케치북 | V9: 3000
B10: 박민철 | C10: 사원 | D10: 750000 | E10: 70000 | F10: 820000 | H10: 과장 | I10: 900000 | J10: 90000 | O10: 4 | P10: 스케치북 | R10: 92 | U10: 물통 | V10: 1800
B11: 박상면 | C11: 과장 | D11: 900000 | E11: 90000 | F11: 990000 | O11: 5 | P11: 물통 | R11: 80
B12: 장희선 | C12: 사원 | D12: 750000 | E12: 70000 | F12: 820000 | O12: 6 | P12: 색연필 | R12: 111 | U12: [할인율표]
O13: 7 | P13: 스케치북 | R13: 36 | U13: 수량 | V13: 할인율
B14: 이미남학원 수강생 직업 분포도 | O14: 8 | P14: 색연필 | R14: 20 | U14: 0 | V14: 0
B15: [표2] | O15: 9 | P15: 물통 | R15: 14 | U15: 30 | V15: 0.05
B16: 연번 | C16: 이름 | D16: 직업코드 | E16: 직업 | F16: 사용금액 | H16: [작업표] | O16: 10 | P16: 스케치북 | R16: 80 | U16: 50 | V16: 0.15
B17: 1 | C17: 김미정 | D17: 5 | E17: =HLOOKUP(D17,$I$17:$M$19,2,0) -> 회사원 | F17: =HLOOKUP(D17,$I$17:$M$19,3,0) -> 70 | H17: 코드 | I17: 1 | J17: 2 | K17: 3 | L17: 4 | M17: 5 | O17: 11 | P17: 물통 | R17: 25 | U17: 100 | V17: 0.2
B18: 2 | C18: 김영정 | D18: 1 | E18: =HLOOKUP(D18,$I$17:$M$19,2,0) -> 학생 | F18: =HLOOKUP(D18,$I$17:$M$19,3,0) -> 100 | H18: 직업 | I18: 학생 | J18: 군인 | K18: 공무원 | L18: 교사 | M18: 회사원 | O18: 12 | P18: 색연필 | R18: 78
B19: 3 | C19: 김영한 | D19: 3 | E19: 공무원 | F19: 20 | H19: 사용금액 | I19: 100 | J19: 50 | K19: 20 | L19: 50 | M19: 70 | O19: 13 | P19: 스케치북 | R19: 132
B20: 4 | C20: 남시정 | D20: 2 | E20: 군인 | F20: 50 | O20: 14 | P20: 색연필 | R20: 46
B21: 5 | C21: 민형곤 | D21: 4 | E21: 교사 | F21: 50
B22: 6 | C22: 김시진 | D22: 5 | E22: 회사원 | F22: 70
B24: 참조함수 연습문제 | O24: 평균으로 학점 구하기
B25: [표3] | O25: [표6]
B26: 성명 | C26: 주문금액 | D26: 할인금액 | E26: 계산금액 | G26: [할인금액 표] | O26: 이름 | P26: 국어 | Q26: 영어 | R26: 수학 | S26: 평균 | T26: 학점 | V26: [점수 평가표]
B27: 심형래 | C27: 50000 | D27: =HLOOKUP(C27,$H$27:$L$28,2,1) -> 300 | E27: =C27-D27 -> 49700 | G27: 주문금액 | H27: 0 | I27: 10000 | J27: 20000 | K27: 40000 | L27: 80000 | O27: 마은성 | P27: 64 | Q27: 77 | R27: 50 | V27: 점수 | W27: 학점
B28: 김봉현 | C28: 10000 | D28: =HLOOKUP(C28,$H$27:$L$28,2,1) -> 100 | E28: =C28-D28 -> 9900 | G28: 할인금액 | I28: 100 | J28: 200 | K28: 300 | L28: 500 | O28: 전준호 | P28: 62 | Q28: 82 | R28: 70 | V28: 0 | W28: 가
B29: 이찬호 | C29: 5000 | D29: 0 | E29: 5000 | O29: 임홍삼 | P29: 84 | Q29: 92 | R29: 95 | V29: 60 | W29: 양
B30: 박이슈 | C30: 45000 | D30: 300 | E30: 44700 | O30: 구재석 | P30: 99 | Q30: 80 | R30: 75 | V30: 70 | W30: 미
B31: 이장군 | C31: 15000 | D31: 100 | E31: 14900 | O31: 김혜린 | P31: 87 | Q31: 87 | R31: 54 | V31: 80 | W31: 우
B32: 황건이 | C32: 95000 | D32: 500 | E32: 94500 | O32: 심영국 | P32: 70 | Q32: 46 | R32: 65 | V32: 90 | W32: 수
O33: 강민수 | P33: 91 | Q33: 98 | R33: 85
B34: 사원연수 평가 | O34: 황길호 | P34: 70 | Q34: 90 | R34: 85
B35: [표4] | O35: 장미자 | P35: 90 | Q35: 90 | R35: 88
B36: 사원명 | C36: 1차연수 | D36: 2차연수 | E36: 3차연수 | F36: 평균 | G36: 평가 | I36: [점수 평가표] | O36: 강미란 | P36: 49 | Q36: 51 | R36: 94
B37: 고미근 | C37: 67 | D37: 47 | E37: 61 | F37: =AVERAGE(C37:E37) -> 58.33333333 | G37: =HLOOKUP(F37,$J$37:$M$38,2,1) -> D | I37: 평균점수 | J37: 0 | K37: 70 | L37: 80 | M37: 90
B38: 나미희 | C38: 80 | D38: 90 | E38: 56 | F38: =AVERAGE(C38:E38) -> 75.33333333 | G38: =HLOOKUP(F38,$J$37:$M$38,2,1) -> C | I38: 평가 | J38: D | K38: C | L38: B | M38: A
B39: 김만재 | C39: 78 | D39: 90 | E39: 78 | F39: 82 | G39: B
B40: 안달호 | C40: 34 | D40: 56 | E40: 65 | F40: 51.66666667 | G40: D
B41: 나영일 | C41: 87 | D41: 90 | E41: 100 | F41: 92.33333333 | G41: A
B42: 지순화 | C42: 65 | D42: 54 | E42: 45 | F42: 54.66666667 | G42: D
B43: 가운데 | C43: 80 | D43: 70 | E43: 60 | F43: 70 | G43: C

Sheet 4.날짜와 시간함수
B2: 날짜시간함수 | C2: TODAY, NOW, YEAR, MONTH, DAY, DATE, HOUR, MINUTE, SECOND, TIME, WEEKDAY, CHOOSE
B3: [표1] | E3: [표2]
B4: 현재날짜+시각 | E4: 현재년도 | F4: 현재월 | G4: 현재일 | H4: 현재날짜
B5: 현재날짜
B6: [표4] | E6: [표3]
B7: 현재날짜 | C7: 요일 | E7: 현재시 | F7: 현재분 | G7: 현재초 | H7: 현재시간
B8: =TODAY() -> 2020-01-14
B9: =B8+1 -> 2020-01-15
B10: =B9+1 -> 2020-01-16
B11: 2020-01-17
B12: 2020-01-18
B13: 2020-01-19
B15: 문자열함수 | C15: RIGHT, LEFT, MID, LEN, UPPER, LOWER, PROPER | K15: =WEEKDAY(C5,3) -> 5
B16: [표4]
B17: 데이터 | C17: LEFT | D17: RIGHT | E17: MID | F17: LEN
B18: 750522-2526525
B19: 엑셀배우기
B20: I LOVE YOU
B22: [표5]
B23: 데이터 | C23: ID | D23: REPLACE | E23: SUBSTITUTE | F23: CONCATENATE | G23: SEARCH | H23: ID만 추출
B24: 씨앗컴퓨터학원 | C24: yi-wonki@hanmail.net
B25: 열매컴퓨터학원 | C25: won2520179@naver.com
B26: 잎새컴퓨터학원 | C26: yiwonk71@gmail.com
B28: 사원신상명세서
B29: [표6]
B30: 입사일 | C30: 성명 | D30: 주민등록번호 | E30: 생년월일 | F30: 나이 | G30: 성별 | H30: 근무년수
B31: 1987-12-05 | C31: 김남주 | D31: 651102-2015210
B32: 1990-02-20 | C32: 이경배 | D32: 691022-1252310
B33: 1995-05-22 | C33: 오미영 | D33: 720210-2023417
B34: 1998-11-11 | C34: 정수진 | D34: 770310-2112541
B35: 1988-07-05 | C35: 신현준 | D35: 630630-1253241
B36: 1999-01-22 | C36: 최승원 | D36: 760521-1523642
B37: 1996-02-05 | C37: 황수경 | D37: 700328-2154685
B38: 1990-02-20 | C38: 박민우 | D38: 701203-1546211
B39: 1993-06-30 | C39: 이영주 | D39: 730420-2156421
B40: 1998-01-21 | C40: 장나라 | D40: 790513-2254230
B41: 1998-07-05 | C41: 김민종 | D41: 781250-1235200

Sheet 4.날짜와 시간함수-정답
B2: 날짜시간함수 | C2: TODAY, NOW, YEAR, MONTH, DAY, DATE, HOUR, MINUTE, SECOND, TIME, WEEKDAY, CHOOSE
B3: [표1] | E3: [표2]
B4: 현재날짜+시각 | C4: =NOW() -> 2020-01-14T22:11:44.300 | E4: 현재년도 | F4: 현재월 | G4: 현재일 | H4: 현재날짜
B5: 현재날짜 | C5: =TODAY() -> 2020-01-14 | E5: =YEAR(TODAY()) -> 2020 | F5: =MONTH(TODAY()) -> 1 | G5: =DAY(TODAY()) -> 14 | H5: =DATE(E5,F5,G5) -> 2020-01-14
B6: [표4] | E6: [표3]
B7: 현재날짜 | C7: 요일 | E7: 현재시 | F7: 현재분 | G7: 현재초 | H7: 현재시간
B8: =TODAY() -> 2020-01-14 | C8: =CHOOSE(WEEKDAY(B8,2),"월요일","화요일","수요일","목요일","금요일","토요일","일요일") -> 화요일 | E8: =HOUR(NOW()) -> 22 | F8: =MINUTE(NOW()) -> 11 | G8: =SECOND(NOW()) -> 44 | H8: =TIME(E8,F8,G8) -> 22:11:44
B9: =B8+1 -> 2020-01-15 | C9: =CHOOSE(WEEKDAY(B9,2),"월요일","화요일","수요일","목요일","금요일","토요일","일요일") -> 수요일
B10: =B9+1 -> 2020-01-16 | C10: 목요일
B11: 2020-01-17 | C11: 금요일
B12: 2020-01-18 | C12: 토요일
B13: 2020-01-19 | C13: 일요일
B15: 문자열함수 | C15: RIGHT, LEFT, MID, LEN, UPPER, LOWER, PROPER | K15: =WEEKDAY(C5,3) -> 1
B16: [표4]
B17: 데이터 | C17: LEFT | D17: RIGHT | E17: MID | F17: LEN
B18: 750522-2526525 | C18: =LEFT(B18,3) -> 750 | D18: =RIGHT(B18,4) -> 6525 | E18: =MID(B18,8,3) -> 252 | F18: =LEN(B18) -> 14
B19: 엑셀배우기
B20: I LOVE YOU | C20: =LOWER(B20) -> i love you | D20: =UPPER(C20) -> I LOVE YOU | E20: =PROPER(D20) -> I Love You
B22: [표5]
B23: 데이터 | C23: ID | D23: REPLACE | E23: SUBSTITUTE | F23: CONCATENAGE | G23: SEARCH | H23: ID만 추출
B24: 씨앗컴퓨터학원 | C24: yi-wonki@hanmail.net | D24: =REPLACE(B24,3,5,"그룹") -> 씨앗그룹 | E24: =SUBSTITUTE(D24,"그룹","학원",1) -> 씨앗학원 | F24: =CONCATENATE(LEFT(E24,2),"컴퓨터",RIGHT(E24,2)) -> 씨앗컴퓨터학원 | G24: =SEARCH("@",C24) -> 9 | H24: =LEFT(C24,SEARCH("@",C24)-1) -> yi-wonki
B25: 열매컴퓨터학원 | C25: won2520179@naver.com | D25: =REPLACE(B25,3,5,"그룹") -> 열매그룹 | E25: =SUBSTITUTE(D25,"그룹","학원",1) -> 열매학원 | F25: =CONCATENATE(LEFT(E25,2),"컴퓨터",RIGHT(E25,2)) -> 열매컴퓨터학원 | G25: =SEARCH("@",C25) -> 11 | H25: =LEFT(C25,SEARCH("@",C25)-1) -> won2520179
B26: 잎새컴퓨터학원 | C26: yiwonk71@gmail.com | D26: 잎새그룹 | E26: 잎새학원 | F26: 잎새컴퓨터학원 | G26: 9 | H26: yiwonk71
B28: 사원신상명세서
B29: [표6]
B30: 입사일 | C30: 성명 | D30: 주민등록번호 | E30: 생년월일 | F30: 나이 | G30: 성별 | H30: 근무년수
B31: 1987-12-05 | C31: 김남주 | D31: 651102-2015210 | E31: =DATE(LEFT(D31,2),MID(D31,3,2),MID(D31,5,2)) -> 1965-11-02 | F31: =YEAR(TODAY())-LEFT(D31,2)-1900+1 -> 56 | G31: =IF(OR(MID(D31,8,1)="1",MID(D31,8,1)="3"),"남자","여자") -> 여자 | H31: =YEAR(TODAY())-YEAR(B31) -> 33
B32: 1990-02-20 | C32: 이경배 | D32: 691022-1252310 | E32: =DATE(LEFT(D32,2),MID(D32,3,2),MID(D32,5,2)) -> 1969-10-22 | F32: =YEAR(TODAY())-LEFT(D32,2)-1900+1 -> 52 | G32: =IF(OR(MID(D32,8,1)="1",MID(D32,8,1)="3"),"남자","여자") -> 남자 | H32: =YEAR(TODAY())-YEAR(B32) -> 30
B33: 1995-05-22 | C33: 오미영 | D33: 720210-2023417 | E33: 1972-02-10 | F33: 49 | G33: 여자 | H33: 25
B34: 1998-11-11 | C34: 정수진 | D34: 770310-2112541 | E34: 1977-03-10 | F34: 44 | G34: 여자 | H34: 22
B35: 1988-07-05 | C35: 신현준 | D35: 630630-1253241 | E35: 1963-06-30 | F35: 58 | G35: 남자 | H35: 32
B36: 1999-01-22 | C36: 최승원 | D36: 760521-1523642 | E36: 1976-05-21 | F36: 45 | G36: 남자 | H36: 21
B37: 1996-02-05 | C37: 황수경 | D37: 700328-2154685 | E37: 1970-03-28 | F37: 51 | G37: 여자 | H37: 24
B38: 1990-02-20 | C38: 박민우 | D38: 701203-1546211 | E38: 1970-12-03 | F38: 51 | G38: 남자 | H38: 30
B39: 1993-06-30 | C39: 이영주 | D39: 730420-2156421 | E39: 1973-04-20 | F39: 48 | G39: 여자 | H39: 27
B40: 1998-01-21 | C40: 장나라 | D40: 790513-2254230 | E40: 1979-05-13 | F40: 42 | G40: 여자 | H40: 22
B41: 1998-07-05 | C41: 김민종 | D41: 781250-1235200 | E41: 1979-01-19 | F41: 43 | G41: 남자 | H41: 22

Sheet 5.데이터베이스함수
B2: 데이터베이스 함수 | D2: DSUM, DAVEERAGE, DMAX, DMIN, DCOUNT, DCOUNTA, DVAR, DSTDEV 등
B3: [표1]
B4: 이름 | C4: 직급 | D4: 입사일 | E4: 기본급 | F4: 상여금 | H4: 지역이 '서울특별시'이고 거래량이 5000 이상인 레코드를 찾아 거래량이 합계와 평균을 구하시오
B5: 김동식 | C5: 대리 | D5: 1999-03-03 | E5: 8500 | F5: 5000
B6: 이민정 | C6: 부장 | D6: 2000-10-05 | E6: 10000 | F6: 600 | H6: 거래량의 합계
B7: 홍명보 | C7: 대리 | D7: 1980-04-02 | E7: 8000 | F7: 900 | H7: 거래량의 평균
B8: 박동축 | C8: 대리 | D8: 1985-02-02 | E8: 12000 | F8: 300 | H8: [표2]
B9: 김정민 | C9: 부장 | D9: 1995-03-02 | E9: 75000 | F9: 200 | H9: 고객번호 | I9: 거래처명 | J9: 담당자 | K9: 지역 | L9: 거래량 | M9: 거래금액
H10: LONEP | I10: 개성 트레이딩 | J10: 마은성 | K10: 경기도 | L10: 2010 | M10: 5344000
B11: 1. 직급이 대리인 사람들의 기본급의 합계를 구하시오. | H11: QUEDE | I11: 게이트웨이 통상 | J11: 전준호 | K11: 대전광역시 | L11: 5116 | M11: 23276000
H12: LILAS | I12: 경동 무역 | J12: 임홍삼 | K12: 서울특별시 | L12: 6834 | M12: 55708000
H13: AROUT | I13: 경성 트레이딩 | J13: 구재석 | K13: 인천광역시 | L13: 6753 | M13: 47148000
H14: GALED | I14: 광성 교역 | J14: 김혜린 | K14: 서울특별시 | L14: 2818 | M14: 34249000
B15: 2. 이름이 김으로 시작하거나, 직급이 부장인 사람들의 상여금합계를 구하시오. | H15: TRADH | I15: 국제 무역 | J15: 심영국 | K15: 서울특별시 | L15: 3153 | M15: 39500000
H16: DRACD | I16: 극동 무역 | J16: 강민수 | K16: 서울특별시 | L16: 3844 | M16: 48348000
H17: ISLAT | I17: 글로리아 백화점 | J17: 황길호 | K17: 서울특별시 | L17: 4573 | M17: 69436000
H18: RATTC | I18: 금강 | J18: 장미자 | K18: 경기도 | L18: 5751 | M18: 54570000
H19: WELLI | I19: 금화 유통 | J19: 강미란 | K19: 부산광역시 | L19: 6646 | M19: 44453000
B20: 3. 직급이 부장인 사람들의 기본급의 평균을 구하시오. | H20: LETSS | I20: 대광 상사 | J20: 민병철 | K20: 경기도 | L20: 7582 | M20: 65256000
H21: SPECD | I21: 대성 교역 | J21: 황영신 | K21: 서울특별시 | L21: 5313 | M21: 5411000
H22: COMMI | I22: 대진 상사 | J22: 천용만 | K22: 서울특별시 | L22: 6822 | M22: 41232000
H23: ANTON | I23: 동광 통상 | J23: 조자룡 | K23: 서울특별시 | L23: 3689 | M23: 36240000
B24: 4. 직급이 대리이면서 입사일이 1999년 1월 1일 이전이 사람들의 상여금 평균을 구하시오. | H24: CHOPS | I24: 동남 상사 | J24: 강태준 | K24: 서울특별시 | L24: 4693 | M24: 78625000
H25: PERIC | I25: 동도 교역 | J25: 하사헌 | K25: 부산광역시 | L25: 6328 | M25: 26590000
H26: LEHMS | I26: 동방 무역 | J26: 최한기 | K26: 서울특별시 | L26: 2057 | M26: 18011000
H27: GROSR | I27: 동성 직배 | J27: 마창진 | K27: 서울특별시 | L27: 7138 | M27: 11498000
B28: 5. 직급이 부장인 사람들의 인원수를 구하시오. | H28: PRINI | I28: 동신 상사 | J28: 최춘실 | K28: 전라북도 | L28: 3269 | M28: 54240000
H29: GOURL | I29: 동양 무역 | J29: 한빈 | K29: 경기도 | L29: 6224 | M29: 71259000
H30: THECR | I30: 몽블랑 백화점 | J30: 박찬희 | K30: 서울특별시 | L30: 4290 | M30: 64744000
H31: FRANR | I31: 미림 백화점 | J31: 이혜준 | K31: 경기도 | L31: 6503 | M31: 63932000
B32: 6. 기본급이 10000 이상이거나, 이름이 홍으로 시작하는 사람들의 인원수를 구하시오. | H32: QUICK | I32: 미성 백화점 | J32: 호혜경 | K32: 인천광역시 | L32: 6623 | M32: 11499000
H33: WILMK | I33: 미주 상사 | J33: 박춘심 | K33: 서울특별시 | L33: 6706 | M33: 77767000
H34: ROMEY | I34: 백조 백화점 | J34: 안재혁 | K34: 경기도 | L34: 7169 | M34: 31642000
H35: BLONP | I35: 베네디스 유통 | J35: 장선희 | K35: 서울특별시 | L35: 7905 | M35: 14912000
H36: QUEEN | I36: 사하라 통상 | J36: 정가진 | K36: 서울특별시 | L36: 6822 | M36: 74354000
B37: 7. 입사일이 1995년 1월 1일 이후인 사람들의 기본급 중 가장 큰 값을 구하시오. | H37: TOMSP | I37: 산타페 | J37: 박영아 | K37: 경기도 | L37: 2088 | M37: 46434000
H38: OTTIK | I38: 삼선 무역 | J38: 구재석 | K38: 경기도 | L38: 6190 | M38: 60234000
H39: SUPRD | I39: 삼양 상사 | J39: 감성동 | K39: 서울특별시 | L39: 5915 | M39: 38408000
H40: TRAIH | I40: 삼영 식품 | J40: 배한석 | K40: 경기도 | L40: 5297 | M40: 31554000
B41: 8. 입사일이 1995년 1월 1일 이후인 사람들의 상여금 중 가장 작은 값을 구하시오.

Sheet 5.데이터베이스함수-정답
B2: 데이터베이스 함수 | D2: DSUM, DAVEERAGE, DMAX, DMIN, DCOUNT, DCOUNTA, DVAR, DSTDEV 등
B3: [표1]
B4: 이름 | C4: 직급 | D4: 입사일 | E4: 기본급 | F4: 상여금 | H4: 지역이 '서울특별시'이고 거래량이 5000 이상인 레코드를 찾아 거래량이 합계와 평균을 구하시오
B5: 김동식 | C5: 대리 | D5: 1999-03-03 | E5: 8500 | F5: 5000
B6: 이민정 | C6: 부장 | D6: 2000-10-05 | E6: 10000 | F6: 600 | H6: 거래량의 합계 | J6: =DSUM(H9:M40,L9,L6:M7) -> 53455 | L6: 지역 | M6: 거래량
B7: 홍명보 | C7: 대리 | D7: 1980-04-02 | E7: 8000 | F7: 900 | H7: 거래량의 평균 | J7: =DAVERAGE(H9:M40,L9,L6:M7) -> 6681.875 | L7: 서울특별시 | M7: >=5000
B8: 박동축 | C8: 대리 | D8: 1985-02-02 | E8: 12000 | F8: 300 | H8: [표2]
B9: 김정민 | C9: 부장 | D9: 1995-03-02 | E9: 75000 | F9: 200 | H9: 고객번호 | I9: 거래처명 | J9: 담당자 | K9: 지역 | L9: 거래량 | M9: 거래금액
H10: LONEP | I10: 개성 트레이딩 | J10: 마은성 | K10: 경기도 | L10: 2010 | M10: 5344000
B11: 1. 직급이 대리인 사람들의 기본급의 합계를 구하시오. | H11: QUEDE | I11: 게이트웨이 통상 | J11: 전준호 | K11: 대전광역시 | L11: 5116 | M11: 23276000
C12: 직급 | F12: =DSUM(B4:F9,E4,C12:C13) -> 28500 | H12: LILAS | I12: 경동 무역 | J12: 임홍삼 | K12: 서울특별시 | L12: 6834 | M12: 55708000
C13: 대리 | H13: AROUT | I13: 경성 트레이딩 | J13: 구재석 | K13: 인천광역시 | L13: 6753 | M13: 47148000
H14: GALED | I14: 광성 교역 | J14: 김혜린 | K14: 서울특별시 | L14: 2818 | M14: 34249000
B15: 2. 이름이 김으로 시작하거나, 직급이 부장인 사람들의 상여금합계를 구하시오. | H15: TRADH | I15: 국제 무역 | J15: 심영국 | K15: 서울특별시 | L15: 3153 | M15: 39500000
C16: 이름 | D16: 직급 | F16: =DSUM(B4:F9,F4,C16:D18) -> 5800 | H16: DRACD | I16: 극동 무역 | J16: 강민수 | K16: 서울특별시 | L16: 3844 | M16: 48348000
C17: 김* | H17: ISLAT | I17: 글로리아 백화점 | J17: 황길호 | K17: 서울특별시 | L17: 4573 | M17: 69436000
D18: 부장 | H18: RATTC | I18: 금강 | J18: 장미자 | K18: 경기도 | L18: 5751 | M18: 54570000
H19: WELLI | I19: 금화 유통 | J19: 강미란 | K19: 부산광역시 | L19: 6646 | M19: 44453000
B20: 3. 직급이 부장인 사람들의 기본급의 평균을 구하시오. | H20: LETSS | I20: 대광 상사 | J20: 민병철 | K20: 경기도 | L20: 7582 | M20: 65256000
C21: 직급 | F21: =DAVERAGE(B4:F9,E4,C21:C22) -> 42500 | H21: SPECD | I21: 대성 교역 | J21: 황영신 | K21: 서울특별시 | L21: 5313 | M21: 5411000
C22: 부장 | H22: COMMI | I22: 대진 상사 | J22: 천용만 | K22: 서울특별시 | L22: 6822 | M22: 41232000
H23: ANTON | I23: 동광 통상 | J23: 조자룡 | K23: 서울특별시 | L23: 3689 | M23: 36240000
B24: 4. 직급이 대리이면서 입사일이 1999년 1월 1일 이전이 사람들의 상여금 평균을 구하시오. | H24: CHOPS | I24: 동남 상사 | J24: 강태준 | K24: 서울특별시 | L24: 4693 | M24: 78625000
C25: 직급 | D25: 입사일 | F25: =DAVERAGE(B4:F9,F4,C25:D26) -> 600 | H25: PERIC | I25: 동도 교역 | J25: 하사헌 | K25: 부산광역시 | L25: 6328 | M25: 26590000
C26: 대리 | D26: <=1999-1-1 | H26: LEHMS | I26: 동방 무역 | J26: 최한기 | K26: 서울특별시 | L26: 2057 | M26: 18011000
H27: GROSR | I27: 동성 직배 | J27: 마창진 | K27: 서울특별시 | L27: 7138 | M27: 11498000
B28: 5. 직급이 부장인 사람들의 인원수를 구하시오. | H28: PRINI | I28: 동신 상사 | J28: 최춘실 | K28: 전라북도 | L28: 3269 | M28: 54240000
C29: 직급 | F29: =DCOUNT(B4:F9,E4,C29:C30) -> 2 | H29: GOURL | I29: 동양 무역 | J29: 한빈 | K29: 경기도 | L29: 6224 | M29: 71259000
C30: 부장 | H30: THECR | I30: 몽블랑 백화점 | J30: 박찬희 | K30: 서울특별시 | L30: 4290 | M30: 64744000
H31: FRANR | I31: 미림 백화점 | J31: 이혜준 | K31: 경기도 | L31: 6503 | M31: 63932000
B32: 6. 기본급이 10000 이상이거나, 이름이 홍으로 시작하는 사람들의 인원수를 구하시오. | H32: QUICK | I32: 미성 백화점 | J32: 호혜경 | K32: 인천광역시 | L32: 6623 | M32: 11499000
C33: 기본급 | D33: 이름 | F33: =DCOUNTA(B4:F9,C4,C33:D35) -> 4 | H33: WILMK | I33: 미주 상사 | J33: 박춘심 | K33: 서울특별시 | L33: 6706 | M33: 77767000
C34: >=10000 | H34: ROMEY | I34: 백조 백화점 | J34: 안재혁 | K34: 경기도 | L34: 7169 | M34: 31642000
D35: 홍* | H35: BLONP | I35: 베네디스 유통 | J35: 장선희 | K35: 서울특별시 | L35: 7905 | M35: 14912000
H36: QUEEN | I36: 사하라 통상 | J36: 정가진 | K36: 서울특별시 | L36: 6822 | M36: 74354000
B37: 7. 입사일이 1995년 1월 1일 이후인 사람들의 기본급 중 가장 큰 값을 구하시오. | H37: TOMSP | I37: 산타페 | J37: 박영아 | K37: 경기도 | L37: 2088 | M37: 46434000
C38: 입사일 | F38: =DMAX(B4:F9,E4,C38:C39) -> 75000 | H38: OTTIK | I38: 삼선 무역 | J38: 구재석 | K38: 경기도 | L38: 6190 | M38: 60234000
C39: >=1995-1-1 | H39: SUPRD | I39: 삼양 상사 | J39: 감성동 | K39: 서울특별시 | L39: 5915 | M39: 38408000
H40: TRAIH | I40: 삼영 식품 | J40: 배한석 | K40: 경기도 | L40: 5297 | M40: 31554000
B41: 8. 입사일이 1995년 1월 1일 이후인 사람들의 상여금 중 가장 작은 값을 구하시오.
C42: 입사일 | F42: =DMIN(B4:F9,F4,C42:C43) -> 200
C43: >=1995-1-1

Sheet 6.기타함수
B2: 기타함수 | D2: ABS, INT, MOD, QUOTIENT, LARGE, SMALL, VALUE, TEXT, IFERROR, SUMPORDUCT, FREQUENCY, ROW, ROWS, COLUMN, COLUMNS,
B4: [표1] | I4: [표2] | N4: [표5] | R4: [표6]
B5: 제품명 | C5: 상반기 | D5: 하반기 | E5: 증감 | F5: 차이 | G5: 평가 | I5: 고객명 | J5: 포인트 | K5: 쿠폰개수 | L5: 잔여포인트 | N5: 순위 | O5: 상위권 | P5: 하위권 | R5: 주문 | S5: 주문처 | T5: 제품명 | U5: 주문횟수 | V5: 총수량 | W5: 총금액 | Y5: 제품명
B6: 오일 스크럽 | C6: 6013 | D6: 2146 | I6: 유동근 | J6: 2526 | N6: 1 | R6: 조회 | Y6: 특제 굴 통조림
B7: 버블 오일 | C7: 4690 | D7: 4345 | I7: 전경숙 | J7: 8562 | N7: 2 | R7: [표7] | Y7: 알파 샐러드 드레싱
B8: 미라클 오일 | C8: 6423 | D8: 2836 | I8: 백수정 | J8: 4985 | N8: 3 | R8: 주문일 | S8: 주문처 | T8: 제품명 | U8: 단가 | V8: 수량 | W8: 금액 | Y8: 트로피컬 칵테일
B9: 솔트 스크럽 | C9: 4979 | D9: 6846 | I9: 안현철 | J9: 6966 | R9: 2012-07-08 | S9: 미성 백화점 | T9: 특제 굴 통조림 | U9: 15000 | V9: 25 | W9: =U9*V9 -> 375000 | Y9: 앨리스 포장육
B10: 버터 바디밤 | C10: 2742 | D10: 5725 | I10: 고성남 | J10: 4807 | R10: 2012-07-11 | S10: 동방 무역 | T10: 알파 샐러드 드레싱 | U10: 10000 | V10: 12 | W10: 120000 | Y10: 원양 순 상어알
B11: 코코넛 샤워젤 | C11: 2135 | D11: 5358 | I11: 박달재 | J11: 5457 | R11: 2012-07-12 | S11: 한진 교역 | T11: 알파 샐러드 드레싱 | U11: 10000 | V11: 15 | W11: 150000
B12: 라이스 샤워젤 | C12: 6155 | D12: 2344 | I12: 지준혁 | J12: 2561 | R12: 2012-07-15 | S12: 한진 교역 | T12: 트로피컬 칵테일 | U12: 12000 | V12: 21 | W12: 252000 | Y12: 주문처
B13: 라이스 바디 밀크 | C13: 4717 | D13: 6448 | I13: 박현서 | J13: 645 | R13: 2012-07-21 | S13: 우주 상사 | T13: 앨리스 포장육 | U13: 31000 | V13: 30 | W13: 930000 | Y13: 미성 백화점
B14: 핸드 앤 풋 버터 | C14: 2815 | D14: 6442 | I14: 선채현 | J14: 1816 | R14: 2012-07-21 | S14: 한진 교역 | T14: 트로피컬 칵테일 | U14: 12000 | V14: 20 | W14: 240000 | Y14: 동방 무역
B15: 워싱 그레이스 | C15: 5499 | D15: 4900 | I15: 임선우 | J15: 7160 | R15: 2012-07-28 | S15: 신세계 통상 | T15: 특제 굴 통조림 | U15: 15000 | V15: 30 | W15: 450000 | Y15: 한진 교역
B16: 벨벳 바디크림 | C16: 2579 | D16: 3894 | I16: 이하원 | J16: 9526 | R16: 2012-08-08 | S16: 동방 무역 | T16: 원양 순 상어알 | U16: 12000 | V16: 25 | W16: 300000 | Y16: 우주 상사
B17: 티트리 오일 | C17: 5294 | D17: 5815 | I17: 김여진 | J17: 7940 | R17: 2012-08-09 | S17: 우주 상사 | T17: 앨리스 포장육 | U17: 31000 | V17: 15 | W17: 465000 | Y17: 신세계 통상
B18: 클리어링 로션 | C18: 6419 | D18: 5860 | I18: 맹채연 | J18: 4657 | R18: 2012-08-23 | S18: 우주 상사 | T18: 알파 샐러드 드레싱 | U18: 10000 | V18: 10 | W18: 100000
R19: 2012-08-26 | S19: 우주 상사 | T19: 앨리스 포장육 | U19: 31000 | V19: 15 | W19: 465000
B20: [표3] | H20: [표4] | R20: 2012-09-01 | S20: 신세계 통상 | T20: 특제 굴 통조림 | U20: 15000 | V20: 40 | W20: 600000
B21: 이름 | C21: 국어 | D21: 영어 | E21: 수학 | F21: 평균 | H21: 점수 | J21: 인원 | R21: 2012-09-02 | S21: 동방 무역 | T21: 트로피컬 칵테일 | U21: 12000 | V21: 20 | W21: 240000
B22: 이재석 | C22: 88 | D22: 95 | E22: 79 | F22: =ROUND(AVERAGE(C22:E22),0) -> 87 | H22: 0 | I22: 59 | R22: 2012-09-06 | S22: 미성 백화점 | T22: 앨리스 포장육 | U22: 31000 | V22: 40 | W22: 1240000
B23: 박현서 | C23: 78 | D23: 94 | E23: 83 | F23: =ROUND(AVERAGE(C23:E23),0) -> 85 | H23: 60 | I23: 69 | R23: 2012-09-14 | S23: 신세계 통상 | T23: 트로피컬 칵테일 | U23: 12000 | V23: 5 | W23: 60000
B24: 오동건 | C24: 96 | D24: 68 | E24: 59 | F24: 74 | H24: 70 | I24: 79 | R24: 2012-09-20 | S24: 우주 상사 | T24: 특제 굴 통조림 | U24: 15000 | V24: 12 | W24: 180000
B25: 김요셉 | C25: 81 | D25: 53 | E25: 68 | F25: 67 | H25: 80 | I25: 89 | R25: 2012-09-22 | S25: 신세계 통상 | T25: 트로피컬 칵테일 | U25: 12000 | V25: 30 | W25: 360000
B26: 이하원 | C26: 91 | D26: 90 | E26: 90 | F26: 90 | H26: 90 | I26: 100 | R26: 2012-09-28 | S26: 미성 백화점 | T26: 앨리스 포장육 | U26: 31000 | V26: 8 | W26: 248000
B27: 조승재 | C27: 70 | D27: 74 | E27: 75 | F27: 73 | R27: 2012-10-20 | S27: 미성 백화점 | T27: 특제 굴 통조림 | U27: 15000 | V27: 20 | W27: 300000
B28: 정은우 | C28: 66 | D28: 99 | E28: 91 | F28: 85 | R28: 2012-10-21 | S28: 미성 백화점 | T28: 앨리스 포장육 | U28: 31000 | V28: 20 | W28: 620000
B29: 선보경 | C29: 65 | D29: 58 | E29: 97 | F29: 73 | R29: 2012-10-24 | S29: 미성 백화점 | T29: 앨리스 포장육 | U29: 31000 | V29: 70 | W29: 2170000
B30: 김여진 | C30: 70 | D30: 70 | E30: 56 | F30: 65 | R30: 2012-10-26 | S30: 우주 상사 | T30: 특제 굴 통조림 | U30: 15000 | V30: 40 | W30: 600000
B31: 이채원 | C31: 87 | D31: 73 | E31: 61 | F31: 74 | R31: 2012-11-01 | S31: 미성 백화점 | T31: 앨리스 포장육 | U31: 31000 | V31: 36 | W31: 1116000
B32: 서지은 | C32: 95 | D32: 90 | E32: 92 | F32: 92 | R32: 2012-11-16 | S32: 동방 무역 | T32: 특제 굴 통조림 | U32: 15000 | V32: 20 | W32: 300000
B33: 강지현 | C33: 67 | D33: 84 | E33: 68 | F33: 73 | R33: 2012-11-24 | S33: 한진 교역 | T33: 알파 샐러드 드레싱 | U33: 10000 | V33: 5 | W33: 50000
B34: 박재민 | C34: 90 | D34: 57 | E34: 66 | F34: 71 | R34: 2012-11-24 | S34: 우주 상사 | T34: 알파 샐러드 드레싱 | U34: 10000 | V34: 7 | W34: 70000
B35: 이규형 | C35: 95 | D35: 77 | E35: 69 | F35: 80 | R35: 2012-11-29 | S35: 우주 상사 | T35: 특제 굴 통조림 | U35: 15000 | V35: 6 | W35: 90000
B36: 김혁중 | C36: 45 | D36: 55 | E36: 52 | F36: 51 | R36: 2012-12-08 | S36: 미성 백화점 | T36: 트로피컬 칵테일 | U36: 12000 | V36: 30 | W36: 360000
B37: 김우주 | C37: 91 | D37: 88 | E37: 52 | F37: 77 | R37: 2012-12-16 | S37: 한진 교역 | T37: 트로피컬 칵테일 | U37: 12000 | V37: 30 | W37: 360000
B38: 정보람 | C38: 79 | D38: 54 | E38: 81 | F38: 71 | R38: 2012-12-27 | S38: 미성 백화점 | T38: 알파 샐러드 드레싱 | U38: 10000 | V38: 14 | W38: 140000
B39: 장혁철 | C39: 85 | D39: 91 | E39: 71 | F39: 82 | R39: 2013-01-03 | S39: 신세계 통상 | T39: 특제 굴 통조림 | U39: 15000 | V39: 5 | W39: 75000
B40: 황채령 | C40: 97 | D40: 72 | E40: 87 | F40: 85 | R40: 2013-01-11 | S40: 미성 백화점 | T40: 앨리스 포장육 | U40: 31000 | V40: 2 | W40: 62000
B41: 박현율 | C41: 57 | D41: 67 | E41: 85 | F41: 70 | R41: 2013-01-12 | S41: 미성 백화점 | T41: 알파 샐러드 드레싱 | U41: 10000 | V41: 35 | W41: 350000
B42: 방민권 | C42: 85 | D42: 94 | E42: 80 | F42: 86 | R42: 2013-01-17 | S42: 신세계 통상 | T42: 트로피컬 칵테일 | U42: 12000 | V42: 8 | W42: 96000
B43: 소순규 | C43: 57 | D43: 93 | E43: 77 | F43: 76 | R43: 2013-01-17 | S43: 우주 상사 | T43: 원양 순 상어알 | U43: 12000 | V43: 20 | W43: 240000
B44: 임현희 | C44: 89 | D44: 86 | E44: 78 | F44: 84 | R44: 2013-01-17 | S44: 동방 무역 | T44: 알파 샐러드 드레싱 | U44: 10000 | V44: 10 | W44: 100000
B45: 조승철 | C45: 90 | D45: 85 | E45: 98 | F45: 91 | R45: 2013-01-26 | S45: 우주 상사 | T45: 앨리스 포장육 | U45: 31000 | V45: 45 | W45: 1395000
B46: 백한나 | C46: 59 | D46: 94 | E46: 80 | F46: 78 | R46: 2013-01-26 | S46: 신세계 통상 | T46: 앨리스 포장육 | U46: 31000 | V46: 50 | W46: 1550000
R47: 2013-02-08 | S47: 신세계 통상 | T47: 앨리스 포장육 | U47: 31000 | V47: 10 | W47: 310000
R48: 2013-02-15 | S48: 신세계 통상 | T48: 알파 샐러드 드레싱 | U48: 10000 | V48: 55 | W48: 550000
R49: 2013-02-17 | S49: 미성 백화점 | T49: 트로피컬 칵테일 | U49: 12000 | V49: 25 | W49: 300000
R50: 2013-03-13 | S50: 미성 백화점 | T50: 트로피컬 칵테일 | U50: 12000 | V50: 12 | W50: 144000
R51: 2013-03-20 | S51: 미성 백화점 | T51: 알파 샐러드 드레싱 | U51: 10000 | V51: 30 | W51: 300000
R52: 2013-03-21 | S52: 동방 무역 | T52: 트로피컬 칵테일 | U52: 12000 | V52: 60 | W52: 720000
R53: 2013-03-23 | S53: 우주 상사 | T53: 원양 순 상어알 | U53: 12000 | V53: 20 | W53: 240000
R54: 2013-03-27 | S54: 미성 백화점 | T54: 알파 샐러드 드레싱 | U54: 10000 | V54: 7 | W54: 70000
R55: 2013-03-30 | S55: 동방 무역 | T55: 알파 샐러드 드레싱 | U55: 10000 | V55: 5 | W55: 50000
R56: 2013-03-31 | S56: 우주 상사 | T56: 알파 샐러드 드레싱 | U56: 10000 | V56: 25 | W56: 250000
R57: 2013-04-11 | S57: 우주 상사 | T57: 트로피컬 칵테일 | U57: 15000 | V57: 14 | W57: 210000
R58: 2013-04-20 | S58: 동방 무역 | T58: 트로피컬 칵테일 | U58: 15000 | V58: 6 | W58: 90000
R59: 2013-04-27 | S59: 우주 상사 | T59: 앨리스 포장육 | U59: 39000 | V59: 25 | W59: 975000
R60: 2013-04-28 | S60: 신세계 통상 | T60: 특제 굴 통조림 | U60: 19000 | V60: 30 | W60: 570000
R61: 2013-05-01 | S61: 우주 상사 | T61: 특제 굴 통조림 | U61: 19000 | V61: 30 | W61: 570000
R62: 2013-05-04 | S62: 한진 교역 | T62: 앨리스 포장육 | U62: 39000 | V62: 40 | W62: 1560000
R63: 2013-05-08 | S63: 동방 무역 | T63: 원양 순 상어알 | U63: 15000 | V63: 24 | W63: 360000
R64: 2013-05-10 | S64: 동방 무역 | T64: 원양 순 상어알 | U64: 15000 | V64: 9 | W64: 135000
R65: 2013-05-11 | S65: 한진 교역 | T65: 트로피컬 칵테일 | U65: 15000 | V65: 7 | W65: 105000
R66: 2013-05-19 | S66: 신세계 통상 | T66: 특제 굴 통조림 | U66: 19000 | V66: 60 | W66: 1140000
R67: 2013-05-24 | S67: 신세계 통상 | T67: 앨리스 포장육 | U67: 39000 | V67: 8 | W67: 312000
R68: 2013-05-26 | S68: 우주 상사 | T68: 알파 샐러드 드레싱 | U68: 13000 | V68: 10 | W68: 130000
R69: 2013-05-31 | S69: 미성 백화점 | T69: 원양 순 상어알 | U69: 15000 | V69: 3 | W69: 45000
R70: 2013-06-06 | S70: 한진 교역 | T70: 특제 굴 통조림 | U70: 19000 | V70: 25 | W70: 475000
R71: 2013-06-06 | S71: 미성 백화점 | T71: 앨리스 포장육 | U71: 39000 | V71: 16 | W71: 624000
R72: 2013-06-15 | S72: 한진 교역 | T72: 앨리스 포장육 | U72: 39000 | V72: 18 | W72: 702000
R73: 2013-06-19 | S73: 미성 백화점 | T73: 알파 샐러드 드레싱 | U73: 13000 | V73: 18 | W73: =U73*V73 -> 234000
R74: 2013-06-28 | S74: 미성 백화점 | T74: 알파 샐러드 드레싱 | U74: 13000 | V74: 20 | W74: 260000
R75: 2013-07-03 | S75: 동방 무역 | T75: 알파 샐러드 드레싱 | U75: 13000 | V75: 60 | W75: 780000
R76: 2013-07-12 | S76: 한진 교역 | T76: 원양 순 상어알 | U76: 15000 | V76: 30 | W76: 450000
R77: 2013-07-13 | S77: 미성 백화점 | T77: 알파 샐러드 드레싱 | U77: 13000 | V77: 5 | W77: 65000
R78: 2013-07-18 | S78: 미성 백화점 | T78: 앨리스 포장육 | U78: 39000 | V78: 100 | W78: 3900000
R79: 2013-07-21 | S79: 우주 상사 | T79: 특제 굴 통조림 | U79: 19000 | V79: 21 | W79: 399000
R80: 2013-07-24 | S80: 신세계 통상 | T80: 특제 굴 통조림 | U80: 19000 | V80: 55 | W80: 1045000
R81: 2013-07-27 | S81: 한진 교역 | T81: 트로피컬 칵테일 | U81: 15000 | V81: 15 | W81: 225000
R82: 2013-08-01 | S82: 미성 백화점 | T82: 트로피컬 칵테일 | U82: 15000 | V82: 20 | W82: 300000
R83: 2013-08-07 | S83: 우주 상사 | T83: 원양 순 상어알 | U83: 15000 | V83: 35 | W83: 525000
R84: 2013-08-17 | S84: 신세계 통상 | T84: 트로피컬 칵테일 | U84: 15000 | V84: 15 | W84: 225000
R85: 2013-08-22 | S85: 우주 상사 | T85: 특제 굴 통조림 | U85: 19000 | V85: 15 | W85: 285000
R86: 2013-08-23 | S86: 미성 백화점 | T86: 알파 샐러드 드레싱 | U86: 13000 | V86: 35 | W86: 455000
R87: 2013-09-01 | S87: 동방 무역 | T87: 알파 샐러드 드레싱 | U87: 13000 | V87: 70 | W87: 910000
R88: 2013-09-01 | S88: 한진 교역 | T88: 트로피컬 칵테일 | U88: 15000 | V88: 40 | W88: 600000
R89: 2013-09-11 | S89: 미성 백화점 | T89: 특제 굴 통조림 | U89: 19000 | V89: 30 | W89: 570000
R90: 2013-09-12 | S90: 신세계 통상 | T90: 원양 순 상어알 | U90: 15000 | V90: 50 | W90: 750000
R91: 2013-09-26 | S91: 동방 무역 | T91: 앨리스 포장육 | U91: 39000 | V91: 30 | W91: 1170000
R92: 2013-09-26 | S92: 우주 상사 | T92: 특제 굴 통조림 | U92: 19000 | V92: 6 | W92: 114000
R93: 2013-09-28 | S93: 신세계 통상 | T93: 알파 샐러드 드레싱 | U93: 13000 | V93: 30 | W93: 390000
R94: 2013-10-02 | S94: 우주 상사 | T94: 원양 순 상어알 | U94: 15000 | V94: 15 | W94: 225000
R95: 2013-10-02 | S95: 동방 무역 | T95: 트로피컬 칵테일 | U95: 15000 | V95: 50 | W95: 750000
R96: 2013-10-04 | S96: 우주 상사 | T96: 앨리스 포장육 | U96: 39000 | V96: 20 | W96: 780000
R97: 2013-10-04 | S97: 우주 상사 | T97: 트로피컬 칵테일 | U97: 15000 | V97: 30 | W97: 450000
R98: 2013-10-05 | S98: 한진 교역 | T98: 앨리스 포장육 | U98: 39000 | V98: 8 | W98: 312000
R99: 2013-10-05 | S99: 동방 무역 | T99: 트로피컬 칵테일 | U99: 15000 | V99: 8 | W99: 120000
R100: 2013-10-10 | S100: 미성 백화점 | T100: 원양 순 상어알 | U100: 15000 | V100: 35 | W100: 525000
R101: 2013-10-12 | S101: 신세계 통상 | T101: 트로피컬 칵테일 | U101: 15000 | V101: 28 | W101: 420000
R102: 2013-10-13 | S102: 신세계 통상 | T102: 특제 굴 통조림 | U102: 19000 | V102: 5 | W102: 95000
R103: 2013-10-18 | S103: 한진 교역 | T103: 앨리스 포장육 | U103: 39000 | V103: 27 | W103: 1053000
R104: 2013-10-23 | S104: 미성 백화점 | T104: 특제 굴 통조림 | U104: 19000 | V104: 40 | W104: 760000
R105: 2013-10-30 | S105: 한진 교역 | T105: 앨리스 포장육 | U105: 39000 | V105: 20 | W105: =U105*V105 -> 780000
R106: 2013-11-06 | S106: 우주 상사 | T106: 알파 샐러드 드레싱 | U106: 13000 | V106: 2 | W106: =U106*V106 -> 26000
R107: 2013-11-08 | S107: 한진 교역 | T107: 특제 굴 통조림 | U107: 19000 | V107: 6 | W107: =U107*V107 -> 114000
R108: 2013-11-20 | S108: 동방 무역 | T108: 원양 순 상어알 | U108: 15000 | V108: 15 | W108: =U108*V108 -> 225000

Sheet 문서1_기초
A1: 핸드폰 판매량 현황
A3: 제품코드 | B3: 제조사 | C3: 가입유형 | D3: 요금제 | E3: 약정기간 | F3: 제품가 | G3: 판매량
A4: ST-01-A | B4: 상승전자 | C4: 신규가입 | D4: LTE 40 | E4: 24개월 | F4: 560000 | G4: 485
A5: ST-01-B | B5: LT전자 | C5: 번호이동 | D5: LTE 50 | E5: 36개월 | F5: 655000 | G5: 884
A6: ST-01-C | B6: HD전자 | C6: 기기변경 | D6: LTE 60 | E6: 12개월 | F6: 545000 | G6: 623
A7: ST-01-D | B7: 한국전자 | C7: 신규가입 | D7: LTE 70 | E7: 24개월 | F7: 750000 | G7: 253
A8: AL-02-A | B8: 상승전자 | C8: 신규가입 | D8: LTE 40 | E8: 24개월 | F8: 650000 | G8: 687
A9: AL-02-B | B9: LT전자 | C9: 번호이동 | D9: LTE 50 | E9: 36개월 | F9: 575000 | G9: 541
A10: AL-02-C | B10: HD전자 | C10: 기기변경 | D10: LTE 60 | E10: 12개월 | F10: 685000 | G10: 865
A11: AL-02-D | B11: 한국전자 | C11: 신규가입 | D11: LTE 70 | E11: 24개월 | F11: 780000 | G11: 517
A12: UP-01-A | B12: 상승전자 | C12: 신규가입 | D12: LTE 40 | E12: 24개월 | F12: 590000 | G12: 347
A13: UP-01-B | B13: LT전자 | C13: 번호이동 | D13: LTE 50 | E13: 36개월 | F13: 665000 | G13: 955
A14: UP-01-C | B14: HD전자 | C14: 기기변경 | D14: LTE 60 | E14: 12개월 | F14: 550000 | G14: 347
A15: UP-01-D | B15: 한국전자 | C15: 신규가입 | D15: LTE 70 | E15: 24개월 | F15: 795000 | G15: 438

Sheet 문서1_기초 (정답파일)
A1: ♥핸드폰 판매량 현황♥
A3: 제품코드 | B3: 제조사 | C3: 가입유형 | D3: 요금제 | E3: 약정기간 | F3: 제품가 | G3: 販賣量
A4: ST-01-A | B4: 상승전자 | C4: 신규가입 | D4: LTE 40 | E4: 24개월 | F4: 560000 | G4: 485
A5: ST-01-B | B5: LT전자 | C5: 번호이동 | D5: LTE 50 | E5: 36개월 | F5: 655000 | G5: 884
A6: ST-01-C | B6: HD전자 | C6: 기기변경 | D6: LTE 60 | E6: 12개월 | F6: 545000 | G6: 623
A7: ST-01-D | B7: 한국전자 | C7: 신규가입 | D7: LTE 70 | E7: 24개월 | F7: 750000 | G7: 253
A8: AL-02-A | B8: 상승전자 | C8: 신규가입 | D8: LTE 40 | E8: 24개월 | F8: 650000 | G8: 687
A9: AL-02-B | B9: LT전자 | C9: 번호이동 | D9: LTE 50 | E9: 36개월 | F9: 575000 | G9: 541
A10: AL-02-C | B10: HD전자 | C10: 기기변경 | D10: LTE 60 | E10: 12개월 | F10: 685000 | G10: 865
A11: AL-02-D | B11: 한국전자 | C11: 신규가입 | D11: LTE 70 | E11: 24개월 | F11: 780000 | G11: 517
A12: UP-01-A | B12: 상승전자 | C12: 신규가입 | D12: LTE 40 | E12: 24개월 | F12: 590000 | G12: 347
A13: UP-01-B | B13: LT전자 | C13: 번호이동 | D13: LTE 50 | E13: 36개월 | F13: 665000 | G13: 955
A14: UP-01-C | B14: HD전자 | C14: 기기변경 | D14: LTE 60 | E14: 12개월 | F14: 550000 | G14: 347
A15: UP-01-D | B15: 한국전자 | C15: 신규가입 | D15: LTE 70 | E15: 24개월 | F15: 795000 | G15: 438

Sheet 문서1-견적서
A1: _
G2: www.seeds21.co.kr
A3: 수신 : | B3: 한림대학교 체육학부 | F3: 상호 | G3: 씨앗컴퓨터학원
A4: 참조 : | B4: 이 승 준 님 | F4: 사업자 등록번호 | G4: 221-90-46415
A5: TEL : | B5: 033-248-2757(2250) | F5: 주소 | G5: 강원도 춘천시 후평3동 891-11
A6: FAX : | F6: 전호번호 | G6: 033) 252-0179 | H6: 팩스번호 | I6: 033-253-8150
A7: 아래와 같이 견적합니다. | F7: 담당 | G7: 기풍쌤 | H7: 담당 전화번호 | I7: 010-3078-0179
C9: 합계금액 | E9: ( | F9: =H30 -> 6429500 | I9: 원정)
A10: 과목 | C10: 기간 | D10: 타임 | E10: 가격 | F10: 단위 | G10: 수강인원 | H10: 합계 | I10: 비고
A12: 컴활2급필기 | C12: 2주 | D12: 20 | E12: 70000 | F12: 원 | G12: 35 | H12: =E12*G12 -> 2450000
A13: 컴활2급실기 | C13: 2주 | D13: 20 | E13: 70000 | F13: 원 | G13: 35 | H13: =E13*G13 -> 2450000
A14: 필기교재 | E14: 5000 | F14: 원 | G14: 35 | H14: 175000
A15: 실기교재 | E15: 15000 | F15: 원 | G15: 35 | H15: 525000
A16: 필기시험접수료 | E16: 10700 | F16: 원 | G16: 35 | H16: 374500
A17: 실기시험접수료 | E17: 13000 | F17: 원 | G17: 35 | H17: 455000
H18: 0
H19: 0
H20: 0
H21: 0
H22: 0
H23: 0
H24: 0
H25: 0
H26: 0
H27: 0
H28: 0
H29: 0
A30: 합계 | H30: =SUM(H12:H29) -> 6429500

Sheet 문서1-연습

Sheet 문서2-강의이력서
B2: ( 사 진 ) | F2: 강의이력서
F3: 성명 | J3: 주민등록번호
F5: 연락처 | J5: 휴대전화
F6: 현주소
B7: 학력사항
B8: 학위과정 | F8: 기간 | I8: 학교명 | J8: 전공과목 | K8: 수료 | L8: 졸업
G9: ∼
G10: ∼
G11: ∼
B12: 강의 경력 사항
B13: 근무년월 | F13: 기간 | I13: 근무처 | J13: 직위 | K13: 주강의시수 | L13: 비고
C14: 년 | E14: 개월 | G14: ∼
C15: 년 | E15: 개월 | G15: ∼
C16: 년 | E16: 개월 | G16: ∼
C17: 년 | E17: 개월 | G17: ∼
C18: 년 | E18: 개월 | G18: ∼
C19: 년 | E19: 개월 | G19: ∼
C20: 년 | E20: 개월 | G20: ∼
C21: 년 | E21: 개월 | G21: ∼
C22: 년 | E22: 개월 | G22: ∼
C23: 년 | E23: 개월 | G23: ∼
B24: 전공 경력 사항
B25: 근무년월 | F25: 기간 | I25: 근무처 | J25: 직위 | K25: 자 격 증
C26: 년 | E26: 개월 | G26: ∼
C27: 년 | E27: 개월 | G27: ∼
C28: 년 | E28: 개월 | G28: ∼
C29: 년 | E29: 개월 | G29: ∼
C30: 년 | E30: 개월 | G30: ∼
B31: 상기 사항은 사실과 틀림이 없습니다.
B32: 2004-06-15
L34: (인)

Sheet 문서2-연습

Sheet 문서3-세금계산서
B2: [별지 제1호 서식] | AE2: [청색]
B3: 계 산 서 | N3: ( | O3: 공급받는자 보 관 용 | S3: ) | W3: 책 번 호 | AC3: 권 | AG3: 호
W4: 일련번호 | AC4: ―
B5: 공 급 자 | C5: 등록번호 | F5: 2 | G5: 2 | H5: 1 | I5: ― | J5: 9 | K5: 0 | L5: ― | M5: 4 | N5: 6 | O5: 4 | P5: 1 | Q5: 5 | R5: 공급받는자 | S5: 등록번호 | Y5: ― | AB5: ―
C6: 상 호 (법인명) | F6: 씨앗컴퓨터학원 | L6: 성명 | M6: 이원기 | S6: 상 호 (법인명) | AB6: 성명
C8: 사 업 장 주 소 | F8: 강원도 춘천시 후평3동 891-11 | S8: 사 업 장 주 소
C10: 업 태 | F10: 교육.서비스 | L10: 종목 | M10: 컴퓨터학원 | S10: 업 태 | AB10: 종목
B12: 작 성 | F12: 공 급 가 액 | S12: 비 고
B13: 년 | D13: 월 | E13: 일 | F13: 공란수 | H13: 백 | I13: 십 | J13: 억 | K13: 천 | L13: 백 | M13: 십 | N13: 만 | O13: 천 | P13: 백 | Q13: 십 | R13: 일
B14: 2011 | D14: 10 | E14: 12 | L14: 1 | M14: 8 | N14: 0 | O14: 0 | P14: 0 | Q14: 0 | R14: 0
B15: 월 | C15: 일 | D15: 품 목 | J15: 규 격 | M15: 수 량 | P15: 단 가 | U15: 공 급 가 액 | AA15: 비고
B20: 합계금액 | G20: 현 금 | L20: 수 표 | Q20: 어 음 | V20: 외상미수금 | AA20: 위 금액을 | AE20: 영수 | AG20: 함.
B21: =SUM(U16:AD19) -> 0
B22: 22226-28131일 ’96.3.27승인 | W22: 인쇄용지(특급)34g/m2 182mm×128mm
B25: [별지 제11호 서식] | AE25: [적색]
B26: 계 산 서 | N26: ( | O26: 공 급 자 보 관 용 | S26: ) | W26: 책 번 호 | AA26: =IF(ISBLANK(AA3),"",AA3) ->  | AC26: 권 | AD26: =IF(ISBLANK(AD3),"",AD3) ->  | AG26: 호
W27: 일련번호 | AA27: =IF(ISBLANK(AA4),"",AA4) ->  | AB27: =IF(ISBLANK(AB4),"",AB4) ->  | AC27: ― | AD27: =IF(ISBLANK(AD4),"",AD4) ->  | AE27: =IF(ISBLANK(AE4),"",AE4) -> 
B28: 공 급 자 | C28: 등록번호 | F28: =IF(ISBLANK(F5),"",F5) -> 2 | G28: =IF(ISBLANK(G5),"",G5) -> 2 | H28: =IF(ISBLANK(H5),"",H5) -> 1 | I28: ― | J28: =IF(ISBLANK(J5),"",J5) -> 9 | K28: =IF(ISBLANK(K5),"",K5) -> 0 | L28: ― | M28: =IF(ISBLANK(M5),"",M5) -> 4 | N28: =IF(ISBLANK(N5),"",N5) -> 6 | O28: =IF(ISBLANK(O5),"",O5) -> 4 | P28: 1 | Q28: 5 | R28: 공급받는자 | S28: 등록번호 | V28: =IF(ISBLANK(V5),"",V5) ->  | W28: =IF(ISBLANK(W5),"",W5) ->  | X28: =IF(ISBLANK(X5),"",X5) ->  | Y28: ― | Z28: =IF(ISBLANK(Z5),"",Z5) ->  | AA28: =IF(ISBLANK(AA5),"",AA5) ->  | AB28: ― | AC28: =IF(ISBLANK(AC5),"",AC5) ->  | AD28: =IF(ISBLANK(AD5),"",AD5) -> 
C29: 상 호 (법인명) | L29: 성명 | M29: =IF(ISBLANK(M6),"",M6) -> 이원기 | S29: 상 호 (법인명) | V29: =IF(ISBLANK(V6),"",V6) ->  | AB29: 성명 | AC29: =IF(ISBLANK(AC6),"",AC6) -> 
C31: 사 업 장 주 소 | F31: =IF(ISBLANK(F8),"",F8) -> 강원도 춘천시 후평3동 891-11 | S31: 사 업 장 주 소 | V31: =IF(ISBLANK(V8),"",V8) -> 
C33: 업 태 | F33: =IF(ISBLANK(F10),"",F10) -> 교육.서비스 | L33: 종목 | M33: =IF(ISBLANK(M10),"",M10) -> 컴퓨터학원 | S33: 업 태 | V33: =IF(ISBLANK(V10),"",V10) ->  | AB33: 종목 | AC33: =IF(ISBLANK(AC10),"",AC10) -> 
B35: 작 성 | F35: 공 급 가 액 | S35: 비 고
B36: 년 | D36: 월 | E36: 일 | F36: 공란수 | H36: 백 | I36: 십 | J36: 억 | K36: 천 | L36: 백 | M36: 십 | N36: 만 | O36: 천 | P36: 백 | Q36: 십 | R36: 일
B37: =IF(ISBLANK(B14),"",B14) -> 2011 | D37: =IF(ISBLANK(D14),"",D14) -> 10 | E37: 12 | L37: 1 | M37: 8 | N37: 0 | O37: 0 | P37: 0 | Q37: 0 | R37: 0
B38: 월 | C38: 일 | D38: 품 목 | J38: 규 격 | M38: 수 량 | P38: 단 가 | U38: 공 급 가 액 | AA38: 비고
B39: =IF(ISBLANK(B16),"",B16) -> 
B43: 합계금액 | G43: 현 금 | L43: 수 표 | Q43: 어 음 | V43: 외상미수금 | AA43: 위 금액을 | AE43: =IF(ISBLANK(AE20),"",AE20) -> 영수 | AG43: 함.
B44: =IF(ISBLANK(B21),"",B21) -> 0
B45: 22226-28131일 ’96.3.27승인 | W45: 인쇄용지(특급)34g/m2 182mm×128mm

Sheet 문서3-연습

Sheet 자동필터_1
A1: 사무용품 관리 현황
A3: 제품코드 | B3: 제품명 | C3: 입고일 | D3: 입고량 | E3: 판매가 | F3: 할인율 | G3: 판매량 | H3: 총판매액
A4: GI495 | B4: 가위 | C4: 2016-06-29 | D4: 100 | E4: 3500 | F4: 0.1 | G4: 57 | H4: =E4*G4-E4*F4*G4 -> 179550
A5: PE672 | B5: 형광펜 | C5: 2016-06-29 | D5: 200 | E5: 2500 | F5: 0.15 | G5: 168 | H5: =E5*G5-E5*F5*G5 -> 357000
A6: TM891 | B6: 투명테이프 | C6: 2016-06-29 | D6: 180 | E6: 1500 | F6: 0.05 | G6: 162 | H6: 230850
A7: AH938 | B7: A3 용지 | C7: 2016-06-29 | D7: 50 | E7: 8500 | F7: 0.1 | G7: 26 | H7: 198900
A8: QZ349 | B8: 볼펜 | C8: 2016-06-29 | D8: 300 | E8: 1200 | F8: 0.05 | G8: 268 | H8: 305520
A9: AH128 | B9: A4 용지 | C9: 2016-06-30 | D9: 100 | E9: 8000 | F9: 0.05 | G9: 68 | H9: 516800
A10: TM234 | B10: 양면테이프 | C10: 2016-06-30 | D10: 250 | E10: 1800 | F10: 0.15 | G10: 245 | H10: 374850
A11: BB384 | B11: 포스트잇 | C11: 2016-06-30 | D11: 150 | E11: 2000 | F11: 0.15 | G11: 128 | H11: 217600
A12: TM511 | B12: 박스테이프 | C12: 2016-06-30 | D12: 200 | E12: 1000 | F12: 0.05 | G12: 133 | H12: 126350
A13: DO933 | B13: 칼 | C13: 2016-06-30 | D13: 150 | E13: 1600 | F13: 0.1 | G13: 144 | H13: 207360
A14: TM394 | B14: 라벨테이프 | C14: 2016-07-01 | D14: 320 | E14: 2200 | F14: 0.15 | G14: 299 | H14: 559130
A15: CB685 | B15: 스탬프 | C15: 2016-07-01 | D15: 200 | E15: 3500 | F15: 0.05 | G15: 172 | H15: 571900
A16: WD485 | B16: 수정액 | C16: 2016-07-01 | D16: 150 | E16: 2400 | F16: 0.15 | G16: 134 | H16: 273360
A17: TM735 | B17: 청테이프 | C17: 2016-07-01 | D17: 350 | E17: 1400 | F17: 0.05 | G17: 328 | H17: 436240
A18: SU816 | B18: 샤프 | C18: 2016-07-01 | D18: 250 | E18: 2100 | F18: 0.1 | G18: 216 | H18: 408240

Sheet 자동필터_1-정답
A1: 사무용품 관리 현황
A3: 제품코드 | B3: 제품명 | C3: 입고일 | D3: 입고량 | E3: 판매가 | F3: 할인율 | G3: 판매량 | H3: 총판매액
A4: GI495 | B4: 가위 | C4: 2016-06-29 | D4: 100 | E4: 3500 | F4: 0.1 | G4: 57 | H4: =E4*G4-E4*F4*G4 -> 179550
A5: PE672 | B5: 형광펜 | C5: 2016-06-29 | D5: 200 | E5: 2500 | F5: 0.15 | G5: 168 | H5: =E5*G5-E5*F5*G5 -> 357000
A6: TM891 | B6: 투명테이프 | C6: 2016-06-29 | D6: 180 | E6: 1500 | F6: 0.05 | G6: 162 | H6: 230850
A7: AH938 | B7: A3 용지 | C7: 2016-06-29 | D7: 50 | E7: 8500 | F7: 0.1 | G7: 26 | H7: 198900
A8: QZ349 | B8: 볼펜 | C8: 2016-06-29 | D8: 300 | E8: 1200 | F8: 0.05 | G8: 268 | H8: 305520
A9: AH128 | B9: A4 용지 | C9: 2016-06-30 | D9: 100 | E9: 8000 | F9: 0.05 | G9: 68 | H9: 516800
A10: TM234 | B10: 양면테이프 | C10: 2016-06-30 | D10: 250 | E10: 1800 | F10: 0.15 | G10: 245 | H10: 374850
A11: BB384 | B11: 포스트잇 | C11: 2016-06-30 | D11: 150 | E11: 2000 | F11: 0.15 | G11: 128 | H11: 217600
A12: TM511 | B12: 박스테이프 | C12: 2016-06-30 | D12: 200 | E12: 1000 | F12: 0.05 | G12: 133 | H12: 126350
A13: DO933 | B13: 칼 | C13: 2016-06-30 | D13: 150 | E13: 1600 | F13: 0.1 | G13: 144 | H13: 207360
A14: TM394 | B14: 라벨테이프 | C14: 2016-07-01 | D14: 320 | E14: 2200 | F14: 0.15 | G14: 299 | H14: 559130
A15: CB685 | B15: 스탬프 | C15: 2016-07-01 | D15: 200 | E15: 3500 | F15: 0.05 | G15: 172 | H15: 571900
A16: WD485 | B16: 수정액 | C16: 2016-07-01 | D16: 150 | E16: 2400 | F16: 0.15 | G16: 134 | H16: 273360
A17: TM735 | B17: 청테이프 | C17: 2016-07-01 | D17: 350 | E17: 1400 | F17: 0.05 | G17: 328 | H17: 436240
A18: SU816 | B18: 샤프 | C18: 2016-07-01 | D18: 250 | E18: 2100 | F18: 0.1 | G18: 216 | H18: 408240

Sheet 자동필터(예제)
B1: 대리점별 보트 판매현황
B3: 지역 | C3: 대리점명 | D3: 계획수량 | E3: 판매수량 | F3: 초과판매 | G3: 실적률 | H3: 순위
B4: 인천 | C4: 영남 | D4: 210 | E4: 220 | F4: 10 | G4: 1.047619048 | H4: 8
B5: 강북 | C5: 강산 | D5: 140 | E5: 170 | F5: 30 | G5: 1.214285714 | H5: 4
B6: 강남 | C6: 백야 | D6: 120 | E6: 150 | F6: 30 | G6: 1.25 | H6: 1
B7: 부산 | C7: 광야 | D7: 180 | E7: 220 | F7: 40 | G7: 1.222222222 | H7: 3
B8: 광주 | C8: 정일 | D8: 150 | E8: 180 | F8: 30 | G8: 1.2 | H8: 5
B9: 대전 | C9: 남산 | D9: 120 | E9: 130 | F9: 10 | G9: 1.083333333 | H9: 7
B10: 청주 | C10: 장산 | D10: 150 | E10: 155 | F10: 5 | G10: 1.033333333 | H10: 9
B11: 전주 | C11: 국제 | D11: 350 | E11: 390 | F11: 40 | G11: 1.114285714 | H11: 6
B12: 대구 | C12: 동문 | D12: 190 | E12: 235 | F12: 45 | G12: 1.236842105 | H12: 3

Sheet 자동필터(결과)
B1: 대리점별 보트 판매현황
B3: 지역 | C3: 대리점명 | D3: 계획수량 | E3: 판매수량 | F3: 초과판매 | G3: 실적률 | H3: 순위
B4: 인천 | C4: 영남 | D4: 210 | E4: 220 | F4: 10 | G4: 1.047619048 | H4: 8
B5: 강북 | C5: 강산 | D5: 140 | E5: 170 | F5: 30 | G5: 1.214285714 | H5: 4
B6: 강남 | C6: 백야 | D6: 120 | E6: 150 | F6: 30 | G6: 1.25 | H6: 1
B7: 부산 | C7: 광야 | D7: 180 | E7: 220 | F7: 40 | G7: 1.222222222 | H7: 3
B8: 광주 | C8: 정일 | D8: 150 | E8: 180 | F8: 30 | G8: 1.2 | H8: 5
B9: 대전 | C9: 남산 | D9: 120 | E9: 130 | F9: 10 | G9: 1.083333333 | H9: 7
B10: 청주 | C10: 장산 | D10: 150 | E10: 155 | F10: 5 | G10: 1.033333333 | H10: 9
B11: 전주 | C11: 국제 | D11: 350 | E11: 390 | F11: 40 | G11: 1.114285714 | H11: 6
B12: 대구 | C12: 동문 | D12: 190 | E12: 235 | F12: 45 | G12: 1.236842105 | H12: 3

Sheet 고급필터
A3: 고객번호 | B3: 이름 | C3: 성별 | D3: 1월 구매실적 | E3: 2월 구매실적 | F3: 3월 구매실적 | G3: 최종주문일 | H3: 주문횟수
A4: PR-002 | B4: 김한응 | C4: 남 | D4: 135000 | E4: 55000 | F4: 135000 | G4: 2009-03-21 | H4: 25
A5: PR-016 | B5: 강흥석 | C5: 남 | D5: 140520 | E5: 135000 | F5: 152000 | G5: 2009-03-18 | H5: 24
A6: SP-006 | B6: 김미현 | C6: 남 | D6: 37000 | E6: 135000 | F6: 78000 | G6: 2009-03-18 | H6: 23
A7: SP-008 | B7: 한미우 | C7: 남 | D7: 7000 | E7: 38700 | F7: 122500 | G7: 2009-03-13 | H7: 19
A8: PR-004 | B8: 한성현 | C8: 남 | D8: 38700 | E8: 78000 | F8: 38700 | G8: 2009-03-12 | H8: 18
A9: NO-011 | B9: 홍길동 | C9: 남 | D9: 34170 | E9: 78000 | F9: 34630 | G9: 2009-03-11 | H9: 17
A10: NO-013 | B10: 박은미 | C10: 여 | D10: 34630 | E10: 122500 | F10: 552200 | G10: 2009-03-24 | H10: 30
A11: SP-005 | B11: 이지영 | C11: 여 | D11: 135000 | E11: 178000 | F11: 120200 | G11: 2009-03-23 | H11: 27
A12: PR-009 | B12: 이미라 | C12: 여 | D12: 78000 | E12: 2020 | F12: 135000 | G12: 2009-03-16 | H12: 22
A13: PR-011 | B13: 고수정 | C13: 여 | D13: 122500 | E13: 140520 | F13: 78000 | G13: 2009-03-22 | H13: 21
A14: PR-006 | B14: 정은희 | C14: 여 | D14: 55000 | E14: 122500 | F14: 12500 | G14: 2009-03-15 | H14: 20
A15: NO-001 | B15: 이정은 | C15: 여 | D15: 0 | E15: 135000 | F15: 140520 | G15: 2009-03-18 | H15: 15

Sheet 고급필터(결과)
A3: 고객번호 | B3: 이름 | C3: 성별 | D3: 1월 구매실적 | E3: 2월 구매실적 | F3: 3월 구매실적 | G3: 최종주문일 | H3: 주문횟수
A4: PR-002 | B4: 김한응 | C4: 남 | D4: 135000 | E4: 55000 | F4: 135000 | G4: 2009-03-21 | H4: 25
A5: PR-016 | B5: 강흥석 | C5: 남 | D5: 140520 | E5: 135000 | F5: 152000 | G5: 2009-03-18 | H5: 24
A6: SP-006 | B6: 김미현 | C6: 남 | D6: 37000 | E6: 135000 | F6: 78000 | G6: 2009-03-18 | H6: 23
A7: SP-008 | B7: 한미우 | C7: 남 | D7: 7000 | E7: 38700 | F7: 122500 | G7: 2009-03-13 | H7: 19
A8: PR-004 | B8: 한성현 | C8: 남 | D8: 38700 | E8: 78000 | F8: 38700 | G8: 2009-03-12 | H8: 18
A9: NO-011 | B9: 홍길동 | C9: 남 | D9: 34170 | E9: 78000 | F9: 34630 | G9: 2009-03-11 | H9: 17
A10: NO-013 | B10: 박은미 | C10: 여 | D10: 34630 | E10: 122500 | F10: 552200 | G10: 2009-03-24 | H10: 30
A11: SP-005 | B11: 이지영 | C11: 여 | D11: 135000 | E11: 178000 | F11: 120200 | G11: 2009-03-23 | H11: 27
A12: PR-009 | B12: 이미라 | C12: 여 | D12: 78000 | E12: 2020 | F12: 135000 | G12: 2009-03-16 | H12: 22
A13: PR-011 | B13: 고수정 | C13: 여 | D13: 122500 | E13: 140520 | F13: 78000 | G13: 2009-03-22 | H13: 21
A14: PR-006 | B14: 정은희 | C14: 여 | D14: 55000 | E14: 122500 | F14: 12500 | G14: 2009-03-15 | H14: 20
A15: NO-001 | B15: 이정은 | C15: 여 | D15: 0 | E15: 135000 | F15: 140520 | G15: 2009-03-18 | H15: 15
A18: 성별 | B18: 주문횟수
A19: 남 | B19: >=20
A22: 고객번호 | B22: 이름 | C22: 1월 구매실적 | D22: 2월 구매실적 | E22: 3월 구매실적
A23: PR-002 | B23: 김한응 | C23: 135000 | D23: 55000 | E23: 135000
A24: PR-016 | B24: 강흥석 | C24: 140520 | D24: 135000 | E24: 152000
A25: SP-006 | B25: 김미현 | C25: 37000 | D25: 135000 | E25: 78000

Sheet 조건부서식1(예제)
A1: 4사분기 지출현황
A3: 항목 | B3: 품목 | C3: 10월 | D3: 11월 | E3: 12월 | F3: 합계
A4: 문화생활 | B4: 케이블TV | C4: 2000 | D4: 2000 | E4: 2000 | F4: =SUM(C4:E4) -> 6000
A5: 세금 | B5: 전화요금 | C5: 4000 | D5: 3500 | E5: 5000 | F5: 12500
A6: 세금 | B6: 가스요금 | C6: 5200 | D6: 4200 | E6: 4000 | F6: 13400
A7: 문화생활 | B7: 신문대금 | C7: 12000 | D7: 12000 | E7: 12000 | F7: 36000
A8: 문화생활 | B8: 문화생활 | C8: 20000 | D8: 15000 | E8: 60000 | F8: 95000
A9: 일상경비 | B9: 교통비 | C9: 26000 | D9: 18000 | E9: 20000 | F9: 64000
A10: 일상경비 | B10: 생활용품 | C10: 32000 | D10: 120000 | E10: 60000 | F10: 212000
A11: 자동차 | B11: 자동차용품 | C11: 35000 | D11: 12000 | E11: 0 | F11: 47000
A12: 일상경비 | B12: 반찬값 | C12: 45000 | D12: 52000 | E12: 50000 | F12: 147000
A13: 일상경비 | B13: 의류구입 | C13: 60000 | D13: 20000 | E13: 10000 | F13: 90000
A14: 자동차 | B14: 자동차기름 | C14: 60000 | D14: 80000 | E14: 150000 | F14: 290000
A15: 양육비 | B15: 아기식비 | C15: 75000 | D15: 80000 | E15: 65000 | F15: 220000
A16: 양육비 | B16: 아기용품 | C16: 80000 | D16: 60000 | E16: 75000 | F16: 215000
A17: 세금 | B17: 관리비 | C17: 150000 | D17: 160000 | E17: 160000 | F17: 470000

Sheet 조건부서식1(결과)
A1: 4사분기 지출현황
A3: 항목 | B3: 품목 | C3: 10월 | D3: 11월 | E3: 12월 | F3: 합계
A4: 문화생활 | B4: 케이블TV | C4: 2000 | D4: 2000 | E4: 2000 | F4: =SUM(C4:E4) -> 6000
A5: 세금 | B5: 전화요금 | C5: 4000 | D5: 3500 | E5: 5000 | F5: 12500
A6: 세금 | B6: 가스요금 | C6: 5200 | D6: 4200 | E6: 4000 | F6: 13400
A7: 문화생활 | B7: 신문대금 | C7: 12000 | D7: 12000 | E7: 12000 | F7: 36000
A8: 문화생활 | B8: 문화생활 | C8: 20000 | D8: 15000 | E8: 60000 | F8: 95000
A9: 일상경비 | B9: 교통비 | C9: 26000 | D9: 18000 | E9: 20000 | F9: 64000
A10: 일상경비 | B10: 생활용품 | C10: 32000 | D10: 120000 | E10: 60000 | F10: 212000
A11: 자동차 | B11: 자동차용품 | C11: 35000 | D11: 12000 | E11: 0 | F11: 47000
A12: 일상경비 | B12: 반찬값 | C12: 45000 | D12: 52000 | E12: 50000 | F12: 147000
A13: 일상경비 | B13: 의류구입 | C13: 60000 | D13: 20000 | E13: 10000 | F13: 90000
A14: 자동차 | B14: 자동차기름 | C14: 60000 | D14: 80000 | E14: 150000 | F14: 290000
A15: 양육비 | B15: 아기식비 | C15: 75000 | D15: 80000 | E15: 65000 | F15: 220000
A16: 양육비 | B16: 아기용품 | C16: 80000 | D16: 60000 | E16: 75000 | F16: 215000
A17: 세금 | B17: 관리비 | C17: 150000 | D17: 160000 | E17: 160000 | F17: 470000

Sheet 조건부서식2(예제)
A3: 고객번호 | B3: 이름 | C3: 성별 | D3: 1월 구매실적 | E3: 2월 구매실적 | F3: 3월 구매실적 | G3: 최종주문일 | H3: 주문횟수
A4: PR-002 | B4: 김한응 | C4: 남 | D4: 135000 | E4: 55000 | F4: 135000 | G4: 2009-03-21 | H4: 25
A5: PR-016 | B5: 강흥석 | C5: 남 | D5: 140520 | E5: 135000 | F5: 152000 | G5: 2009-03-18 | H5: 24
A6: SP-006 | B6: 김미현 | C6: 남 | D6: 37000 | E6: 135000 | F6: 78000 | G6: 2009-03-18 | H6: 23
A7: SP-008 | B7: 한미우 | C7: 남 | D7: 7000 | E7: 38700 | F7: 122500 | G7: 2009-03-13 | H7: 19
A8: PR-004 | B8: 한성현 | C8: 남 | D8: 38700 | E8: 78000 | F8: 38700 | G8: 2009-03-12 | H8: 18
A9: NO-011 | B9: 홍길동 | C9: 남 | D9: 34170 | E9: 78000 | F9: 34630 | G9: 2009-03-11 | H9: 17
A10: NO-013 | B10: 박은미 | C10: 여 | D10: 34630 | E10: 122500 | F10: 552200 | G10: 2009-03-24 | H10: 30
A11: SP-005 | B11: 이지영 | C11: 여 | D11: 135000 | E11: 178000 | F11: 120200 | G11: 2009-03-23 | H11: 27
A12: PR-009 | B12: 이미라 | C12: 여 | D12: 78000 | E12: 2020 | F12: 135000 | G12: 2009-03-16 | H12: 22
A13: PR-011 | B13: 고수정 | C13: 여 | D13: 122500 | E13: 140520 | F13: 78000 | G13: 2009-03-22 | H13: 21
A14: PR-006 | B14: 정은희 | C14: 여 | D14: 55000 | E14: 122500 | F14: 12500 | G14: 2009-03-15 | H14: 20
A15: NO-001 | B15: 이정은 | C15: 여 | D15: 0 | E15: 135000 | F15: 140520 | G15: 2009-03-18 | H15: 15

Sheet 조건부서식2(결과)
A3: 고객번호 | B3: 이름 | C3: 성별 | D3: 1월 구매실적 | E3: 2월 구매실적 | F3: 3월 구매실적 | G3: 최종주문일 | H3: 주문횟수
A4: PR-002 | B4: 김한응 | C4: 남 | D4: 135000 | E4: 55000 | F4: 135000 | G4: 2009-03-21 | H4: 25
A5: PR-016 | B5: 강흥석 | C5: 남 | D5: 140520 | E5: 135000 | F5: 152000 | G5: 2009-03-18 | H5: 24
A6: SP-006 | B6: 김미현 | C6: 남 | D6: 37000 | E6: 135000 | F6: 78000 | G6: 2009-03-18 | H6: 23
A7: SP-008 | B7: 한미우 | C7: 남 | D7: 7000 | E7: 38700 | F7: 122500 | G7: 2009-03-13 | H7: 19
A8: PR-004 | B8: 한성현 | C8: 남 | D8: 38700 | E8: 78000 | F8: 38700 | G8: 2009-03-12 | H8: 18
A9: NO-011 | B9: 홍길동 | C9: 남 | D9: 34170 | E9: 78000 | F9: 34630 | G9: 2009-03-11 | H9: 17
A10: NO-013 | B10: 박은미 | C10: 여 | D10: 34630 | E10: 122500 | F10: 552200 | G10: 2009-03-24 | H10: 30
A11: SP-005 | B11: 이지영 | C11: 여 | D11: 135000 | E11: 178000 | F11: 120200 | G11: 2009-03-23 | H11: 27
A12: PR-009 | B12: 이미라 | C12: 여 | D12: 78000 | E12: 2020 | F12: 135000 | G12: 2009-03-16 | H12: 22
A13: PR-011 | B13: 고수정 | C13: 여 | D13: 122500 | E13: 140520 | F13: 78000 | G13: 2009-03-22 | H13: 21
A14: PR-006 | B14: 정은희 | C14: 여 | D14: 55000 | E14: 122500 | F14: 12500 | G14: 2009-03-15 | H14: 20
A15: NO-001 | B15: 이정은 | C15: 여 | D15: 0 | E15: 135000 | F15: 140520 | G15: 2009-03-18 | H15: 15

Sheet 조건부서식3(예제)
A3: 소속 | B3: 사원번호 | C3: 근속년수 | D3: 기본급 | E3: 배우자 | F3: 부양가족 | G3: 자격증
A4: K-E | B4: TN-032 | C4: 0 | D4: 1200000 | E4: 1 | F4: 4 | G4: 0
A5: K-E | B5: TN-019 | C5: 7 | D5: 1900000 | E5: 1 | F5: 3 | G5: 1
A6: K-E | B6: TN-014 | C6: 9 | D6: 2300000 | E6: 1 | F6: 4 | G6: 1
A7: K-E | B7: TN-005 | C7: 14 | D7: 2900000 | E7: 1 | F7: 3 | G7: 0
A8: K-E | B8: TN-003 | C8: 16 | D8: 3000000 | E8: 1 | F8: 2 | G8: 1
A9: K-P | B9: TN-016 | C9: 8 | D9: 2000000 | E9: 1 | F9: 3 | G9: 1
A10: K-P | B10: TN-002 | C10: 16 | D10: 3000000 | E10: 1 | F10: 0 | G10: 1
A11: K-P | B11: TN-001 | C11: 16 | D11: 3000000 | E11: 0 | F11: 0 | G11: 0
A12: S-M | B12: TN-017 | C12: 8 | D12: 2000000 | E12: 1 | F12: 4 | G12: 1
A13: S-M | B13: TN-007 | C13: 13 | D13: 2500000 | E13: 1 | F13: 4 | G13: 0
A14: S-M | B14: TN-004 | C14: 15 | D14: 2900000 | E14: 1 | F14: 0 | G14: 3
A15: S-T | B15: TN-030 | C15: 2 | D15: 1300000 | E15: 1 | F15: 3 | G15: 1
A16: S-T | B16: TN-013 | C16: 10 | D16: 2300000 | E16: 1 | F16: 3 | G16: 3
A17: S-T | B17: TN-006 | C17: 13 | D17: 2500000 | E17: 1 | F17: 2 | G17: 2
A18: S-T | B18: TN-008 | C18: 13 | D18: 2500000 | E18: 0 | F18: 1 | G18: 0

Sheet 조건부서식3(결과)
A3: 소속 | B3: 사원번호 | C3: 근속년수 | D3: 기본급 | E3: 배우자 | F3: 부양가족 | G3: 자격증
A4: K-E | B4: TN-032 | C4: 0 | D4: 1200000 | E4: 1 | F4: 4 | G4: 0
A5: K-E | B5: TN-019 | C5: 7 | D5: 1900000 | E5: 1 | F5: 3 | G5: 1
A6: K-E | B6: TN-014 | C6: 9 | D6: 2300000 | E6: 1 | F6: 4 | G6: 1
A7: K-E | B7: TN-005 | C7: 14 | D7: 2900000 | E7: 1 | F7: 3 | G7: 0
A8: K-E | B8: TN-003 | C8: 16 | D8: 3000000 | E8: 1 | F8: 2 | G8: 1
A9: K-P | B9: TN-016 | C9: 8 | D9: 2000000 | E9: 1 | F9: 3 | G9: 1
A10: K-P | B10: TN-002 | C10: 16 | D10: 3000000 | E10: 1 | F10: 0 | G10: 1
A11: K-P | B11: TN-001 | C11: 16 | D11: 3000000 | E11: 0 | F11: 0 | G11: 0
A12: S-M | B12: TN-017 | C12: 8 | D12: 2000000 | E12: 1 | F12: 4 | G12: 1
A13: S-M | B13: TN-007 | C13: 13 | D13: 2500000 | E13: 1 | F13: 4 | G13: 0
A14: S-M | B14: TN-004 | C14: 15 | D14: 2900000 | E14: 1 | F14: 0 | G14: 3
A15: S-T | B15: TN-030 | C15: 2 | D15: 1300000 | E15: 1 | F15: 3 | G15: 1
A16: S-T | B16: TN-013 | C16: 10 | D16: 2300000 | E16: 1 | F16: 3 | G16: 3
A17: S-T | B17: TN-006 | C17: 13 | D17: 2500000 | E17: 1 | F17: 2 | G17: 2
A18: S-T | B18: TN-008 | C18: 13 | D18: 2500000 | E18: 0 | F18: 1 | G18: 0

Sheet 계산(예제)
A1: [표1] | B1: 품목별 판매 현황 | F1: [표2] | G1: 고공 낙하 회수별 인원
A2: 품목명 | B2: 판매수량 | C2: 판매금액 | D2: 이익금액 | F2: 낙하회수 | G2: 인원수 | H2: 누적인원수 | I2: 누계비율
A3: 샤프 | B3: 327 | C3: =B3*3000 -> 981000 | F3: 3000이상 | G3: 5 | H3: 5
A4: 연필 | B4: 370 | C4: =B4*350 -> 129500 | F4: 1000이상 | G4: 20 | H4: 25
A5: 만년필 | B5: 450 | C5: =B5*6500 -> 2925000 | F5: 500이상 | G5: 15 | H5: 40
A6: 색연필 | B6: 900 | C6: =B6*340 -> 306000 | F6: 100이상 | G6: 7 | H6: 47
A7: 볼펜 | B7: 789 | C7: =B7*220 -> 173580 | F7: 10이상 | G7: 3 | H7: 50
A8: 플러스펜 | B8: 670 | C8: =B8*550 -> 368500 | F8: 합계 | G8: =SUM(G3:G7) -> 50
B9: 마진율 | C9: 0.25
G10: [표4] | H10: 펜던트 판매 현황
A11: [표3] | B11: 사원별 수당지급현황 | G11: 월 | H11: 판매량 | I11: 매출총액
A12: 성명 | B12: 근무년수 | C12: 기본급 | D12: 상여비율 | E12: 수당 | G12: 1월 | H12: 75
A13: 홍기재 | B13: 15 | C13: 2550000 | D13: 0.15 | G13: 2월 | H13: 65
A14: 이민찬 | B14: 9 | C14: 1500000 | D14: 0.1 | G14: 3월 | H14: 56
A15: 가영수 | B15: 10 | C15: 2000000 | D15: 0.12 | G15: 4월 | H15: 76
A16: 류민완 | B16: 8 | C16: 2200000 | D16: 0.1 | G16: 5월 | H16: 56
A17: 강술래 | B17: 4 | C17: 1300000 | D17: 0.07 | G17: 6월 | H17: 85
A18: 추가 상여율 | C18: 0.06
G19: 단가 | H19: 할인율
A20: [표5] | B20: 도서 포인트 관리 | G20: 250000 | H20: 0.2
A21: 대출자 | B21: 대출권수 | C21: 연체권수 | D21: 포인트 총계
A22: 이원섭 | B22: 50 | C22: 23
A23: 최준기 | B23: 72 | C23: 14
A24: 구현서 | B24: 85 | C24: 29
A25: 안유경 | B25: 15 | C25: 2
A26: 강흥석 | B26: 78 | C26: 7
A27: 조용욱 | B27: 56 | C27: 5
A28: 대출포인트 | C28: 0.11
A29: 연체포인트 | C29: -0.06

Sheet 계산(결과)
A1: [표1] | B1: 품목별 판매 현황 | F1: [표2] | G1: 고공 낙하 회수별 인원
A2: 품목명 | B2: 판매수량 | C2: 판매금액 | D2: 이익금액 | F2: 낙하회수 | G2: 인원수 | H2: 누적인원수 | I2: 누계비율
A3: 샤프 | B3: 327 | C3: =B3*3000 -> 981000 | D3: =C3*$C$9 -> 245250 | F3: 3000이상 | G3: 5 | H3: 5 | I3: =H3/$G$8 -> 0.1
A4: 연필 | B4: 370 | C4: =B4*350 -> 129500 | D4: =C4*$C$9 -> 32375 | F4: 1000이상 | G4: 20 | H4: 25 | I4: =H4/$G$8 -> 0.5
A5: 만년필 | B5: 450 | C5: =B5*6500 -> 2925000 | D5: 731250 | F5: 500이상 | G5: 15 | H5: 40 | I5: 0.8
A6: 색연필 | B6: 900 | C6: =B6*340 -> 306000 | D6: 76500 | F6: 100이상 | G6: 7 | H6: 47 | I6: 0.94
A7: 볼펜 | B7: 789 | C7: =B7*220 -> 173580 | D7: 43395 | F7: 10이상 | G7: 3 | H7: 50 | I7: 1
A8: 플러스펜 | B8: 670 | C8: =B8*550 -> 368500 | D8: 92125 | F8: 합계 | G8: =SUM(G3:G7) -> 50
B9: 마진율 | C9: 0.25
G10: [표4] | H10: 펜던트 판매 현황
A11: [표3] | B11: 사원별 수당지급현황 | G11: 월 | H11: 판매량 | I11: 매출총액
A12: 성명 | B12: 근무년수 | C12: 기본급 | D12: 상여비율 | E12: 수당 | G12: 1월 | H12: 75 | I12: =(H12*$G$20)*(1-$H$20) -> 15000000
A13: 홍기재 | B13: 15 | C13: 2550000 | D13: 0.15 | E13: =C13+C13*(D13+$C$18) -> 3085500 | G13: 2월 | H13: 65 | I13: =(H13*$G$20)*(1-$H$20) -> 13000000
A14: 이민찬 | B14: 9 | C14: 1500000 | D14: 0.1 | E14: =C14+C14*(D14+$C$18) -> 1740000 | G14: 3월 | H14: 56 | I14: 11200000
A15: 가영수 | B15: 10 | C15: 2000000 | D15: 0.12 | E15: 2360000 | G15: 4월 | H15: 76 | I15: 15200000
A16: 류민완 | B16: 8 | C16: 2200000 | D16: 0.1 | E16: 2552000 | G16: 5월 | H16: 56 | I16: 11200000
A17: 강술래 | B17: 4 | C17: 1300000 | D17: 0.07 | E17: 1469000 | G17: 6월 | H17: 85 | I17: 17000000
A18: 추가 상여율 | C18: 0.06
G19: 단가 | H19: 할인율
A20: [표5] | B20: 도서 포인트 관리 | G20: 250000 | H20: 0.2
A21: 대출자 | B21: 대출권수 | C21: 연체권수 | D21: 포인트 총계
A22: 이원섭 | B22: 50 | C22: 23 | D22: =B22*$C$28+C22*$C$29 -> 4.12
A23: 최준기 | B23: 72 | C23: 14 | D23: =B23*$C$28+C23*$C$29 -> 7.08
A24: 구현서 | B24: 85 | C24: 29 | D24: 7.61
A25: 안유경 | B25: 15 | C25: 2 | D25: 1.53
A26: 강흥석 | B26: 78 | C26: 7 | D26: 8.16
A27: 조용욱 | B27: 56 | C27: 5 | D27: 5.86
A28: 대출포인트 | C28: 0.11
A29: 연체포인트 | C29: -0.06

Sheet 날짜(예제)
B2: 날짜시간함수

Sheet 날짜(결과)
A1: 오늘의 날짜 | B1: =TODAY() -> 2020-01-14
A2: 오늘의 날짜와 시간 | B2: =NOW() -> 2020-01-14T22:11:44.300
A4: 표시 부분 | B4: 결과
A5: 연도(YEAR) | B5: =YEAR(B2) -> 2020
A6: 월(MONTH) | B6: =MONTH(B2) -> 1
A7: 일(DAY) | B7: =DAY(B2) -> 14
A8: 시(HOUR) | B8: =HOUR(B2) -> 22
A9: 분(MINUTE) | B9: =MINUTE(B2) -> 11
A10: 초(SECOND) | B10: =SECOND(B2) -> 44
A11: 날짜(DATE) | B11: =DATE(B5,B6,B7) -> 2020-01-14
A12: 시간(TIME) | B12: =TIME(B8,B9,B10) -> 22:11:44
A13: 요일(WEEKDAY) | B13: =WEEKDAY(B2) -> 3
A14: 요일(WEEKDAY)-서식 | B14: =WEEKDAY(B2) -> 3
A15: 일련번호(DATEVALUE) | B15: =DATEVALUE("2012-8-15") -> 41136

Sheet 논리(예제)
A1: [표1] | F1: [표2]
A2: 수험번호 | B2: 이름 | C2: 점수 | D2: 평가 | F2: 수험번호 | G2: 성명 | H2: 최종성적 | I2: 부서배치
A3: 1001 | B3: 이나영 | C3: 78 | F3: 1001 | G3: 오나라 | H3: 95
A4: 1002 | B4: 추영조 | C4: 65 | F4: 1002 | G4: 유채화 | H4: 74
A5: 1003 | B5: 탁수민 | C5: 80 | F5: 1003 | G5: 김사랑 | H5: 85
A6: 1004 | B6: 강전한 | C6: 90 | F6: 1004 | G6: 한나리 | H6: 88
A7: 1005 | B7: 김이중 | C7: 52 | F7: 1005 | G7: 조절해 | H7: 60
A8: 1006 | B8: 전대철 | C8: 42 | F8: 1006 | G8: 사오정 | H8: 92
A9: 1007 | B9: 사은봉 | C9: 80 | F9: 1007 | G9: 금나라 | H9: 72
A10: 1008 | B10: 노영철 | C10: 69
A11: 1009 | B11: 면도영 | C11: 75
A13: [표3] | F13: [표4]
A14: 직원코드 | B14: 근무년수 | C14: 판매부수 | D14: 승진여부 | F14: 연수번호 | G14: 성명 | H14: 컴일 | I14: 시트 | J14: 평가
A15: 1-K001 | B15: 10 | C15: 100000 | F15: 2002001 | G15: 강구석 | H15: 77 | I15: 86
A16: 1-K002 | B16: 17 | C16: 150000 | F16: 2002002 | G16: 이지나 | H16: 56 | I16: 100
A17: 1-K003 | B17: 15 | C17: 50000 | F17: 2002003 | G17: 남인성 | H17: 76 | I17: 84
A18: 1-K004 | B18: 25 | C18: 65000 | F18: 2002004 | G18: 오지혜 | H18: 56 | I18: 78
A19: 2-K001 | B19: 15 | C19: 134000 | F19: 2002005 | G19: 류민철 | H19: 88 | I19: 96
A20: 2-K002 | B20: 9 | C20: 74000 | F20: 2002006 | G20: 김동석 | H20: 78 | I20: 56
A21: 2-K003 | B21: 12 | C21: 95000 | F21: 2002007 | G21: 사인구 | H21: 67 | I21: 78
F22: 2002008 | G22: 푸영아 | H22: 100 | I22: 86
F23: 2002009 | G23: 한남석 | H23: 42 | I23: 56

Sheet 논리(결과)
A1: [표1] | F1: [표2]
A2: 수험번호 | B2: 이름 | C2: 점수 | D2: 평가 | F2: 수험번호 | G2: 성명 | H2: 최종성적 | I2: 부서배치
A3: 1001 | B3: 이나영 | C3: 78 | D3: =IF(C3>=70,"합격","불합격") -> 합격 | F3: 1001 | G3: 오나라 | H3: 95 | I3: =IF(H3>=90,"기획부",IF(H3>=80,"총무부","영업부")) -> 기획부
A4: 1002 | B4: 추영조 | C4: 65 | D4: =IF(C4>=70,"합격","불합격") -> 불합격 | F4: 1002 | G4: 유채화 | H4: 74 | I4: =IF(H4>=90,"기획부",IF(H4>=80,"총무부","영업부")) -> 영업부
A5: 1003 | B5: 탁수민 | C5: 80 | D5: 합격 | F5: 1003 | G5: 김사랑 | H5: 85 | I5: 총무부
A6: 1004 | B6: 강전한 | C6: 90 | D6: 합격 | F6: 1004 | G6: 한나리 | H6: 88 | I6: 총무부
A7: 1005 | B7: 김이중 | C7: 52 | D7: 불합격 | F7: 1005 | G7: 조절해 | H7: 60 | I7: 영업부
A8: 1006 | B8: 전대철 | C8: 42 | D8: 불합격 | F8: 1006 | G8: 사오정 | H8: 92 | I8: 기획부
A9: 1007 | B9: 사은봉 | C9: 80 | D9: 합격 | F9: 1007 | G9: 금나라 | H9: 72 | I9: 영업부
A10: 1008 | B10: 노영철 | C10: 69 | D10: 불합격
A11: 1009 | B11: 면도영 | C11: 75 | D11: 합격
A13: [표3] | F13: [표4]
A14: 직원코드 | B14: 근무년수 | C14: 판매부수 | D14: 승진여부 | F14: 연수번호 | G14: 성명 | H14: 컴일 | I14: 시트 | J14: 평가
A15: 1-K001 | B15: 10 | C15: 100000 | D15: =IF(AND(B15>=13,C15>=100000),"승진","") ->  | F15: 2002001 | G15: 강구석 | H15: 77 | I15: 86 | J15: =IF(OR(H15>=85,I15>=85),"이수","") -> 이수
A16: 1-K002 | B16: 17 | C16: 150000 | D16: =IF(AND(B16>=13,C16>=100000),"승진","") -> 승진 | F16: 2002002 | G16: 이지나 | H16: 56 | I16: 100 | J16: =IF(OR(H16>=85,I16>=85),"이수","") -> 이수
A17: 1-K003 | B17: 15 | C17: 50000 | F17: 2002003 | G17: 남인성 | H17: 76 | I17: 84
A18: 1-K004 | B18: 25 | C18: 65000 | F18: 2002004 | G18: 오지혜 | H18: 56 | I18: 78
A19: 2-K001 | B19: 15 | C19: 134000 | D19: 승진 | F19: 2002005 | G19: 류민철 | H19: 88 | I19: 96 | J19: 이수
A20: 2-K002 | B20: 9 | C20: 74000 | F20: 2002006 | G20: 김동석 | H20: 78 | I20: 56
A21: 2-K003 | B21: 12 | C21: 95000 | F21: 2002007 | G21: 사인구 | H21: 67 | I21: 78
F22: 2002008 | G22: 푸영아 | H22: 100 | I22: 86 | J22: 이수
F23: 2002009 | G23: 한남석 | H23: 42 | I23: 56

Sheet 데이터베이스1(예제)
B2: 고객ID | C2: 성명 | D2: 고객구분 | E2: 가입일 | F2: 거래횟수 | G2: 총거래금액
B3: T001 | C3: 우병배 | D3: 일반 | E3: 2011-05-06 | F3: 12 | G3: 680000
B4: T002 | C4: 표명규 | D4: 골드 | E4: 2011-07-15 | F4: 5 | G4: 520000
B5: T003 | C5: 손미선 | D5: 우대 | E5: 2011-07-21 | F5: 18 | G5: 165000
B6: T004 | C6: 윤연숙 | D6: 우대 | E6: 2011-08-20 | F6: 24 | G6: 438000
B7: T005 | C7: 박찬우 | D7: 골드 | E7: 2011-08-21 | F7: 13 | G7: 527000
B8: T006 | C8: 안순일 | D8: 일반 | E8: 2011-09-15 | F8: 15 | G8: 350000
B9: T007 | C9: 이경희 | D9: 일반 | E9: 2011-09-18 | F9: 9 | G9: 127000
B10: T008 | C10: 황명길 | D10: 골드 | E10: 2011-09-25 | F10: 15 | G10: 628000
B11: T009 | C11: 박연이 | D11: 우대 | E11: 2011-10-05 | F11: 10 | G11: 715000
B12: T010 | C12: 김청수 | D12: 일반 | E12: 2011-10-12 | F12: 24 | G12: 357000
B13: T011 | C13: 임순정 | D13: 골드 | E13: 2011-10-19 | F13: 21 | G13: 495000
B16: 고객구분 | C16: 총거래횟수 | D16: 평균금액 | E16: 최고금액 | F16: 최소금액 | G16: 회원수
B17: 골드
B20: 고객ID | C20: 성명 | D20: 고객구분 | E20: 가입일 | F20: 거래횟수 | G20: 총거래금액
B21: T005

Sheet 데이터베이스1(결과)
B2: 고객ID | C2: 성명 | D2: 고객구분 | E2: 가입일 | F2: 거래횟수 | G2: 총거래금액
B3: T001 | C3: 우병배 | D3: 일반 | E3: 2011-05-06 | F3: 12 | G3: 680000
B4: T002 | C4: 표명규 | D4: 골드 | E4: 2011-07-15 | F4: 5 | G4: 520000
B5: T003 | C5: 손미선 | D5: 우대 | E5: 2011-07-21 | F5: 18 | G5: 165000
B6: T004 | C6: 윤연숙 | D6: 우대 | E6: 2011-08-20 | F6: 24 | G6: 438000
B7: T005 | C7: 박찬우 | D7: 골드 | E7: 2011-08-21 | F7: 13 | G7: 527000
B8: T006 | C8: 안순일 | D8: 일반 | E8: 2011-09-15 | F8: 15 | G8: 350000
B9: T007 | C9: 이경희 | D9: 일반 | E9: 2011-09-18 | F9: 9 | G9: 127000
B10: T008 | C10: 황명길 | D10: 골드 | E10: 2011-09-25 | F10: 15 | G10: 628000
B11: T009 | C11: 박연이 | D11: 우대 | E11: 2011-10-05 | F11: 10 | G11: 715000
B12: T010 | C12: 김청수 | D12: 일반 | E12: 2011-10-12 | F12: 24 | G12: 357000
B13: T011 | C13: 임순정 | D13: 골드 | E13: 2011-10-19 | F13: 21 | G13: 495000
B16: 고객구분 | C16: 총거래횟수 | D16: 평균금액 | E16: 최고금액 | F16: 최소금액 | G16: 회원수
B17: 골드 | C17: =DSUM(B2:G13,5,B16:B17) -> 54 | D17: =DAVERAGE(B2:G13,6,B16:B17) -> 542500 | E17: =DMAX(B2:G13,6,B16:B17) -> 628000 | F17: =DMIN(B2:G13,6,B16:B17) -> 495000 | G17: =DCOUNT(B2:G13,6,B16:B17) -> 4
B20: 고객ID | C20: 성명 | D20: 고객구분 | E20: 가입일 | F20: 거래횟수 | G20: 총거래금액
B21: T005 | C21: =DGET($B$2:$G$13,C2,$B$20:$B$21) -> 박찬우 | D21: =DGET($B$2:$G$13,D2,$B$20:$B$21) -> 골드 | E21: 2011-08-21 | F21: 13 | G21: 527000

Sheet 데이터베이스2(예제)
A1: [표1] | F1: [표2]
A2: 성명 | B2: 응시구분 | C2: 1차 | D2: 2차 | F2: 대리점 | G2: 단가 | H2: 출고수량 | I2: 판매금액
A3: 한가람 | B3: P-1 | C3: 79 | D3: 97 | F3: 금성물산 | G3: 1673 | H3: 40 | I3: =G3*H3 -> 66920
A4: 김은철 | B4: P-2 | C4: 77 | D4: 89 | F4: 우주상사 | G4: 1506 | H4: 58 | I4: 87348
A5: 고사리 | B5: P-1 | C5: 56 | D5: 76 | F5: 신안공업 | G5: 1126 | H5: 91 | I5: 102466
A6: 박은별 | B6: P-2 | C6: 88 | D6: 80 | F6: 삼성상사 | G6: 2953 | H6: 99 | I6: 292347
A7: 성준서 | B7: P-1 | C7: 88 | D7: 93 | F7: 금성물산 | G7: 1423 | H7: 54 | I7: 76842
A8: 이성연 | B8: P-2 | C8: 91 | D8: 67 | F8: 신안공업 | G8: 1338 | H8: 40 | I8: 53520
A9: 박한나 | B9: P-1 | C9: 85 | D9: 56 | F9: 금성물산 | G9: 2310 | H9: 73 | I9: 168630
A10: 이미리 | B10: P-1 | C10: 76 | D10: 89 | F10: 종로상사 | G10: 1937 | H10: 90 | I10: 174330
A12: P-1의 1차 평균 | F12: 금성물산 판매금액 합계
A14: [표3] | F14: [표4]
A15: 성명 | B15: 부서 | C15: 1/4분기 | D15: 2/4분기 | F15: 소속 | G15: 기사 | H15: 우승횟수 | I15: 준우승횟수
A16: 김남이 | B16: 영업1부 | C16: 557 | D16: 345 | F16: 상공 | G16: 김기호 | H16: 14 | I16: 20
A17: 이지영 | B17: 영업2부 | C17: 476 | D17: 513 | F17: 대한 | G17: 최종명 | H17: 2 | I17: 13
A18: 하나미 | B18: 영업1부 | C18: 231 | D18: 474 | F18: 대한 | G18: 나필승 | H18: 3 | I18: 3
A19: 임진태 | B19: 영업2부 | C19: 175 | D19: 453 | F19: 서울 | G19: 고대로 | H19: 8 | I19: 5
A20: 현민대 | B20: 영업2부 | C20: 834 | D20: 401 | F20: 상공 | G20: 정상승 | H20: 5 | I20: 3
A21: 한민국 | B21: 영업1부 | C21: 597 | D21: 347 | F21: 대한 | G21: 채고다 | H21: 15 | I21: 5
B23: 1/4분기 | C23: 2/4분기 | F23: 대한팀 우승횟수
A26: [표5] | F26: [표6]
A27: 학과 | B27: 학년 | C27: 성명 | D27: 평가점수 | F27: 직원코드 | G27: 1사분기 | H27: 2사분기 | I27: 상반기합계
A28: 디자인 | B28: 1 | C28: 고승수 | D28: 465 | F28: 1-J001 | G28: 92733 | H28: 46573 | I28: =G28+H28 -> 139306
A29: 미디어 | B29: 2 | C29: 구만리 | D29: 604 | F29: 1-J002 | G29: 66191 | H29: 60400 | I29: 126591
A30: 미디어 | B30: 3 | C30: 노상식 | D30: 383 | F30: 1-J003 | G30: 14809 | H30: 13827 | I30: 28636
A31: 디자인 | B31: 2 | C31: 나잘난 | D31: 465 | F31: 1-J004 | G31: 51382 | H31: 46573 | I31: 97955
A32: 미디어 | B32: 1 | C32: 마고수 | D32: 382 | F32: 2-J001 | G32: 19663 | H32: 17382 | I32: 37045
A33: 미디어 | B33: 2 | C33: 박흥철 | D33: 391 | F33: 2-J002 | G33: 22053 | H33: 49102 | I33: 71155
A34: 디자인 | B34: 3 | C34: 사수해 | D34: 572 | F34: 2-J003 | G34: 23900 | H34: 17206 | I34: 41106
C36: 400점 이상이거나 2학년 | H36: 50000~100000의 합

Sheet 데이터베이스2(결과)
A1: [표1] | F1: [표2]
A2: 성명 | B2: 응시구분 | C2: 1차 | D2: 2차 | F2: 대리점 | G2: 단가 | H2: 출고수량 | I2: 판매금액
A3: 한가람 | B3: P-1 | C3: 79 | D3: 97 | F3: 금성물산 | G3: 1673 | H3: 40 | I3: =G3*H3 -> 66920
A4: 김은철 | B4: P-2 | C4: 77 | D4: 89 | F4: 우주상사 | G4: 1506 | H4: 58 | I4: 87348
A5: 고사리 | B5: P-1 | C5: 56 | D5: 76 | F5: 신안공업 | G5: 1126 | H5: 91 | I5: 102466
A6: 박은별 | B6: P-2 | C6: 88 | D6: 80 | F6: 삼성상사 | G6: 2953 | H6: 99 | I6: 292347
A7: 성준서 | B7: P-1 | C7: 88 | D7: 93 | F7: 금성물산 | G7: 1423 | H7: 54 | I7: 76842
A8: 이성연 | B8: P-2 | C8: 91 | D8: 67 | F8: 신안공업 | G8: 1338 | H8: 40 | I8: 53520
A9: 박한나 | B9: P-1 | C9: 85 | D9: 56 | F9: 금성물산 | G9: 2310 | H9: 73 | I9: 168630
A10: 이미리 | B10: P-1 | C10: 76 | D10: 89 | F10: 종로상사 | G10: 1937 | H10: 90 | I10: 174330
A12: P-1의 1차 평균 | D12: =DAVERAGE(A2:D10,3,B2:B3) -> 76.8 | F12: 금성물산 판매금액 합계 | I12: =DSUM(F2:I10,I2,F2:F3) -> 312392
A14: [표3] | F14: [표4]
A15: 성명 | B15: 부서 | C15: 1/4분기 | D15: 2/4분기 | F15: 소속 | G15: 기사 | H15: 우승횟수 | I15: 준우승횟수
A16: 김남이 | B16: 영업1부 | C16: 557 | D16: 345 | F16: 상공 | G16: 김기호 | H16: 14 | I16: 20
A17: 이지영 | B17: 영업2부 | C17: 476 | D17: 513 | F17: 대한 | G17: 최종명 | H17: 2 | I17: 13
A18: 하나미 | B18: 영업1부 | C18: 231 | D18: 474 | F18: 대한 | G18: 나필승 | H18: 3 | I18: 3
A19: 임진태 | B19: 영업2부 | C19: 175 | D19: 453 | F19: 서울 | G19: 고대로 | H19: 8 | I19: 5
A20: 현민대 | B20: 영업2부 | C20: 834 | D20: 401 | F20: 상공 | G20: 정상승 | H20: 5 | I20: 3
A21: 한민국 | B21: 영업1부 | C21: 597 | D21: 347 | F21: 대한 | G21: 채고다 | H21: 15 | I21: 5
A23: 부서 | B23: 1/4분기 | C23: 2/4분기 | F23: 대한팀 우승횟수 | H23: 소속 | I23: 준우승횟수
A24: 영업2부 | B24: =DMAX($A$15:$E$21,C15,$A$23:$A$24) -> 834 | C24: =DMAX($A$15:$E$21,D15,$A$23:$A$24) -> 513 | F24: =DCOUNT(F15:I21,H15,H23:I24) -> 2 | H24: 대한 | I24: >=5
A26: [표5] | F26: [표6]
A27: 학과 | B27: 학년 | C27: 성명 | D27: 평가점수 | F27: 직원코드 | G27: 1사분기 | H27: 2사분기 | I27: 상반기합계
A28: 디자인 | B28: 1 | C28: 고승수 | D28: 465 | F28: 1-J001 | G28: 92733 | H28: 46573 | I28: =G28+H28 -> 139306
A29: 미디어 | B29: 2 | C29: 구만리 | D29: 604 | F29: 1-J002 | G29: 66191 | H29: 60400 | I29: 126591
A30: 미디어 | B30: 3 | C30: 노상식 | D30: 383 | F30: 1-J003 | G30: 14809 | H30: 13827 | I30: 28636
A31: 디자인 | B31: 2 | C31: 나잘난 | D31: 465 | F31: 1-J004 | G31: 51382 | H31: 46573 | I31: 97955
A32: 미디어 | B32: 1 | C32: 마고수 | D32: 382 | F32: 2-J001 | G32: 19663 | H32: 17382 | I32: 37045
A33: 미디어 | B33: 2 | C33: 박흥철 | D33: 391 | F33: 2-J002 | G33: 22053 | H33: 49102 | I33: 71155
A34: 디자인 | B34: 3 | C34: 사수해 | D34: 572 | F34: 2-J003 | G34: 23900 | H34: 17206 | I34: 41106
A36: 평가점수 | B36: 학년 | C36: 400점 이상이거나 2학년 | F36: 상반기합계 | G36: 상반기합계 | H36: 50000~100000의 합
A37: >=400 | C37: =DCOUNTA(A27:D34,C27,A36:B38)&"명" -> 5명 | F37: >=50000 | G37: <=100000 | H37: =DSUM(F27:I34,4,F36:G37) -> 169110
B38: 2

Sheet 데이터베이스3(예제)
B2: 구분 | C2: 월 | D2: YJ001 | E2: YJ002 | F2: YJ003 | G2: YJ004
B3: 판매량 | C3: 1월 | D3: 26 | E3: 43 | F3: 45 | G3: 35
C4: 2월 | D4: 35 | E4: 38 | F4: 36 | G4: 29
C5: 3월 | D5: 45 | E5: 26 | F5: 29 | G5: 48
C6: 4월 | D6: 20 | E6: 17 | F6: 15 | G6: 70
C7: 5월 | D7: 28 | E7: 28 | F7: 48 | G7: 53
B8: 단가 | C8: 1월 | D8: 3500 | E8: 6200 | F8: 5400 | G8: 4800
C9: 2월 | D9: 3500 | E9: 6000 | F9: 5600 | G9: 4700
C10: 3월 | D10: 3600 | E10: 6200 | F10: 5000 | G10: 4700
C11: 4월 | D11: 3300 | E11: 6500 | F11: 5300 | G11: 4500
C12: 5월 | D12: 3500 | E12: 6100 | F12: 5500 | G12: 4600
B15: 총판매액 | C15: 월 | D15: YJ001 | E15: YJ002 | F15: YJ003 | G15: YJ004
C16: 1월

Sheet 데이터베이스3(결과)
B2: 구분 | C2: 월 | D2: YJ001 | E2: YJ002 | F2: YJ003 | G2: YJ004
B3: 판매량 | C3: 1월 | D3: 26 | E3: 43 | F3: 45 | G3: 35
C4: 2월 | D4: 35 | E4: 38 | F4: 36 | G4: 29
C5: 3월 | D5: 45 | E5: 26 | F5: 29 | G5: 48
C6: 4월 | D6: 20 | E6: 17 | F6: 15 | G6: 70
C7: 5월 | D7: 28 | E7: 28 | F7: 48 | G7: 53
B8: 단가 | C8: 1월 | D8: 3500 | E8: 6200 | F8: 5400 | G8: 4800
C9: 2월 | D9: 3500 | E9: 6000 | F9: 5600 | G9: 4700
C10: 3월 | D10: 3600 | E10: 6200 | F10: 5000 | G10: 4700
C11: 4월 | D11: 3300 | E11: 6500 | F11: 5300 | G11: 4500
C12: 5월 | D12: 3500 | E12: 6100 | F12: 5500 | G12: 4600
B15: 총판매액 | C15: 월 | D15: YJ001 | E15: YJ002 | F15: YJ003 | G15: YJ004
C16: 1월 | D16: =DPRODUCT($C$2:$G$12,D2,$C$15:$C$16) -> 91000 | E16: =DPRODUCT($C$2:$G$12,E2,$C$15:$C$16) -> 266600 | F16: 243000 | G16: 168000

Sheet 문자열1(예제)
B2: 성명 | C2: 주민등록번호 | D2: 생일 | E2: 성별 | F2: 나이
B3: 심행래 | C3: 650218-1584623
B4: 김봉현 | C4: 601204-1864523
B5: 이찬호 | C5: 620718-1845237
B6: 박이슈 | C6: 720124-2356427
B7: 이장군 | C7: 730512-1845615
B8: 황건이 | C8: 760314-1875234
B9: 이율용 | C9: 660217-2485628
B10: 장보가 | C10: 710523-2784652
B11: 서정수 | C11: 640819-1864521
B12: 왕순원 | C12: 610126-2845967
B13: 박목일 | C13: 740630-1875241

Sheet 문자열1(결과)
B2: 성명 | C2: 주민등록번호 | D2: 생일 | E2: 성별 | F2: 나이
B3: 심행래 | C3: 650218-1584623 | D3: =DATE(LEFT(C3,2), MID(C3,3,2), MID(C3,5,2)) -> 1965-02-18 | E3: =IF(MID(C3,8,1)="1", "남자", "여자") -> 남자 | F3: =YEAR(TODAY())-LEFT(C3,2)-1900 -> 55
B4: 김봉현 | C4: 601204-1864523 | D4: =DATE(LEFT(C4,2), MID(C4,3,2), MID(C4,5,2)) -> 1960-12-04 | E4: =IF(MID(C4,8,1)="1", "남자", "여자") -> 남자 | F4: =YEAR(TODAY())-LEFT(C4,2)-1900 -> 60
B5: 이찬호 | C5: 620718-1845237 | D5: 1962-07-18 | E5: 남자 | F5: 58
B6: 박이슈 | C6: 720124-2356427 | D6: 1972-01-24 | E6: 여자 | F6: 48
B7: 이장군 | C7: 730512-1845615 | D7: 1973-05-12 | E7: 남자 | F7: 47
B8: 황건이 | C8: 760314-1875234 | D8: 1976-03-14 | E8: 남자 | F8: 44
B9: 이율용 | C9: 660217-2485628 | D9: 1966-02-17 | E9: 여자 | F9: 54
B10: 장보가 | C10: 710523-2784652 | D10: 1971-05-23 | E10: 여자 | F10: 49
B11: 서정수 | C11: 640819-1864521 | D11: 1964-08-19 | E11: 남자 | F11: 56
B12: 왕순원 | C12: 610126-2845967 | D12: 1961-01-26 | E12: 여자 | F12: 59
B13: 박목일 | C13: 740630-1875241 | D13: 1974-06-30 | E13: 남자 | F13: 46

Sheet 문자열2(예제)
B2: 예제 | C2: LOWER | D2: UPPER | E2: PROPER | F2: LEN | G2: TRIM
B3: AaAa a
B4: BB bbb
B5: CCC cc
B6: D dDdD
B7: EE eee
B9: 이름 | C9: 주민등록번호 | E9: 생일(문자 형식) | F9: 생일(숫자 형식)
B10: 김정수 | C10: 650218-1584623
B11: 노주현 | C11: 601204-1864523
B12: 이홍렬 | C12: 620718-1845237
B13: 박영삼 | C13: 720124-1956427

Sheet 문자열2(결과)
B2: 예제 | C2: LOWER | D2: UPPER | E2: PROPER | F2: LEN | G2: TRIM
B3: AaAa a | C3: =LOWER(B3) -> aaaa a | D3: =UPPER(B3) -> AAAA A | E3: =PROPER(B3) -> Aaaa A | F3: =LEN(B3) -> 9 | G3: =TRIM(B3) -> AaAa a
B4: BB bbb | C4: =LOWER(B4) -> bb bbb | D4: =UPPER(B4) -> BB BBB | E4: =PROPER(B4) -> Bb Bbb | F4: =LEN(B4) -> 8 | G4: =TRIM(B4) -> BB bbb
B5: CCC cc | C5: ccc cc | D5: CCC CC | E5: Ccc Cc | F5: 7 | G5: CCC cc
B6: D dDdD | C6: d dddd | D6: D DDDD | E6: D Dddd | F6: 8 | G6: D dDdD
B7: EE eee | C7: ee eee | D7: EE EEE | E7: Ee Eee | F7: 7 | G7: EE eee
B9: 이름 | C9: 주민등록번호 | E9: 생일(문자 형식) | F9: 생일(숫자 형식)
B10: 김정수 | C10: 650218-1584623 | E10: =TEXT(LEFT(C10,6),"##-##-##") -> 65-02-18 | F10: =VALUE(TEXT(LEFT(C10,6),"##-##-##")) -> 1965-02-18
B11: 노주현 | C11: 601204-1864523 | E11: =TEXT(LEFT(C11,6),"##-##-##") -> 60-12-04 | F11: =VALUE(TEXT(LEFT(C11,6),"##-##-##")) -> 1960-12-04
B12: 이홍렬 | C12: 620718-1845237 | E12: 62-07-18 | F12: 1962-07-18
B13: 박영삼 | C13: 720124-1956427 | E13: 72-01-24 | F13: 1972-01-24

Sheet 수학1(예제)
A2: 1) | B2: 숫자 | C2: 짝수/홀수
B3: 225
B4: 300
B5: 387
B6: 570
A8: 2) | B8: 숫자 | C8: 자릿수 | D8: TRUNC | E8: ROUND | F8: ROUNDUP | G8: ROUNDDOWN
B9: 5678.567 | C9: 2
B10: 5678.567 | C10: 1
B11: 5678.567 | C11: 0
B12: 5678.567 | C12: -2
B13: 5678.567 | C13: -1
A15: 3) | B15: 숫자 | C15: INT | D15: ABS
B16: 456.789
B17: -456.789
B18: 150
B19: 250

Sheet 수학1(결과)
A2: 1) | B2: 숫자 | C2: 짝수/홀수
B3: 225 | C3: =IF(MOD(B3,2)=0,"짝수","홀수") -> 홀수
B4: 300 | C4: =IF(MOD(B4,2)=0,"짝수","홀수") -> 짝수
B5: 387 | C5: 홀수
B6: 570 | C6: 짝수
A8: 2) | B8: 숫자 | C8: 자릿수 | D8: TRUNC | E8: ROUND | F8: ROUNDUP | G8: ROUNDDOWN
B9: 5678.567 | C9: 2 | D9: =TRUNC(B9,C9) -> 5678.56 | E9: =ROUND(B9,C9) -> 5678.57 | F9: =ROUNDUP(B9,C9) -> 5678.57 | G9: =ROUNDDOWN(B9,C9) -> 5678.56
B10: 5678.567 | C10: 1 | D10: =TRUNC(B10,C10) -> 5678.5 | E10: =ROUND(B10,C10) -> 5678.6 | F10: =ROUNDUP(B10,C10) -> 5678.6 | G10: =ROUNDDOWN(B10,C10) -> 5678.5
B11: 5678.567 | C11: 0 | D11: 5678 | E11: 5679 | F11: 5679 | G11: 5678
B12: 5678.567 | C12: -2 | D12: 5600 | E12: 5700 | F12: 5700 | G12: 5600
B13: 5678.567 | C13: -1 | D13: 5670 | E13: 5680 | F13: 5680 | G13: 5670
A15: 3) | B15: 숫자 | C15: INT | D15: ABS
B16: 456.789 | C16: =INT(B16) -> 456 | D16: =ABS(B16) -> 456.789
B17: -456.789 | C17: =INT(B17) -> -457 | D17: =ABS(B17) -> 456.789
B18: 150 | C18: 150 | D18: 150
B19: 250 | C19: 250 | D19: 250

Sheet 수학2(예제)
A2: • SQRT | B2: 25 | F2: • PI
A4: • FACT | B4: 5 | F4: • RAND
A6: • POWER | B6: 4
B8: 이름 | C8: 부서 | D8: 1월 | E8: 2월 | F8: 3월 | G8: 합계
B9: 김상원 | C9: 영업1부 | D9: 557 | E9: 345 | F9: 721 | G9: =SUM(D9:F9) -> 1623
B10: 이갑봉 | C10: 영업2부 | D10: 476 | E10: 513 | F10: 174 | G10: 1163
B11: 강정희 | C11: 영업1부 | D11: 231 | E11: 474 | F11: 358 | G11: 1063
B12: 김동호 | C12: 영업1부 | D12: 175 | E12: 453 | F12: 443 | G12: 1071
B13: 이남주 | C13: 영업2부 | D13: 834 | E13: 401 | F13: 743 | G13: 1978
B14: 왕영애 | C14: 영업1부 | D14: 597 | E14: 347 | F14: 346 | G14: 1290
B15: 박효남 | C15: 영업2부 | D15: 634 | E15: 530 | F15: 651 | G15: 1815
B18: 부서 | C18: 인원 | D18: 1월합계 | E18: 2월합계 | F18: 3월합계 | G18: 총합계
B19: 영업1부

Sheet 수학2(결과)
A2: • SQRT | B2: 25 | D2: =SQRT(B2) -> 5 | F2: • PI | H2: =PI( ) -> 3.141592654
A4: • FACT | B4: 5 | D4: =FACT(B4) -> 120 | F4: • RAND | H4: =RAND( ) -> 0.9079147306
A6: • POWER | B6: 4 | D6: =POWER(B6,3) -> 64
B8: 이름 | C8: 부서 | D8: 1월 | E8: 2월 | F8: 3월 | G8: 합계
B9: 김상원 | C9: 영업1부 | D9: 557 | E9: 345 | F9: 721 | G9: =SUM(D9:F9) -> 1623
B10: 이갑봉 | C10: 영업2부 | D10: 476 | E10: 513 | F10: 174 | G10: 1163
B11: 강정희 | C11: 영업1부 | D11: 231 | E11: 474 | F11: 358 | G11: 1063
B12: 김동호 | C12: 영업1부 | D12: 175 | E12: 453 | F12: 443 | G12: 1071
B13: 이남주 | C13: 영업2부 | D13: 834 | E13: 401 | F13: 743 | G13: 1978
B14: 왕영애 | C14: 영업1부 | D14: 597 | E14: 347 | F14: 346 | G14: 1290
B15: 박효남 | C15: 영업2부 | D15: 634 | E15: 530 | F15: 651 | G15: 1815
B18: 부서 | C18: 인원 | D18: 1월합계 | E18: 2월합계 | F18: 3월합계 | G18: 총합계
B19: 영업1부 | C19: =COUNTIF(C9:C15, B19) -> 4 | D19: =SUMIF($C$9:$C$15, $B$19, D9:D15) -> 1560 | E19: =SUMIF($C$9:$C$15, $B$19, E9:E15) -> 1619 | F19: 1868 | G19: 5047

Sheet 재무(예제)
B1: • FV 함수 | E1: • PV 함수
B3: 연이율 | C3: 0.06 | E3: 연이율 | F3: 0.08
B4: 기간 | C4: 1 | E4: 수령 기간 | F4: 30
B5: 월불입액 | C5: 300000 | E5: 매월 수령액 | F5: 100000
B7: 만기금액 | E7: 연금의 현재가치
B9: • PMT 함수 | E9: • PMT 함수
B11: 연이율 | C11: 0.075 | E11: 연이율 | F11: 0.045
B12: 기간 | C12: 3 | E12: 기간 | F12: 5
B13: 대출금액 | C13: 50000000 | E13: 저축총액 | F13: 50000000
B15: 월상환액 | E15: 월불입액

Sheet 재무(결과)
B1: • FV 함수 | E1: • PV 함수
B3: 연이율 | C3: 0.06 | E3: 연이율 | F3: 0.08
B4: 기간 | C4: 1 | E4: 수령 기간 | F4: 30
B5: 월불입액 | C5: 300000 | E5: 매월 수령액 | F5: 100000
B7: 만기금액 | C7: =FV(C3/12,C4*12,-C5) -> 3700668.712 | E7: 연금의 현재가치 | F7: =PV(F3/12,F4*12,-F5) -> 13628349.41
B9: • PMT 함수 | E9: • PMT 함수
B11: 연이율 | C11: 0.075 | E11: 연이율 | F11: 0.045
B12: 기간 | C12: 3 | E12: 기간 | F12: 5
B13: 대출금액 | C13: 50000000 | E13: 저축총액 | F13: 50000000
B15: 월상환액 | C15: =PMT(C11/12,C12*12,-C13) -> 1555310.908 | E15: 월불입액 | F15: =PMT(F11/12,F12*12,0,-F13) -> 744650.9621

Sheet 통계1(예제)
A1: [표1] | B1: 도서별 대출실적 합계 | G1: [표2] | H1: 신입사원 면접결과
A2: 구분 | B2: 4월 | C2: 5월 | D2: 6월 | E2: 평균 | G2: 성명 | H2: 면접점수 | I2: 순위
A3: 총서 | B3: 108 | C3: 150 | D3: 97 | G3: 하길주 | H3: 77
A4: 사회과학 | B4: 152 | C4: 52 | D4: 110 | G4: 이선호 | H4: 85
A5: 인문과학 | B5: 52 | C5: 101 | D5: 89 | G5: 강성수 | H5: 63
A6: 공학 | B6: 100 | C6: 98 | D6: 101 | G6: 김보견 | H6: 45
A7: 디자인 | B7: 75 | C7: 200 | D7: 36 | G7: 천수만 | H7: 64
G8: 이소영 | H8: 50
A9: [표3] | B9: 직급별 연봉액 | G9: 맹순자 | H9: 46
A10: 성명 | B10: 직급 | C10: 연봉액 | G10: 전기수 | H10: 78
A11: 강희정 | B11: 부장 | C11: 36483516
A12: 김민수 | B12: 사원 | C12: 12991336 | E12: [표4] | F12: 영진고등학교 2학년 모의고사 성적 현황
A13: 나인성 | B13: 사원 | C13: 14230019 | E13: 성명 | F13: 1차 | G13: 2차 | H13: 3차 | I13: 점수변동폭
A14: 민성진 | B14: 대리 | C14: 23122065 | E14: 배수진 | F14: 320 | G14: 341 | H14: 360
A15: 박정아 | B15: 과장 | C15: 25390984 | E15: 강경화 | F15: 296 | G15: 250 | H15: 270
A16: 서진이 | B16: 사원 | C16: 20859311 | E16: 김순응 | F16: 255 | G16: 310 | H16: 322
A17: 강창우 | B17: 이사 | C17: 78945600 | E17: 고해진 | F17: 361 | G17: 308 | H17: 375
E18: 박병철 | F18: 291 | G18: 342 | H18: 332
A19: 2번째 큰값 | E19: 이선화 | F19: 308 | G19: 367 | H19: 367
A20: 2번째 작은 값 | E20: 김태민 | F20: 321 | G20: 268 | H20: 297
A22: [표5] | B22: 컴퓨터 연수 결과
A23: 성명 | B23: 엑셀 | C23: 워드 | D23: 인터넷활용
A24: 이지용 | B24: 87 | C24: 56 | D24: 78
A25: 남진철 | B25: 98 | C25: 87 | D25: 78
A26: 어인애 | B26: 45 | C26: 67 | D26: 89
A27: 천우덕 | B27: 34 | C27: 99 | D27: 86
A28: 민지환 | B28: 90 | C28: 87 | D28: 88
A29: 박성자 | B29: 93 | C29: 54 | D29: 90
A30: 표준편차
A31: 분산

Sheet 통계1(결과)
A1: [표1] | B1: 도서별 대출실적 합계 | G1: [표2] | H1: 신입사원 면접결과
A2: 구분 | B2: 4월 | C2: 5월 | D2: 6월 | E2: 평균 | G2: 성명 | H2: 면접점수 | I2: 순위
A3: 총서 | B3: 108 | C3: 150 | D3: 97 | E3: =ROUND(AVERAGE(B3:D3),1) -> 118.3 | G3: 하길주 | H3: 77 | I3: =RANK(H3,$H$3:$H$10)&"등" -> 3등
A4: 사회과학 | B4: 152 | C4: 52 | D4: 110 | E4: =ROUND(AVERAGE(B4:D4),1) -> 104.7 | G4: 이선호 | H4: 85 | I4: =RANK(H4,$H$3:$H$10)&"등" -> 1등
A5: 인문과학 | B5: 52 | C5: 101 | D5: 89 | E5: 80.7 | G5: 강성수 | H5: 63 | I5: 5등
A6: 공학 | B6: 100 | C6: 98 | D6: 101 | E6: 99.7 | G6: 김보견 | H6: 45 | I6: 8등
A7: 디자인 | B7: 75 | C7: 200 | D7: 36 | E7: 103.7 | G7: 천수만 | H7: 64 | I7: 4등
G8: 이소영 | H8: 50 | I8: 6등
A9: [표3] | B9: 직급별 연봉액 | G9: 맹순자 | H9: 46 | I9: 7등
A10: 성명 | B10: 직급 | C10: 연봉액 | G10: 전기수 | H10: 78 | I10: 2등
A11: 강희정 | B11: 부장 | C11: 36483516
A12: 김민수 | B12: 사원 | C12: 12991336 | E12: [표4] | F12: 영진고등학교 2학년 모의고사 성적 현황
A13: 나인성 | B13: 사원 | C13: 14230019 | E13: 성명 | F13: 1차 | G13: 2차 | H13: 3차 | I13: 점수변동폭
A14: 민성진 | B14: 대리 | C14: 23122065 | E14: 배수진 | F14: 320 | G14: 341 | H14: 360 | I14: =MAX(F14:H14)-MIN(F14:H14) -> 40
A15: 박정아 | B15: 과장 | C15: 25390984 | E15: 강경화 | F15: 296 | G15: 250 | H15: 270 | I15: =MAX(F15:H15)-MIN(F15:H15) -> 46
A16: 서진이 | B16: 사원 | C16: 20859311 | E16: 김순응 | F16: 255 | G16: 310 | H16: 322 | I16: 67
A17: 강창우 | B17: 이사 | C17: 78945600 | E17: 고해진 | F17: 361 | G17: 308 | H17: 375 | I17: 67
E18: 박병철 | F18: 291 | G18: 342 | H18: 332 | I18: 51
A19: 2번째 큰값 | C19: =LARGE(C11:C17,2) -> 36483516 | E19: 이선화 | F19: 308 | G19: 367 | H19: 367 | I19: 59
A20: 2번째 작은 값 | C20: =SMALL(C11:C17,2) -> 14230019 | E20: 김태민 | F20: 321 | G20: 268 | H20: 297 | I20: 53
A22: [표5] | B22: 컴퓨터 연수 결과
A23: 성명 | B23: 엑셀 | C23: 워드 | D23: 인터넷활용
A24: 이지용 | B24: 87 | C24: 56 | D24: 78
A25: 남진철 | B25: 98 | C25: 87 | D25: 78
A26: 어인애 | B26: 45 | C26: 67 | D26: 89
A27: 천우덕 | B27: 34 | C27: 99 | D27: 86
A28: 민지환 | B28: 90 | C28: 87 | D28: 88
A29: 박성자 | B29: 93 | C29: 54 | D29: 90
A30: 표준편차 | B30: =STDEV(B24:B29) -> 27.57353804 | C30: =STDEV(C24:C29) -> 18.60107524 | D30: 5.455883674
A31: 분산 | B31: =VAR(B24:B29) -> 760.3 | C31: =VAR(C24:C29) -> 346 | D31: 29.76666667

Sheet 통계2(예제)
A1: 영어 시험 점수 | G1: 직원 근무 평가
F2: 성명 | G2: 입사일 | H2: 근무점수
A3: 이름 | B3: 영어점수 | D3: 응시 인원수 | F3: 박정호 | G3: 1994-06-06 | H3: 73
A4: 강인월 | B4: 90 | F4: 신정희 | G4: 1997-04-01 | H4: 68 | I4: 70점대
A5: 차영국 | B5: 100 | F5: 김용태 | G5: 1999-05-06 | H5: 98
A6: 이미자 | B6: 85 | F6: 김진영 | G6: 1995-11-01 | H6: 65
A7: 류장결 | B7: 70 | F7: 유현숙 | G7: 1998-01-01 | H7: 69
A8: 송태영 | B8: 95 | F8: 최정렬 | G8: 1998-06-10 | H8: 80
A9: 박상영 | B9: 65 | F9: 강창희 | G9: 1997-09-11 | H9: 86
A10: 최현구 | B10: 80 | F10: 천영주 | G10: 1996-06-10 | H10: 70
F11: 박인수 | G11: 1998-05-06 | H11: 68
C13: 대금 납부 현황 | G13: 교재 대금 납부 현황
A14: 성명 | B14: 공통필수 | C14: 전공필수 | D14: 전공선택 | F14: 번호 | G14: 성명 | H14: 공통필수 | I14: 전공필수 | J14: 전공선택 | K14: 어학
A15: 어동철 | B15: O | D15: O | F15: 101 | G15: 이동한 | H15: 납부 | J15: 납부
A16: 인당수 | C16: O | F16: 102 | G16: 어형부 | I16: 납부
A17: 기형도 | B17: O | D17: O | F17: 103 | G17: 강철민 | H17: 납부 | J17: 납부
A18: 안지만 | B18: O | C18: O | F18: 104 | G18: 오지훈 | I18: 납부 | K18: 납부
A19: 신호연 | D19: O | F19: 105 | G19: 사용철 | J19: 납부
A20: 윤동훈 | B20: O | C20: O | D20: O | F20: 106 | G20: 우동철 | I20: 납부 | J20: 납부
A21: 임미영 | C21: O | D21: O | F21: 107 | G21: 유민국 | H21: 납부 | I21: 납부 | K21: 납부
A22: 구대성 | B22: O | D22: O | F22: 108 | G22: 안동수 | J22: 납부
A23: 미납자수 | G23: 미납자수

Sheet 통계2(결과)
A1: 영어 시험 점수 | G1: 직원 근무 평가
F2: 성명 | G2: 입사일 | H2: 근무점수
A3: 이름 | B3: 영어점수 | D3: 응시 인원수 | F3: 박정호 | G3: 1994-06-06 | H3: 73
A4: 강인월 | B4: 90 | D4: =COUNT(B4:B10) -> 7 | F4: 신정희 | G4: 1997-04-01 | H4: 68 | I4: 70점대
A5: 차영국 | B5: 100 | F5: 김용태 | G5: 1999-05-06 | H5: 98 | I5: =COUNTIF(H3:H11,">=70")-COUNTIF(H3:H11,">80") -> 3
A6: 이미자 | B6: 85 | F6: 김진영 | G6: 1995-11-01 | H6: 65
A7: 류장결 | B7: 70 | F7: 유현숙 | G7: 1998-01-01 | H7: 69
A8: 송태영 | B8: 95 | F8: 최정렬 | G8: 1998-06-10 | H8: 80
A9: 박상영 | B9: 65 | F9: 강창희 | G9: 1997-09-11 | H9: 86
A10: 최현구 | B10: 80 | F10: 천영주 | G10: 1996-06-10 | H10: 70
F11: 박인수 | G11: 1998-05-06 | H11: 68
C13: 대금 납부 현황 | G13: 교재 대금 납부 현황
A14: 성명 | B14: 공통필수 | C14: 전공필수 | D14: 전공선택 | F14: 번호 | G14: 성명 | H14: 공통필수 | I14: 전공필수 | J14: 전공선택 | K14: 어학
A15: 어동철 | B15: O | D15: O | F15: 101 | G15: 이동한 | H15: 납부 | J15: 납부
A16: 인당수 | C16: O | F16: 102 | G16: 어형부 | I16: 납부
A17: 기형도 | B17: O | D17: O | F17: 103 | G17: 강철민 | H17: 납부 | J17: 납부
A18: 안지만 | B18: O | C18: O | F18: 104 | G18: 오지훈 | I18: 납부 | K18: 납부
A19: 신호연 | D19: O | F19: 105 | G19: 사용철 | J19: 납부
A20: 윤동훈 | B20: O | C20: O | D20: O | F20: 106 | G20: 우동철 | I20: 납부 | J20: 납부
A21: 임미영 | C21: O | D21: O | F21: 107 | G21: 유민국 | H21: 납부 | I21: 납부 | K21: 납부
A22: 구대성 | B22: O | D22: O | F22: 108 | G22: 안동수 | J22: 납부
A23: 미납자수 | B23: =COUNTA(B15:B22) -> 5 | C23: =COUNTA(C15:C22) -> 4 | D23: 6 | G23: 미납자수 | H23: =COUNTBLANK(H15:H22) -> 5 | I23: =COUNTBLANK(I15:I22) -> 4 | J23: 3 | K23: 6

Sheet 찾기1(예제)
A1: [표1] | F1: [표2] | K1: [표3]
A2: 고객번호 | B2: 고객명 | C2: 고객등급 | D2: 사은품 | F2: 위치 | G2: 이용일수 | H2: 회원명 | I2: 비고 | K2: 성명 | L2: 수강과목수 | M2: 수강료
A3: B_Sep1 | B3: 권태형 | C3: GOLD | F3: 통영 | G3: 10 | H3: 서현진 | I3: 우수회원 | K3: 김병수 | L3: 3
A4: B_Sep2 | B4: 강주호 | C4: DIAMOND | F4: 설악 | G4: 15 | H4: 하태훈 | I4: 우수회원 | K4: 차인태 | L4: 1
A5: B_Sep3 | B5: 김규리 | C5: SILVER | F5: 제주도 | G5: 11 | H5: 안동식 | I5: 일반회원 | K5: 정구왕 | L5: 2
A6: C_Tep3 | B6: 김동화 | C6: COPPER | F6: 안면도 | G6: 20 | H6: 김민철 | I6: V.I.P | K6: 정재현 | L6: 3
A7: C_Tep4 | B7: 김서현 | C7: GOLD | F7: 단양 | G7: 8 | H7: 장유익 | I7: 일반회원 | K7: 황진하 | L7: 2
A8: C_Tep5 | B8: 김서희 | C8: SILVER | F8: 삼척 | G8: 3 | H8: 강태공 | I8: 일반회원 | K8: 이윤태 | L8: 1
A9: C_Tep6 | B9: 류은서 | C9: GOLD | K9: 박한나 | L9: 3
A10: C_Tep7 | B10: 형민태 | C10: COPPER | H10: 회원명 | K10: 이미리 | L10: 4
A12: 고객등급별 사은품 목록 | L12: 수강과목별 할인율
A13: C | B13: S | C13: G | D13: D | L13: 수강과목수 | M13: 할인율
A14: 없음 | B14: 전화기 | C14: 스마트폰 | D14: 아이패드 | F14: [표5] | L14: 1 | M14: 0
F15: 사원코드 | G15: 성명 | H15: 담당부서 | I15: 근무년수 | J15: 직위 | L15: 2 | M15: 0.05
A16: [표 4] | F16: A-101 | G16: 김남이 | H16: 기획부 | I16: 16 | L16: 4 | M16: 0.1
A17: 교수코드 | B17: 교수명 | C17: 평가점수 | D17: 결과 | F17: A-201 | G17: 이지영 | H17: 영업부 | I17: 13 | L17: 6 | M17: 0.15
A18: CP-0701 | B18: 한가람 | C18: 190.15 | F18: B-312 | G18: 하나미 | H18: 기획부 | I18: 8
A19: CP-0503 | B19: 김은철 | C19: 166.93 | F19: C-245 | G19: 이정훈 | H19: 영업부 | I19: 12
A20: TC-9505 | B20: 고사리 | C20: 182.54 | F20: A-431 | G20: 임진태 | H20: 총무부 | I20: 4
A21: TC-7801 | B21: 박은별 | C21: 168.78 | F21: B-215 | G21: 강태형 | H21: 총무부 | I21: 11
A22: PT-0604 | B22: 성준서 | C22: 191.54 | F22: C-456 | G22: 피정우 | H22: 총무부 | I22: 3
A23: AC-0906 | B23: 이성연 | C23: 170.58 | F23: B-123 | G23: 이태민 | H23: 기획부 | I23: 15

Sheet 찾기1(결과)
A1: [표1] | F1: [표2] | K1: [표3]
A2: 고객번호 | B2: 고객명 | C2: 고객등급 | D2: 사은품 | F2: 위치 | G2: 이용일수 | H2: 회원명 | I2: 비고 | K2: 성명 | L2: 수강과목수 | M2: 수강료
A3: B_Sep1 | B3: 권태형 | C3: GOLD | D3: =HLOOKUP(LEFT(C3,1),$A$13:$D$14,2,0) -> 스마트폰 | F3: 통영 | G3: 10 | H3: 서현진 | I3: 우수회원 | K3: 김병수 | L3: 3 | M3: =L3*60000*(1-VLOOKUP(L3,$L$14:$M$17,2)) -> 171000
A4: B_Sep2 | B4: 강주호 | C4: DIAMOND | D4: =HLOOKUP(LEFT(C4,1),$A$13:$D$14,2,0) -> 아이패드 | F4: 설악 | G4: 15 | H4: 하태훈 | I4: 우수회원 | K4: 차인태 | L4: 1 | M4: =L4*60000*(1-VLOOKUP(L4,$L$14:$M$17,2)) -> 60000
A5: B_Sep3 | B5: 김규리 | C5: SILVER | D5: 전화기 | F5: 제주도 | G5: 11 | H5: 안동식 | I5: 일반회원 | K5: 정구왕 | L5: 2 | M5: 114000
A6: C_Tep3 | B6: 김동화 | C6: COPPER | D6: 없음 | F6: 안면도 | G6: 20 | H6: 김민철 | I6: V.I.P | K6: 정재현 | L6: 3 | M6: 171000
A7: C_Tep4 | B7: 김서현 | C7: GOLD | D7: 스마트폰 | F7: 단양 | G7: 8 | H7: 장유익 | I7: 일반회원 | K7: 황진하 | L7: 2 | M7: 114000
A8: C_Tep5 | B8: 김서희 | C8: SILVER | D8: 전화기 | F8: 삼척 | G8: 3 | H8: 강태공 | I8: 일반회원 | K8: 이윤태 | L8: 1 | M8: 60000
A9: C_Tep6 | B9: 류은서 | C9: GOLD | D9: 스마트폰 | K9: 박한나 | L9: 3 | M9: 171000
A10: C_Tep7 | B10: 형민태 | C10: COPPER | D10: 없음 | H10: 회원명 | I10: =VLOOKUP(LARGE(G3:G8,1),G3:I8,2,0) -> 김민철 | K10: 이미리 | L10: 4 | M10: 216000
A12: 고객등급별 사은품 목록 | L12: 수강과목별 할인율
A13: C | B13: S | C13: G | D13: D | L13: 수강과목수 | M13: 할인율
A14: 없음 | B14: 전화기 | C14: 스마트폰 | D14: 아이패드 | F14: [표5] | L14: 1 | M14: 0
F15: 사원코드 | G15: 성명 | H15: 담당부서 | I15: 근무년수 | J15: 직위 | L15: 2 | M15: 0.05
A16: [표 4] | F16: A-101 | G16: 김남이 | H16: 기획부 | I16: 16 | J16: =CHOOSE(MID(F16,3,1),"부장","과장","대리","사원") -> 부장 | L16: 4 | M16: 0.1
A17: 교수코드 | B17: 교수명 | C17: 평가점수 | D17: 결과 | F17: A-201 | G17: 이지영 | H17: 영업부 | I17: 13 | J17: 과장 | L17: 6 | M17: 0.15
A18: CP-0701 | B18: 한가람 | C18: 190.15 | D18: =CHOOSE(RANK(C18,$C$18:$C$23),"성과급","성과급","","","","감봉") -> 성과급 | F18: B-312 | G18: 하나미 | H18: 기획부 | I18: 8 | J18: 대리
A19: CP-0503 | B19: 김은철 | C19: 166.93 | D19: =CHOOSE(RANK(C19,$C$18:$C$23),"성과급","성과급","","","","감봉") -> 감봉 | F19: C-245 | G19: 이정훈 | H19: 영업부 | I19: 12 | J19: 과장
A20: TC-9505 | B20: 고사리 | C20: 182.54 | F20: A-431 | G20: 임진태 | H20: 총무부 | I20: 4 | J20: 사원
A21: TC-7801 | B21: 박은별 | C21: 168.78 | F21: B-215 | G21: 강태형 | H21: 총무부 | I21: 11 | J21: 과장
A22: PT-0604 | B22: 성준서 | C22: 191.54 | D22: 성과급 | F22: C-456 | G22: 피정우 | H22: 총무부 | I22: 3 | J22: 사원
A23: AC-0906 | B23: 이성연 | C23: 170.58 | F23: B-123 | G23: 이태민 | H23: 기획부 | I23: 15 | J23: 부장

Sheet 찾기2(예제)
B1: • CHOOSE 함수
B2: 날짜 입력 | C2: 2012-03-31
B3: 요일은?
B5: • LOOKUP 함수
B6: 점수 | C6: 학점 | E6: 점수 입력 | F6: 80
B7: 0 | C7: 가 | E7: 학 점
B8: 60 | C8: 양
B9: 70 | C9: 미
B10: 80 | C10: 우
B11: 90 | C11: 수

Sheet 찾기2(결과)
B1: • CHOOSE 함수
B2: 날짜 입력 | C2: 2012-03-31
B3: 요일은? | C3: =CHOOSE(WEEKDAY(C2,2),"월","화","수","목","금","토","일") -> 토
B5: • LOOKUP 함수
B6: 점수 | C6: 학점 | E6: 점수 입력 | F6: 80
B7: 0 | C7: 가 | E7: 학 점 | F7: =LOOKUP(F6, B7:B11, C7:C11) -> 우
B8: 60 | C8: 양
B9: 70 | C9: 미
B10: 80 | C10: 우
B11: 90 | C11: 수

Sheet 찾기3(예제)
B1: • MATCH, INDEX 함수
G2: 수량에 대한 제품별 할인율
B3: 제품명 수량 | C3: 참외 | D3: 메론 | E3: 수박 | F3: 포도 | G3: 자두
B4: 0 | C4: 0 | D4: 0.01 | E4: 0.03 | F4: 0.03 | G4: 0
B5: 100 | C5: 0.02 | D5: 0.03 | E5: 0.05 | F5: 0.05 | G5: 0.03
B6: 200 | C6: 0.03 | D6: 0.06 | E6: 0.07 | F6: 0.07 | G6: 0.05
B7: 300 | C7: 0.05 | D7: 0.08 | E7: 0.1 | F7: 0.1 | G7: 0.05
B8: 400 | C8: 0.07 | D8: 0.1 | E8: 0.12 | F8: 0.15 | G8: 0.07
B9: 500 | C9: 0.1 | D9: 0.15 | E9: 0.15 | F9: 0.2 | G9: 0.1
B11: ＊ 주문 제품과 수량
B12: 제품명 | C12: 수박
B13: 수량 | C13: 150
B14: 행 위치(수량)
B15: 열 위치(제품명)
B16: 할인율
B17: 할인율

Sheet 찾기3(결과)
B1: • MATCH, INDEX 함수
G2: 수량에 대한 제품별 할인율
B3: 제품명 수량 | C3: 참외 | D3: 메론 | E3: 수박 | F3: 포도 | G3: 자두
B4: 0 | C4: 0 | D4: 0.01 | E4: 0.03 | F4: 0.03 | G4: 0
B5: 100 | C5: 0.02 | D5: 0.03 | E5: 0.05 | F5: 0.05 | G5: 0.03
B6: 200 | C6: 0.03 | D6: 0.06 | E6: 0.07 | F6: 0.07 | G6: 0.05
B7: 300 | C7: 0.05 | D7: 0.08 | E7: 0.1 | F7: 0.1 | G7: 0.05
B8: 400 | C8: 0.07 | D8: 0.1 | E8: 0.12 | F8: 0.15 | G8: 0.07
B9: 500 | C9: 0.1 | D9: 0.15 | E9: 0.15 | F9: 0.2 | G9: 0.1
B11: ＊ 주문 제품과 수량
B12: 제품명 | C12: 수박
B13: 수량 | C13: 150
B14: 행 위치(수량) | C14: =MATCH(C13,B4:B9,1) -> 2
B15: 열 위치(제품명) | C15: =MATCH(C12,C3:G3,0) -> 3
B16: 할인율 | C16: =INDEX(C4:G9,C14,C15) -> 0.05
B17: 할인율 | C17: =INDEX(C4:G9,MATCH(C13,B4:B9,1),MATCH(C12,C3:G3,0)) -> 0.05

Sheet 정보(예제)
I2: 제품목록
B3: 번호 | C3: 품명 | D3: 규격 | E3: 수량 | F3: 단가 | G3: 공급가액 | I3: 품명 | J3: 규격 | K3: 단가
B4: 1 | C4: A001 | E4: 10 | I4: A001 | J4: Box | K4: 235000
B5: 2 | C5: A003 | E5: 15 | I5: A002 | J5: 개 | K5: 127000
B6: 3 | I6: A003 | J6: 개 | K6: 203000
B7: 4 | I7: A004 | J7: 개 | K7: 67000
B8: 5 | I8: A005 | J8: Box | K8: 103000
B9: 6 | I9: A006 | J9: 개 | K9: 54000
B10: 7 | I10: A007 | J10: 개 | K10: 135000
B11: 합계 | G11: =SUM(G4:G10) -> 0 | I11: A008 | J11: 개 | K11: 113000
I12: A009 | J12: 개 | K12: 114000
I13: A010 | J13: 개 | K13: 192000

Sheet 정보(결과)
I2: 제품목록
B3: 번호 | C3: 품명 | D3: 규격 | E3: 수량 | F3: 단가 | G3: 공급가액 | I3: 품명 | J3: 규격 | K3: 단가
B4: 1 | C4: A001 | D4: =IF(ISBLANK(C4),"",VLOOKUP(C4,$I$4:$K$13,2,0)) -> Box | E4: 10 | F4: =IF(ISBLANK(C4),"",VLOOKUP(C4,$I$4:$K$13,3,0)) -> 235000 | G4: =IF(ISERROR(E4*F4),"",E4*F4) -> 2350000 | I4: A001 | J4: Box | K4: 235000
B5: 2 | C5: A003 | D5: =IF(ISBLANK(C5),"",VLOOKUP(C5,$I$4:$K$13,2,0)) -> 개 | E5: 15 | F5: =IF(ISBLANK(C5),"",VLOOKUP(C5,$I$4:$K$13,3,0)) -> 203000 | G5: =IF(ISERROR(E5*F5),"",E5*F5) -> 3045000 | I5: A002 | J5: 개 | K5: 127000
B6: 3 | D6: =IF(ISBLANK(C6),"",VLOOKUP(C6,$I$4:$K$13,2,0)) ->  | I6: A003 | J6: 개 | K6: 203000
B7: 4 | I7: A004 | J7: 개 | K7: 67000
B8: 5 | I8: A005 | J8: Box | K8: 103000
B9: 6 | I9: A006 | J9: 개 | K9: 54000
B10: 7 | I10: A007 | J10: 개 | K10: 135000
B11: 합계 | G11: =SUM(G4:G10) -> 5395000 | I11: A008 | J11: 개 | K11: 113000
I12: A009 | J12: 개 | K12: 114000
I13: A010 | J13: 개 | K13: 192000

Sheet 실습1(예제)
A1: [표1] 채용 시험 성적 | G1: [표2] 상여금 지급 현황
A2: 수험번호 | B2: 이름 | C2: 성별 | D2: 성적 | K2: (단위:천원)
A3: 2004001 | B3: 강진정 | C3: 남 | D3: 83 | G3: 팀별 | H3: 성명 | I3: 사번 | J3: 본봉 | K3: 상여금
A4: 2004002 | B4: 김용민 | C4: 여 | D4: 67 | G4: 재무팀 | H4: 김나래 | I4: 9711P | J4: 1800
A5: 2004003 | B5: 진경만 | C5: 여 | D5: 90 | G5: 재무팀 | H5: 윤기상 | I5: 9801A | J5: 1500
A6: 2004004 | B6: 박자희 | C6: 남 | D6: 71 | G6: 영업팀 | H6: 황선호 | I6: 9914A | J6: 1200
A7: 2004005 | B7: 고현주 | C7: 여 | D7: 96 | G7: 영업팀 | H7: 이재만 | I7: 9822Q | J7: 2200
A8: 2004006 | B8: 성현이 | C8: 여 | D8: 98 | G8: 기획팀 | H8: 허준용 | I8: 9901B | J8: 1300
A9: 2004007 | B9: 임수정 | C9: 남 | D9: 100 | G9: 기획팀 | H9: 방기차 | I9: 9612P | J9: 2000
A10: 2004008 | B10: 주철한 | C10: 남 | D10: 53 | G10: 홍보팀 | H10: 채만종 | I10: 9912P | J10: 1000
A11: 2004009 | B11: 나혼정 | C11: 여 | D11: 45
G12: 상여금 지급 기준표
C13: 표준편차(남) | G13: 입사년도 | H13: 96 | I13: 97 | J13: 98 | K13: 99
G14: 구성비율(%) | H14: 0.27 | I14: 0.35 | J14: 0.23 | K14: 0.15
A15: [표3] 필기 시험 평가 | G15: 상여금 | H15: 1250 | I15: 950 | J15: 870 | K15: 720
A16: 성명 | B16: 영어 | C16: 전산 | D16: 상식 | E16: 평가
A17: 장혁준 | B17: 75 | C17: 86 | D17: 85
A18: 이선돌 | B18: 92 | C18: 89 | D18: 94 | G18: [표4] 청소년 수련원 입소예약
A19: 민영호 | B19: 50 | C19: 98 | D19: 90 | G19: 접수코드 | H19: 동아리명 | I19: 입소월 | J19: 예정인원 | K19: 수련원명
A20: 곽태우 | B20: 55 | C20: 90 | D20: 95 | G20: K001-1 | H20: 가야 | I20: 4월 | J20: 24
A21: 전준호 | B21: 65 | C21: 85 | D21: 70 | G21: K001-2 | H21: 걸스 | I21: 5월 | J21: 32
A22: 박태식 | B22: 75 | C22: 65 | D22: 40 | G22: S001-3 | H22: 한별 | I22: 5월 | J22: 45
A23: 차만석 | B23: 86 | C23: 100 | D23: 95 | G23: S001-4 | H23: 참빛 | I23: 6월 | J23: 68
A24: 이미자 | B24: 85 | C24: 68 | D24: 98 | G24: K002-2 | H24: 너럭 | I24: 6월 | J24: 55
G25: K003-2 | H25: 참사랑 | I25: 7월 | J25: 24
G26: S002-3 | H26: 새벽 | I26: 8월 | J26: 58
A27: [표5] 매출 판매 수량 집계 | E27: (단위 : 대) | G27: S001-1 | H27: 울트라 | I27: 8월 | J27: 30
A28: 판매점 | B28: 냉장고 | C28: 홈시어터 | D28: 세탁기 | E28: 합계
A29: 중구 | B29: 78 | C29: 86 | D29: 75 | E29: =SUM(C29:D29) -> 161
A30: 동구 | B30: 85 | C30: 86 | D30: 95 | E30: =SUM(C30:D30) -> 181 | F30: 중구지점의 냉장고 최대수량과 중구지점의 세탁기 최소수량의 차이
A31: 중구 | B31: 98 | C31: 78 | D31: 98 | E31: 176
A32: 북구 | B32: 100 | C32: 95 | D32: 98 | E32: 193
A33: 동구 | B33: 85 | C33: 75 | D33: 75 | E33: 150
A34: 중구 | B34: 100 | C34: 95 | D34: 98 | E34: 193
A35: 북구 | B35: 85 | C35: 75 | D35: 75 | E35: 150

Sheet 실습1(결과)
A1: [표1] 채용 시험 성적 | G1: [표2] 상여금 지급 현황
A2: 수험번호 | B2: 이름 | C2: 성별 | D2: 성적 | K2: (단위:천원)
A3: 2004001 | B3: 강진정 | C3: 남 | D3: 83 | G3: 팀별 | H3: 성명 | I3: 사번 | J3: 본봉 | K3: 상여금
A4: 2004002 | B4: 김용민 | C4: 여 | D4: 67 | G4: 재무팀 | H4: 김나래 | I4: 9711P | J4: 1800 | K4: =HLOOKUP(LEFT(I4,2),$H$13:$K$15,3,0) -> 950
A5: 2004003 | B5: 진경만 | C5: 여 | D5: 90 | G5: 재무팀 | H5: 윤기상 | I5: 9801A | J5: 1500 | K5: =HLOOKUP(LEFT(I5,2),$H$13:$K$15,3,0) -> 870
A6: 2004004 | B6: 박자희 | C6: 남 | D6: 71 | G6: 영업팀 | H6: 황선호 | I6: 9914A | J6: 1200 | K6: 720
A7: 2004005 | B7: 고현주 | C7: 여 | D7: 96 | G7: 영업팀 | H7: 이재만 | I7: 9822Q | J7: 2200 | K7: 870
A8: 2004006 | B8: 성현이 | C8: 여 | D8: 98 | G8: 기획팀 | H8: 허준용 | I8: 9901B | J8: 1300 | K8: 720
A9: 2004007 | B9: 임수정 | C9: 남 | D9: 100 | G9: 기획팀 | H9: 방기차 | I9: 9612P | J9: 2000 | K9: 1250
A10: 2004008 | B10: 주철한 | C10: 남 | D10: 53 | G10: 홍보팀 | H10: 채만종 | I10: 9912P | J10: 1000 | K10: 720
A11: 2004009 | B11: 나혼정 | C11: 여 | D11: 45
G12: 상여금 지급 기준표
C13: 표준편차(남) | D13: =ROUNDUP(DSTDEV(A2:D11,D2,C2:C3),1) -> 19.9 | G13: 입사년도 | H13: 96 | I13: 97 | J13: 98 | K13: 99
G14: 구성비율(%) | H14: 0.27 | I14: 0.35 | J14: 0.23 | K14: 0.15
A15: [표3] 필기 시험 평가 | G15: 상여금 | H15: 1250 | I15: 950 | J15: 870 | K15: 720
A16: 성명 | B16: 영어 | C16: 전산 | D16: 상식 | E16: 평가
A17: 장혁준 | B17: 75 | C17: 86 | D17: 85 | E17: =IF(SUM(B17:D17)>=270,"우수상","") -> 
A18: 이선돌 | B18: 92 | C18: 89 | D18: 94 | E18: =IF(SUM(B18:D18)>=270,"우수상","") -> 우수상 | G18: [표4] 청소년 수련원 입소예약
A19: 민영호 | B19: 50 | C19: 98 | D19: 90 | G19: 접수코드 | H19: 동아리명 | I19: 입소월 | J19: 예정인원 | K19: 수련원명
A20: 곽태우 | B20: 55 | C20: 90 | D20: 95 | G20: K001-1 | H20: 가야 | I20: 4월 | J20: 24 | K20: =CHOOSE(RIGHT(G20,1),"청평","대성리","대천","파주") -> 청평
A21: 전준호 | B21: 65 | C21: 85 | D21: 70 | G21: K001-2 | H21: 걸스 | I21: 5월 | J21: 32 | K21: =CHOOSE(RIGHT(G21,1),"청평","대성리","대천","파주") -> 대성리
A22: 박태식 | B22: 75 | C22: 65 | D22: 40 | G22: S001-3 | H22: 한별 | I22: 5월 | J22: 45 | K22: 대천
A23: 차만석 | B23: 86 | C23: 100 | D23: 95 | E23: 우수상 | G23: S001-4 | H23: 참빛 | I23: 6월 | J23: 68 | K23: 파주
A24: 이미자 | B24: 85 | C24: 68 | D24: 98 | G24: K002-2 | H24: 너럭 | I24: 6월 | J24: 55 | K24: 대성리
G25: K003-2 | H25: 참사랑 | I25: 7월 | J25: 24 | K25: 대성리
G26: S002-3 | H26: 새벽 | I26: 8월 | J26: 58 | K26: 대천
A27: [표5] 매출 판매 수량 집계 | E27: (단위 : 대) | G27: S001-1 | H27: 울트라 | I27: 8월 | J27: 30 | K27: 청평
A28: 판매점 | B28: 냉장고 | C28: 홈시어터 | D28: 세탁기 | E28: 합계
A29: 중구 | B29: 78 | C29: 86 | D29: 75 | E29: =SUM(C29:D29) -> 161
A30: 동구 | B30: 85 | C30: 86 | D30: 95 | E30: =SUM(C30:D30) -> 181 | F30: 중구지점의 냉장고 최대수량과 중구지점의 세탁기 최소수량의 차이
A31: 중구 | B31: 98 | C31: 78 | D31: 98 | E31: 176 | F31: =ABS(DMAX(A28:E35,B28,A28:A29)-DMIN(A28:E35,D28,A28:A29)) -> 25
A32: 북구 | B32: 100 | C32: 95 | D32: 98 | E32: 193
A33: 동구 | B33: 85 | C33: 75 | D33: 75 | E33: 150
A34: 중구 | B34: 100 | C34: 95 | D34: 98 | E34: 193
A35: 북구 | B35: 85 | C35: 75 | D35: 75 | E35: 150

Sheet 배열수식(예제)
B1: 성별 | C1: 금액
A2: 강희정 | B2: 여 | C2: 10000
A3: 김민수 | B3: 남 | C3: 15000
A4: 민성민 | B4: 남 | C4: 10000
A5: 박정아 | B5: 여 | C5: 20000
A6: 나인성 | B6: 남 | C6: 17000
A8: 남자 금액 합계
A10: 남자 인원수

Sheet 배열수식(결과)
A1: 이름 | B1: 성별 | C1: 금액
A2: 강희정 | B2: 여 | C2: 10000
A3: 김민수 | B3: 남 | C3: 15000
A4: 민성민 | B4: 남 | C4: 10000
A5: 박정아 | B5: 여 | C5: 20000
A6: 나인성 | B6: 남 | C6: 17000
A8: 남자 금액 합계 | C8: =SUM((B2:B6="남")*C2:C6) -> 42000
A10: 남자 인원수 | C10: =SUM((B2:B6="남")*1) -> 3

Sheet 배열1(예제)
A1: [표1]
A2: 부서별 성적분포
A3: 부서 | B3: 직무수행 평균 | C3: 인원수
A4: 관리부
A5: 기술부
A6: 기획실
A7: 인사부
A9: [표2]
A10: 부서명 | B10: 이름 | C10: 직무수행 | D10: 이해판단 | E10: 성실책임 | F10: 절충협조
A11: 기획실 | B11: 이나영 | C11: 82 | D11: 56 | E11: 77 | F11: 91
A12: 기획실 | B12: 방극준 | C12: 85 | D12: 70 | E12: 78 | F12: 62
A13: 기술부 | B13: 이원섭 | C13: 91 | D13: 62 | E13: 70 | F13: 82
A14: 기술부 | B14: 정태은 | C14: 92 | D14: 90 | E14: 78 | F14: 85
A15: 기획실 | B15: 최재석 | C15: 87 | D15: 85 | E15: 82 | F15: 70
A16: 관리부 | B16: 최준기 | C16: 78 | D16: 68 | E16: 78 | F16: 91
A17: 관리부 | B17: 이원형 | C17: 77 | D17: 78 | E17: 82 | F17: 91
A18: 인사부 | B18: 홍지원 | C18: 77 | D18: 78 | E18: 76 | F18: 80
A19: 기술부 | B19: 정은숙 | C19: 96 | D19: 82 | E19: 78 | F19: 56
A20: 기획실 | B20: 김지영 | C20: 84 | D20: 78 | E20: 69 | F20: 70
A21: 기획실 | B21: 박영훈 | C21: 75 | D21: 79 | E21: 82 | F21: 82
A22: 인사부 | B22: 이준성 | C22: 72 | D22: 92 | E22: 95 | F22: 90
A23: 인사부 | B23: 전광일 | C23: 88 | D23: 95 | E23: 89 | F23: 82
A24: 기술부 | B24: 유제관 | C24: 92 | D24: 68 | E24: 77 | F24: 75
A25: 인사부 | B25: 김민영 | C25: 84 | D25: 56 | E25: 67 | F25: 87
A26: 기획실 | B26: 도경민 | C26: 97 | D26: 89 | E26: 88 | F26: 77
A27: 관리부 | B27: 인정제 | C27: 88 | D27: 69 | E27: 72 | F27: 68
A28: 기술부 | B28: 최대훈 | C28: 88 | D28: 91 | E28: 78 | F28: 85
A29: 인사부 | B29: 윤여송 | C29: 66 | D29: 92 | E29: 90 | F29: 97
A30: 기획실 | B30: 유근선 | C30: 92 | D30: 68 | E30: 91 | F30: 91
A31: 관리부 | B31: 정환호 | C31: 81 | D31: 78 | E31: 82 | F31: 77
A32: 관리부 | B32: 이응표 | C32: 76 | D32: 82 | E32: 80 | F32: 75
A33: 인사부 | B33: 이지수 | C33: 98 | D33: 98 | E33: 90 | F33: 80

Sheet 배열1(결과)
A1: [표1]
A2: 부서별 성적분포
A3: 부서 | B3: 직무수행 평균 | C3: 인원수
A4: 관리부 | B4: =AVERAGE(IF($A$11:$A$33=A4,$C$11:$C$33)) -> 80 | C4: =SUM(IF($A$11:$A$33=A4,1)) -> 5
A5: 기술부 | B5: =AVERAGE(IF($A$11:$A$33=A5,$C$11:$C$33)) -> 91.8 | C5: =SUM(IF($A$11:$A$33=A5,1)) -> 5
A6: 기획실 | B6: =AVERAGE(IF($A$11:$A$33=A6,$C$11:$C$33)) -> 86 | C6: =SUM(IF($A$11:$A$33=A6,1)) -> 7
A7: 인사부 | B7: =AVERAGE(IF($A$11:$A$33=A7,$C$11:$C$33)) -> 80.83333333 | C7: =SUM(IF($A$11:$A$33=A7,1)) -> 6
A9: [표2]
A10: 부서명 | B10: 이름 | C10: 직무수행 | D10: 이해판단 | E10: 성실책임 | F10: 절충협조
A11: 기획실 | B11: 이나영 | C11: 82 | D11: 56 | E11: 77 | F11: 91
A12: 기획실 | B12: 방극준 | C12: 85 | D12: 70 | E12: 78 | F12: 62
A13: 기술부 | B13: 이원섭 | C13: 91 | D13: 62 | E13: 70 | F13: 82
A14: 기술부 | B14: 정태은 | C14: 92 | D14: 90 | E14: 78 | F14: 85
A15: 기획실 | B15: 최재석 | C15: 87 | D15: 85 | E15: 82 | F15: 70
A16: 관리부 | B16: 최준기 | C16: 78 | D16: 68 | E16: 78 | F16: 91
A17: 관리부 | B17: 이원형 | C17: 77 | D17: 78 | E17: 82 | F17: 91
A18: 인사부 | B18: 홍지원 | C18: 77 | D18: 78 | E18: 76 | F18: 80
A19: 기술부 | B19: 정은숙 | C19: 96 | D19: 82 | E19: 78 | F19: 56
A20: 기획실 | B20: 김지영 | C20: 84 | D20: 78 | E20: 69 | F20: 70
A21: 기획실 | B21: 박영훈 | C21: 75 | D21: 79 | E21: 82 | F21: 82
A22: 인사부 | B22: 이준성 | C22: 72 | D22: 92 | E22: 95 | F22: 90
A23: 인사부 | B23: 전광일 | C23: 88 | D23: 95 | E23: 89 | F23: 82
A24: 기술부 | B24: 유제관 | C24: 92 | D24: 68 | E24: 77 | F24: 75
A25: 인사부 | B25: 김민영 | C25: 84 | D25: 56 | E25: 67 | F25: 87
A26: 기획실 | B26: 도경민 | C26: 97 | D26: 89 | E26: 88 | F26: 77
A27: 관리부 | B27: 인정제 | C27: 88 | D27: 69 | E27: 72 | F27: 68
A28: 기술부 | B28: 최대훈 | C28: 88 | D28: 91 | E28: 78 | F28: 85
A29: 인사부 | B29: 윤여송 | C29: 66 | D29: 92 | E29: 90 | F29: 97
A30: 기획실 | B30: 유근선 | C30: 92 | D30: 68 | E30: 91 | F30: 91
A31: 관리부 | B31: 정환호 | C31: 81 | D31: 78 | E31: 82 | F31: 77
A32: 관리부 | B32: 이응표 | C32: 76 | D32: 82 | E32: 80 | F32: 75
A33: 인사부 | B33: 이지수 | C33: 98 | D33: 98 | E33: 90 | F33: 80

Sheet 배열2(예제)
A1: [표1]
A2: 과목명 | B2: 성명 | C2: 학과 | D2: 출석 | E2: 과제 | F2: 중간 | G2: 기말 | I2: [표2]
A3: C002 | B3: 김대성 | C3: 컴퓨터공학과 | D3: 18 | E3: 20 | F3: 25 | G3: 20 | I3: 과목명 | J3: 전자공학과 | K3: 컴퓨터공학과
A4: C002 | B4: 지민희 | C4: 컴퓨터공학과 | D4: 20 | E4: 20 | F4: 22 | G4: 18 | I4: C002
A5: C002 | B5: 형민석 | C5: 컴퓨터공학과 | D5: 16 | E5: 19 | F5: 17 | G5: 25 | I5: P007
A6: C002 | B6: 이현실 | C6: 컴퓨터공학과 | D6: 15 | E6: 15 | F6: 13 | G6: 26 | I6: C005
A7: P007 | B7: 김대성 | C7: 컴퓨터공학과 | D7: 20 | E7: 13 | F7: 24 | G7: 26 | I7: S006
A8: P007 | B8: 지민희 | C8: 컴퓨터공학과 | D8: 15 | E8: 20 | F8: 26 | G8: 24 | I8: P001
A9: P007 | B9: 이현실 | C9: 컴퓨터공학과 | D9: 12 | E9: 15 | F9: 20 | G9: 22
A10: P007 | B10: 이성희 | C10: 컴퓨터공학과 | D10: 18 | E10: 17 | F10: 18 | G10: 13 | I10: [표3]
A11: P007 | B11: 송창민 | C11: 컴퓨터공학과 | D11: 20 | E11: 16 | F11: 24 | G11: 18 | I11: 학과 | J11: 출석 | K11: 과제 | L11: 중간 | M11: 기말
A12: C005 | B12: 장충태 | C12: 전자공학과 | D12: 16 | E12: 14 | F12: 10 | G12: 12 | I12: 컴퓨터공학과
A13: C005 | B13: 최종민 | C13: 전자공학과 | D13: 19 | E13: 17 | F13: 20 | G13: 20 | I13: 전자공학과
A14: C005 | B14: 한가영 | C14: 전자공학과 | D14: 17 | E14: 16 | F14: 28 | G14: 17
A15: C005 | B15: 심학철 | C15: 전자공학과 | D15: 20 | E15: 18 | F15: 30 | G15: 28
A16: S006 | B16: 한가영 | C16: 전자공학과 | D16: 20 | E16: 20 | F16: 28 | G16: 30
A17: S006 | B17: 진명훈 | C17: 전자공학과 | D17: 18 | E17: 13 | F17: 24 | G17: 8
A18: S006 | B18: 조인희 | C18: 전자공학과 | D18: 20 | E18: 15 | F18: 24 | G18: 12
A19: P001 | B19: 이성희 | C19: 컴퓨터공학과 | D19: 20 | E19: 20 | F19: 28 | G19: 28
A20: P001 | B20: 송창민 | C20: 컴퓨터공학과 | D20: 20 | E20: 20 | F20: 30 | G20: 20
A21: P001 | B21: 형민석 | C21: 컴퓨터공학과 | D21: 18 | E21: 18 | F21: 22 | G21: 28
A22: P001 | B22: 최준석 | C22: 컴퓨터공학과 | D22: 16 | E22: 18 | F22: 18 | G22: 22
A23: P001 | B23: 이성희 | C23: 컴퓨터공학과 | D23: 12 | E23: 12 | F23: 20 | G23: 12

Sheet 배열2(결과)
A1: [표1]
A2: 과목명 | B2: 성명 | C2: 학과 | D2: 출석 | E2: 과제 | F2: 중간 | G2: 기말 | I2: [표2]
A3: C002 | B3: 김대성 | C3: 컴퓨터공학과 | D3: 18 | E3: 20 | F3: 25 | G3: 20 | I3: 과목명 | J3: 전자공학과 | K3: 컴퓨터공학과
A4: C002 | B4: 지민희 | C4: 컴퓨터공학과 | D4: 20 | E4: 20 | F4: 22 | G4: 18 | I4: C002 | J4: =SUM(($A$3:$A$23=$I4)*($C$3:$C$23=J$3)) -> 0 | K4: =SUM(($A$3:$A$23=$I4)*($C$3:$C$23=K$3)) -> 4
A5: C002 | B5: 형민석 | C5: 컴퓨터공학과 | D5: 16 | E5: 19 | F5: 17 | G5: 25 | I5: P007 | J5: =SUM(($A$3:$A$23=$I5)*($C$3:$C$23=J$3)) -> 0 | K5: =SUM(($A$3:$A$23=$I5)*($C$3:$C$23=K$3)) -> 5
A6: C002 | B6: 이현실 | C6: 컴퓨터공학과 | D6: 15 | E6: 15 | F6: 13 | G6: 26 | I6: C005 | J6: =SUM(($A$3:$A$23=$I6)*($C$3:$C$23=J$3)) -> 4 | K6: =SUM(($A$3:$A$23=$I6)*($C$3:$C$23=K$3)) -> 0
A7: P007 | B7: 김대성 | C7: 컴퓨터공학과 | D7: 20 | E7: 13 | F7: 24 | G7: 26 | I7: S006 | J7: =SUM(($A$3:$A$23=$I7)*($C$3:$C$23=J$3)) -> 3 | K7: =SUM(($A$3:$A$23=$I7)*($C$3:$C$23=K$3)) -> 0
A8: P007 | B8: 지민희 | C8: 컴퓨터공학과 | D8: 15 | E8: 20 | F8: 26 | G8: 24 | I8: P001 | J8: =SUM(($A$3:$A$23=$I8)*($C$3:$C$23=J$3)) -> 0 | K8: =SUM(($A$3:$A$23=$I8)*($C$3:$C$23=K$3)) -> 5
A9: P007 | B9: 이현실 | C9: 컴퓨터공학과 | D9: 12 | E9: 15 | F9: 20 | G9: 22
A10: P007 | B10: 이성희 | C10: 컴퓨터공학과 | D10: 18 | E10: 17 | F10: 18 | G10: 13 | I10: [표3]
A11: P007 | B11: 송창민 | C11: 컴퓨터공학과 | D11: 20 | E11: 16 | F11: 24 | G11: 18 | I11: 학과 | J11: 출석 | K11: 과제 | L11: 중간 | M11: 기말
A12: C005 | B12: 장충태 | C12: 전자공학과 | D12: 16 | E12: 14 | F12: 10 | G12: 12 | I12: 컴퓨터공학과 | J12: =AVERAGE(IF($C$3:$C$23=$I12,D$3:D$23)) -> 17.14285714 | K12: =AVERAGE(IF($C$3:$C$23=$I12,E$3:E$23)) -> 17.35714286 | L12: =AVERAGE(IF($C$3:$C$23=$I12,F$3:F$23)) -> 21.92857143 | M12: =AVERAGE(IF($C$3:$C$23=$I12,G$3:G$23)) -> 21.57142857
A13: C005 | B13: 최종민 | C13: 전자공학과 | D13: 19 | E13: 17 | F13: 20 | G13: 20 | I13: 전자공학과 | J13: =AVERAGE(IF($C$3:$C$23=$I13,D$3:D$23)) -> 18.57142857 | K13: =AVERAGE(IF($C$3:$C$23=$I13,E$3:E$23)) -> 16.14285714 | L13: =AVERAGE(IF($C$3:$C$23=$I13,F$3:F$23)) -> 23.42857143 | M13: =AVERAGE(IF($C$3:$C$23=$I13,G$3:G$23)) -> 18.14285714
A14: C005 | B14: 한가영 | C14: 전자공학과 | D14: 17 | E14: 16 | F14: 28 | G14: 17
A15: C005 | B15: 심학철 | C15: 전자공학과 | D15: 20 | E15: 18 | F15: 30 | G15: 28
A16: S006 | B16: 한가영 | C16: 전자공학과 | D16: 20 | E16: 20 | F16: 28 | G16: 30
A17: S006 | B17: 진명훈 | C17: 전자공학과 | D17: 18 | E17: 13 | F17: 24 | G17: 8
A18: S006 | B18: 조인희 | C18: 전자공학과 | D18: 20 | E18: 15 | F18: 24 | G18: 12
A19: P001 | B19: 이성희 | C19: 컴퓨터공학과 | D19: 20 | E19: 20 | F19: 28 | G19: 28
A20: P001 | B20: 송창민 | C20: 컴퓨터공학과 | D20: 20 | E20: 20 | F20: 30 | G20: 20
A21: P001 | B21: 형민석 | C21: 컴퓨터공학과 | D21: 18 | E21: 18 | F21: 22 | G21: 28
A22: P001 | B22: 최준석 | C22: 컴퓨터공학과 | D22: 16 | E22: 18 | F22: 18 | G22: 22
A23: P001 | B23: 이성희 | C23: 컴퓨터공학과 | D23: 12 | E23: 12 | F23: 20 | G23: 12

Sheet 배열3(예제)
A1: [표1] 분류코드별 최고 월평균임금 | E1: [표2] 분류코드 SA의 업무코드별 종사자수의 합계
A2: 분류코드 | B2: 최고 월평균임금 | E2: 업무코드 | F2: 종사자수 합계
A3: SA | E3: 분석가
A4: AP | E4: 관리자
E5: 기획자
A6: [표3]
A7: 분류코드 | B7: 업무구분 | C7: 종사자수 | D7: 월평균임금 | E7: 전년월평균임금 | F7: 평균경력
A8: SA | B8: 시스템설계분석가 | C8: 4829 | D8: 3420000 | E8: 3100000 | F8: 8
A9: SA | B9: IT컨설턴트 | C9: 14195 | D9: 3090000 | E9: 3000000 | F9: 5.9
A10: AP | B10: 시스템SW개발자 | C10: 8130 | D10: 2560000 | E10: 2400000 | F10: 6.5
A11: SA | B11: 보안관리자 | C11: 5797 | D11: 2540000 | E11: 2450000 | F11: 6
A12: SA | B12: NW분석가 | C12: 3168 | D12: 2290000 | E12: 2450000 | F12: 4.9
A13: AP | B13: 응용SW개발자 | C13: 114054 | D13: 2200000 | E13: 2350000 | F13: 5.4
A14: SA | B14: SM관리자 | C14: 76947 | D14: 1990000 | E14: 2100000 | F14: 6.7
A15: AP | B15: 웹개발자 | C15: 15887 | D15: 1640000 | E15: 1850000 | F15: 4.1
A16: SA | B16: 웹관리자 | C16: 32931 | D16: 1490000 | E16: 1650000 | F16: 3.1
A17: AP | B17: 통신관리자 | C17: 31080 | D17: 1750000 | E17: 2540000 | F17: 8.4
A18: AP | B18: 통신케이블설치 | C18: 21786 | D18: 1840000 | E18: 1910000 | F18: 10.6
A19: AP | B19: 멀티미디어기획자 | C19: 2258 | D19: 1790000 | E19: 1950000 | F19: 3.4
A20: SA | B20: 망기획자 | C20: 9470 | D20: 1520000 | E20: 1300000 | F20: 9.7
A21: SA | B21: PC수리원 | C21: 37802 | D21: 1730000 | E21: 1750000 | F21: 4.9
A22: AP | B22: PC강사 | C22: 21146 | D22: 1190000 | E22: 1200000 | F22: 2.8
A23: SA | B23: 정보통신관리자 | C23: 21222 | D23: 1460000 | E23: 3300000 | F23: 12.9

Sheet 배열3(결과)
A1: [표1] 분류코드별 최고 월평균임금 | E1: [표2] 분류코드 SA의 업무코드별 종사자수의 합계
A2: 분류코드 | B2: 최고 월평균임금 | E2: 업무코드 | F2: 종사자수 합계
A3: SA | B3: =MAX(IF(($A$8:$A$23=$A3),$D$8:$D$23)) -> 3420000 | E3: 분석가 | F3: =SUM((RIGHT($B$8:$B$23,3)=$E3)*($A$8:$A$23="SA")*$C$8:$C$23) -> 7997
A4: AP | B4: =MAX(IF(($A$8:$A$23=$A4),$D$8:$D$23)) -> 2560000 | E4: 관리자 | F4: =SUM((RIGHT($B$8:$B$23,3)=$E4)*($A$8:$A$23="SA")*$C$8:$C$23) -> 136897
E5: 기획자 | F5: =SUM((RIGHT($B$8:$B$23,3)=$E5)*($A$8:$A$23="SA")*$C$8:$C$23) -> 9470
A6: [표3]
A7: 분류코드 | B7: 업무구분 | C7: 종사자수 | D7: 월평균임금 | E7: 전년월평균임금 | F7: 평균경력
A8: SA | B8: 시스템설계분석가 | C8: 4829 | D8: 3420000 | E8: 3100000 | F8: 8
A9: SA | B9: IT컨설턴트 | C9: 14195 | D9: 3090000 | E9: 3000000 | F9: 5.9
A10: AP | B10: 시스템SW개발자 | C10: 8130 | D10: 2560000 | E10: 2400000 | F10: 6.5
A11: SA | B11: 보안관리자 | C11: 5797 | D11: 2540000 | E11: 2450000 | F11: 6
A12: SA | B12: NW분석가 | C12: 3168 | D12: 2290000 | E12: 2450000 | F12: 4.9
A13: AP | B13: 응용SW개발자 | C13: 114054 | D13: 2200000 | E13: 2350000 | F13: 5.4
A14: SA | B14: SM관리자 | C14: 76947 | D14: 1990000 | E14: 2100000 | F14: 6.7
A15: AP | B15: 웹개발자 | C15: 15887 | D15: 1640000 | E15: 1850000 | F15: 4.1
A16: SA | B16: 웹관리자 | C16: 32931 | D16: 1490000 | E16: 1650000 | F16: 3.1
A17: AP | B17: 통신관리자 | C17: 31080 | D17: 1750000 | E17: 2540000 | F17: 8.4
A18: AP | B18: 통신케이블설치 | C18: 21786 | D18: 1840000 | E18: 1910000 | F18: 10.6
A19: AP | B19: 멀티미디어기획자 | C19: 2258 | D19: 1790000 | E19: 1950000 | F19: 3.4
A20: SA | B20: 망기획자 | C20: 9470 | D20: 1520000 | E20: 1300000 | F20: 9.7
A21: SA | B21: PC수리원 | C21: 37802 | D21: 1730000 | E21: 1750000 | F21: 4.9
A22: AP | B22: PC강사 | C22: 21146 | D22: 1190000 | E22: 1200000 | F22: 2.8
A23: SA | B23: 정보통신관리자 | C23: 21222 | D23: 1460000 | E23: 3300000 | F23: 12.9

Sheet 사용자정의(예제)
A2: 과목명 | B2: 성명 | C2: 출석 | D2: 과제 | E2: 중간 | F2: 기말 | G2: 총점
A3: C002 | B3: 김대성 | C3: 18 | D3: 20 | E3: 25 | F3: 20
A4: P007 | B4: 이현실 | C4: 12 | D4: 15 | E4: 20 | F4: 22
A5: C005 | B5: 장충태 | C5: 16 | D5: 14 | E5: 10 | F5: 12
A6: C005 | B6: 심학철 | C6: 20 | D6: 18 | E6: 30 | F6: 28
A7: S006 | B7: 한가영 | C7: 20 | D7: 20 | E7: 28 | F7: 30
A8: S006 | B8: 진명훈 | C8: 18 | D8: 13 | E8: 24 | F8: 8
A9: P001 | B9: 형민석 | C9: 18 | D9: 18 | E9: 22 | F9: 28
A10: P001 | B10: 최준석 | C10: 16 | D10: 18 | E10: 18 | F10: 22
A12: [표2]
A13: 분류코드 | B13: 업무구분 | C13: 종사자수 | D13: 월평균임금 | E13: 전년월평균임금 | F13: 평균경력 | G13: 보너스지급율
A14: SA | B14: IT컨설턴트 | C14: 14195 | D14: 3090000 | E14: 3000000 | F14: 5.9
A15: AP | B15: 시스템SW개발자 | C15: 8130 | D15: 2560000 | E15: 2400000 | F15: 6.5
A16: SA | B16: 보안관리자 | C16: 5797 | D16: 2540000 | E16: 2450000 | F16: 6
A17: SA | B17: NW분석가 | C17: 3168 | D17: 2290000 | E17: 2450000 | F17: 4.9
A18: AP | B18: 통신케이블설치 | C18: 21786 | D18: 1840000 | E18: 1910000 | F18: 10.6
A19: AP | B19: 멀티미디어기획자 | C19: 2258 | D19: 1790000 | E19: 1950000 | F19: 3.4
A20: SA | B20: 망기획자 | C20: 9470 | D20: 1520000 | E20: 1300000 | F20: 9.7
A21: SA | B21: PC수리원 | C21: 37802 | D21: 1730000 | E21: 1750000 | F21: 4.9
A22: AP | B22: PC강사 | C22: 21146 | D22: 1190000 | E22: 1200000 | F22: 2.8
A23: SA | B23: 정보통신관리자 | C23: 21222 | D23: 1460000 | E23: 3300000 | F23: 12.9
A25: [표3]
A26: 사용자 | B26: 사용량 | C26: 사용요금
A27: 경인에폭시 | B27: 43
A28: 고려상사 | B28: 265
A29: 고려종합 | B29: 288
A30: SDC | B30: 423
A31: 영원종합 | B31: 584
A32: 한국물산 | B32: 180

Sheet 사용자정의(결과)
A1: [표1]
A2: 과목명 | B2: 성명 | C2: 출석 | D2: 과제 | E2: 중간 | F2: 기말 | G2: 총점
A3: C002 | B3: 김대성 | C3: 18 | D3: 20 | E3: 25 | F3: 20
A4: P007 | B4: 이현실 | C4: 12 | D4: 15 | E4: 20 | F4: 22
A5: C005 | B5: 장충태 | C5: 16 | D5: 14 | E5: 10 | F5: 12
A6: C005 | B6: 심학철 | C6: 20 | D6: 18 | E6: 30 | F6: 28
A7: S006 | B7: 한가영 | C7: 20 | D7: 20 | E7: 28 | F7: 30
A8: S006 | B8: 진명훈 | C8: 18 | D8: 13 | E8: 24 | F8: 8
A9: P001 | B9: 형민석 | C9: 18 | D9: 18 | E9: 22 | F9: 28
A10: P001 | B10: 최준석 | C10: 16 | D10: 18 | E10: 18 | F10: 22
A12: [표2]
A13: 분류코드 | B13: 업무구분 | C13: 종사자수 | D13: 월평균임금 | E13: 전년월평균임금 | F13: 평균경력 | G13: 보너스지급율
A14: SA | B14: IT컨설턴트 | C14: 14195 | D14: 3090000 | E14: 3000000 | F14: 5.9
A15: AP | B15: 시스템SW개발자 | C15: 8130 | D15: 2560000 | E15: 2400000 | F15: 6.5
A16: SA | B16: 보안관리자 | C16: 5797 | D16: 2540000 | E16: 2450000 | F16: 6
A17: SA | B17: NW분석가 | C17: 3168 | D17: 2290000 | E17: 2450000 | F17: 4.9
A18: AP | B18: 통신케이블설치 | C18: 21786 | D18: 1840000 | E18: 1910000 | F18: 10.6
A19: AP | B19: 멀티미디어기획자 | C19: 2258 | D19: 1790000 | E19: 1950000 | F19: 3.4
A20: SA | B20: 망기획자 | C20: 9470 | D20: 1520000 | E20: 1300000 | F20: 9.7
A21: SA | B21: PC수리원 | C21: 37802 | D21: 1730000 | E21: 1750000 | F21: 4.9
A22: AP | B22: PC강사 | C22: 21146 | D22: 1190000 | E22: 1200000 | F22: 2.8
A23: SA | B23: 정보통신관리자 | C23: 21222 | D23: 1460000 | E23: 3300000 | F23: 12.9
A25: [표3]
A26: 사용자 | B26: 사용량 | C26: 사용요금
A27: 경인에폭시 | B27: 43
A28: 고려상사 | B28: 265
A29: 고려종합 | B29: 288
A30: SDC | B30: 423
A31: 영원종합 | B31: 584
A32: 한국물산 | B32: 180

Sheet 피벗테이블-1
A2: 부서별 급여 현황
A3: 부서명 | B3: 직위 | C3: 성명 | D3: 성별 | E3: 기본급 | F3: 성과금 | G3: 세금 | H3: 실수령액
A4: 생산부 | B4: 부장 | C4: 최영감 | D4: 남 | E4: 3500000 | F4: 900000 | G4: =E4*12% -> 420000 | H4: =E4+F4-G4 -> 3980000
A5: 영업부 | B5: 사원 | C5: 박가이 | D5: 남 | E5: 2200000 | F5: 300000 | G5: =E5*12% -> 264000 | H5: =E5+F5-G5 -> 2236000
A6: 생산부 | B6: 대리 | C6: 이승은 | D6: 여 | E6: 2400000 | F6: 500000 | G6: 288000 | H6: 2612000
A7: 생산부 | B7: 사원 | C7: 김성산 | D7: 남 | E7: 2000000 | F7: 300000 | G7: 240000 | H7: 2060000
A8: 기획부 | B8: 부장 | C8: 강오선 | D8: 여 | E8: 3600000 | F8: 900000 | G8: 432000 | H8: 4068000
A9: 기획부 | B9: 사원 | C9: 이재신 | D9: 남 | E9: 2200000 | F9: 300000 | G9: 264000 | H9: 2236000
A10: 영업부 | B10: 대리 | C10: 한이주 | D10: 남 | E10: 2600000 | F10: 500000 | G10: 312000 | H10: 2788000
A11: 영업부 | B11: 과장 | C11: 한송이 | D11: 여 | E11: 3000000 | F11: 700000 | G11: 360000 | H11: 3340000
A12: 기획부 | B12: 대리 | C12: 장나주 | D12: 여 | E12: 2500000 | F12: 500000 | G12: 300000 | H12: 2700000

Sheet 피벗테이블-1(정답)
A2: 부서별 급여 현황
A3: 부서명 | B3: 직위 | C3: 성명 | D3: 성별 | E3: 기본급 | F3: 성과금 | G3: 세금 | H3: 실수령액
A4: 생산부 | B4: 부장 | C4: 최영감 | D4: 남 | E4: 3500000 | F4: 900000 | G4: =E4*12% -> 420000 | H4: =E4+F4-G4 -> 3980000
A5: 영업부 | B5: 사원 | C5: 박가이 | D5: 남 | E5: 2200000 | F5: 300000 | G5: =E5*12% -> 264000 | H5: =E5+F5-G5 -> 2236000
A6: 생산부 | B6: 대리 | C6: 이승은 | D6: 여 | E6: 2400000 | F6: 500000 | G6: 288000 | H6: 2612000
A7: 생산부 | B7: 사원 | C7: 김성산 | D7: 남 | E7: 2000000 | F7: 300000 | G7: 240000 | H7: 2060000
A8: 기획부 | B8: 부장 | C8: 강오선 | D8: 여 | E8: 3600000 | F8: 900000 | G8: 432000 | H8: 4068000
A9: 기획부 | B9: 사원 | C9: 이재신 | D9: 남 | E9: 2200000 | F9: 300000 | G9: 264000 | H9: 2236000
A10: 영업부 | B10: 대리 | C10: 한이주 | D10: 남 | E10: 2600000 | F10: 500000 | G10: 312000 | H10: 2788000
A11: 영업부 | B11: 과장 | C11: 한송이 | D11: 여 | E11: 3000000 | F11: 700000 | G11: 360000 | H11: 3340000
A12: 기획부 | B12: 대리 | C12: 장나주 | D12: 여 | E12: 2500000 | F12: 500000 | G12: 300000 | H12: 2700000
A16: 성명 | B16: (모두)
B18: 열 레이블
A19: 행 레이블 | B19: 과장 | C19: 대리 | D19: 부장 | E19: 사원 | F19: 총합계
A20: 기획부
A21: 합계 : 기본급 | C21: 2500000 | D21: 3600000 | E21: 2200000 | F21: 8300000
A22: 합계 : 실수령액 | C22: 2700000 | D22: 4068000 | E22: 2236000 | F22: 9004000
A23: 생산부
A24: 합계 : 기본급 | C24: 2400000 | D24: 3500000 | E24: 2000000 | F24: 7900000
A25: 합계 : 실수령액 | C25: 2612000 | D25: 3980000 | E25: 2060000 | F25: 8652000
A26: 영업부
A27: 합계 : 기본급 | B27: 3000000 | C27: 2600000 | E27: 2200000 | F27: 7800000
A28: 합계 : 실수령액 | B28: 3340000 | C28: 2788000 | E28: 2236000 | F28: 8364000
A29: 전체 합계 : 기본급 | B29: 3000000 | C29: 7500000 | D29: 7100000 | E29: 6400000 | F29: 24000000
A30: 전체 합계 : 실수령액 | B30: 3340000 | C30: 8100000 | D30: 8048000 | E30: 6532000 | F30: 26020000

Sheet 피벗테이블-2
A1: 택배 배송 현황
A3: 배송지역 | B3: 배송시간대 | C3: 물품종류 | D3: 수령인 | E3: 거리(m) | F3: 배송료
A4: 망원동 | B4: 오전 | C4: 식품 | D4: 본인 | E4: 550 | F4: 3400
A5: 서교동 | B5: 오후 | C5: 의류 | D5: 경비실 | E5: 680 | F5: 3200
A6: 합정동 | B6: 오전 | C6: 전자제품 | D6: 본인 | E6: 762 | F6: 3900
A7: 망원동 | B7: 오후 | C7: 의류 | D7: 가족 | E7: 510 | F7: 3000
A8: 서교동 | B8: 오전 | C8: 식품 | D8: 본인 | E8: 500 | F8: 3500
A9: 합정동 | B9: 오전 | C9: 전자제품 | D9: 가족 | E9: 680 | F9: 3600
A10: 망원동 | B10: 오후 | C10: 의류 | D10: 본인 | E10: 920 | F10: 4000
A11: 서교동 | B11: 오전 | C11: 식품 | D11: 경비실 | E11: 750 | F11: 3800
A12: 합정동 | B12: 오후 | C12: 의류 | D12: 가족 | E12: 600 | F12: 3200
A13: 서교동 | B13: 오후 | C13: 의류 | D13: 경비실 | E13: 570 | F13: 3000
A14: 망원동 | B14: 오후 | C14: 전자제품 | D14: 경비실 | E14: 480 | F14: 2800
A15: 합정동 | B15: 오전 | C15: 식품 | D15: 본인 | E15: 620 | F15: 3400

Sheet 통합1(예제)
A1: [표1] 서울지사 판매현황
A2: 마트명 | B2: 1월 | C2: 2월 | D2: 3월 | E2: 2월 | F2: 3월
A3: A마트 | B3: 26954 | C3: 99953 | D3: 58735 | E3: 99953 | F3: 58735
A4: B마트 | B4: 61936 | C4: 54840 | D4: 1841 | E4: 54840 | F4: 1841
A5: C마트 | B5: 89745 | C5: 98119 | D5: 44002 | E5: 98119 | F5: 44002
A6: D마트 | B6: 8672 | C6: 66419 | D6: 18661 | E6: 66419 | F6: 18661
A7: E마트 | B7: 89676 | C7: 89793 | D7: 80495 | E7: 89793 | F7: 80495
G9: [표4] 1사분기 판매합계
A10: [표2] 경인지사 판매현황 | G10: 마트명 | H10: 1월 | I10: 2월 | J10: 3월
A11: 마트명 | B11: 1월 | C11: 4월 | D11: 5월 | G11: A마트
A12: A마트 | B12: 83248 | C12: 17031 | D12: 3441 | G12: B마트
A13: B마트 | B13: 86710 | C13: 36062 | D13: 58855 | G13: C마트
A14: C마트 | B14: 66189 | C14: 7570 | D14: 14183 | G14: D마트
A15: D마트 | B15: 25771 | C15: 95378 | D15: 21227 | G15: E마트
A16: E마트 | B16: 52673 | C16: 78162 | D16: 39747
A18: [표3] 제주지사 판매현황 | G18: [표5] 1사분기 판매건수
A19: 마트명 | B19: 1월 | C19: 2월 | D19: 3월 | G19: 마트명 | H19: 1월 | I19: 2월 | J19: 3월
A20: A마트 | B20: 16384 | C20: 23083 | D20: 75919 | G20: A마트
A21: B마트 | B21: 97165 | C21: 91526 | D21: 64461 | G21: B마트
A22: C마트 | B22: 88641 | C22: 9222 | D22: 94185 | G22: C마트
A23: D마트 | B23: 35360 | C23: 29785 | D23: 11527 | G23: D마트
A24: E마트 | B24: 28245 | C24: 6548 | D24: 19700 | G24: E마트
A25: C마트 | B25: 88641 | C25: 9222 | D25: 94185
A26: D마트 | B26: 35360 | C26: 29785 | D26: 11527
A27: E마트 | B27: 28245 | C27: 6548 | D27: 19700

Sheet 통합1(예제) (결과)
A1: [표1] 서울지사 판매현황
A2: 마트명 | B2: 1월 | C2: 2월 | D2: 3월 | E2: 2월 | F2: 3월
A3: A마트 | B3: 26954 | C3: 99953 | D3: 58735 | E3: 99953 | F3: 58735
A4: B마트 | B4: 61936 | C4: 54840 | D4: 1841 | E4: 54840 | F4: 1841
A5: C마트 | B5: 89745 | C5: 98119 | D5: 44002 | E5: 98119 | F5: 44002
A6: D마트 | B6: 8672 | C6: 66419 | D6: 18661 | E6: 66419 | F6: 18661
A7: E마트 | B7: 89676 | C7: 89793 | D7: 80495 | E7: 89793 | F7: 80495
G9: [표4] 1사분기 판매합계
A10: [표2] 경인지사 판매현황 | G10: 마트명 | H10: 1월 | I10: 2월 | J10: 3월
A11: 마트명 | B11: 1월 | C11: 4월 | D11: 5월 | G11: A마트 | H11: 126586 | I11: 123036 | J11: 134654
A12: A마트 | B12: 83248 | C12: 17031 | D12: 3441 | G12: B마트 | H12: 245811 | I12: 146366 | J12: 66302
A13: B마트 | B13: 86710 | C13: 36062 | D13: 58855 | G13: C마트 | H13: 244575 | I13: 107341 | J13: 138187
A14: C마트 | B14: 66189 | C14: 7570 | D14: 14183 | G14: D마트 | H14: 69803 | I14: 96204 | J14: 30188
A15: D마트 | B15: 25771 | C15: 95378 | D15: 21227 | G15: E마트 | H15: 170594 | I15: 96341 | J15: 100195
A16: E마트 | B16: 52673 | C16: 78162 | D16: 39747
A18: [표3] 제주지사 판매현황 | G18: [표5] 1사분기 판매건수
A19: 마트명 | B19: 1월 | C19: 2월 | D19: 3월 | G19: 마트명 | H19: 1월 | I19: 2월 | J19: 3월
A20: A마트 | B20: 16384 | C20: 23083 | D20: 75919 | G20: A마트 | H20: 3 | I20: 2 | J20: 2
A21: B마트 | B21: 97165 | C21: 91526 | D21: 64461 | G21: B마트 | H21: 3 | I21: 2 | J21: 2
A22: C마트 | B22: 88641 | C22: 9222 | D22: 94185 | G22: C마트 | H22: 3 | I22: 2 | J22: 2
A23: D마트 | B23: 35360 | C23: 29785 | D23: 11527 | G23: D마트 | H23: 3 | I23: 2 | J23: 2
A24: E마트 | B24: 28245 | C24: 6548 | D24: 19700 | G24: E마트 | H24: 3 | I24: 2 | J24: 2
A25: C마트 | B25: 88641 | C25: 9222 | D25: 94185
A26: D마트 | B26: 35360 | C26: 29785 | D26: 11527
A27: E마트 | B27: 28245 | C27: 6548 | D27: 19700

Sheet 통합2(예제)
A1: [표1] 1월
A2: 담당자 | B2: 서울 | C2: 성남 | D2: 강원 | E2: 수원
A3: 박신희 | B3: 850000 | C3: 214000 | D3: 106400 | E3: 957600
A4: 문경태 | B4: 750000 | C4: 247000 | D4: 99700 | E4: 897300 | G4: [표4] 담당자별 지역별 최대값
A5: 정수정 | B5: 900000 | C5: 130000 | D5: 103000 | E5: 927000 | G5: 담당자 | H5: 서울 | I5: 성남 | J5: 인천 | K5: 수원
A6: 오금린 | B6: 750000 | C6: 204000 | D6: 95400 | E6: 858600 | G6: 박신희
G7: 문경태
A8: [표2] 2월 | G8: 정수정
A9: 담당자 | B9: 서울 | C9: 성남 | D9: 인천 | E9: 부산 | G9: 오금린
A10: 박신희 | B10: 900000 | C10: 141000 | D10: 104100 | E10: 936900
A11: 문경태 | B11: 1000000 | C11: 107000 | D11: 110700 | E11: 996300 | G11: [표5] 담당자별 지역별 최소값
A12: 정수정 | B12: 1000000 | C12: 112000 | D12: 111200 | E12: 1000800 | G12: 담당자 | H12: 서울 | I12: 성남 | J12: 인천 | K12: 수원
A13: 오금린 | B13: 1000000 | C13: 167000 | D13: 116700 | E13: 1050300 | G13: 박신희
G14: 문경태
A15: [표3] 3월 | G15: 정수정
A16: 담당자 | B16: 광주 | C16: 성남 | D16: 인천 | E16: 수원 | G16: 오금린
A17: 박신희 | B17: 850000 | C17: 242000 | D17: 109200 | E17: 982800
A18: 문경태 | B18: 900000 | C18: 157000 | D18: 105700 | E18: 951300
A19: 정수정 | B19: 1000000 | C19: 214000 | D19: 121400 | E19: 1092600
A20: 오금린 | B20: 850000 | C20: 222000 | D20: 107200 | E20: 964800

Sheet 통합3(예제)
A1: [표1] | B1: 4월 드라마 시청률(%) | G1: [표2] | H1: 5월 드라마 시청률(%)
A2: 프로그램 | B2: 첫째주 | C2: 둘째주 | D2: 셋째주 | E2: 넷째주 | G2: 프로그램 | H2: 첫째주 | I2: 둘째주 | J2: 셋째주 | K2: 넷째주
A3: 손목시계 | B3: 14.3 | C3: 14.5 | D3: 13.1 | E3: 14.8 | G3: 손목시계 | H3: 12.8 | I3: 15.2 | J3: 14.2 | K3: 14.4
A4: 동의보감 | B4: 18.6 | C4: 18.9 | D4: 17.1 | E4: 19.1 | G4: 동의보감 | H4: 16.6 | I4: 19.8 | J4: 18.4 | K4: 18.8
A5: 프라하의인연 | B5: 20.1 | C5: 20.4 | D5: 18.4 | E5: 20.7 | G5: 프라하의인연 | H5: 18.1 | I5: 21.4 | J5: 19.9 | K5: 20.3
A6: 그대와나 | B6: 14.9 | C6: 15.1 | D6: 13.6 | E6: 15.3 | G6: 그대와나 | H6: 13.3 | I6: 15.9 | J6: 14.8 | K6: 15.1
A7: 목욕탕집여자들 | B7: 18.5 | C7: 18.8 | D7: 16.9 | E7: 19.5 | G7: 목욕탕집여자들 | H7: 16.5 | I7: 19.7 | J7: 18.3 | K7: 18.7
A8: 서울의초승달 | B8: 19.6 | C8: 19.9 | D8: 17.9 | E8: 20.2 | G8: 서울의초승달 | H8: 17.5 | I8: 20.9 | J8: 19.4 | K8: 19.9
A9: 내이름은김탁구 | B9: 21.8 | C9: 22.1 | D9: 19.9 | E9: 22.4 | G9: 내이름은김탁구 | H9: 19.4 | I9: 23.2 | J9: 21.6 | K9: 22.2
A10: 시크릿목장 | B10: 22.3 | C10: 22.7 | D10: 20.4 | E10: 23.1 | G10: 시크릿목장 | H10: 20.2 | I10: 23.8 | J10: 22.1 | K10: 22.6
A11: 엄마의하늘 | B11: 17.8 | C11: 18.1 | D11: 16.3 | E11: 18.4 | G11: 엄마의하늘 | H11: 16.6 | I11: 19.5 | J11: 17.6 | K11: 18.1
A13: [표3] | B13: 6월 드라마 시청률(%) | G13: 2/4분기 드라마 시청률(%)
A14: 프로그램 | B14: 첫째주 | C14: 둘째주 | D14: 셋째주 | E14: 넷째주 | G14: 프로그램 | H14: 첫째주 | I14: 둘째주 | J14: 셋째주 | K14: 넷째주
A15: 손목시계 | B15: 14.4 | C15: 14.9 | D15: 16.2 | E15: 14.3 | G15: 손목시계
A16: 동의보감 | B16: 18.7 | C16: 19.4 | D16: 21.1 | E16: 18.6 | G16: 동의보감
A17: 프라하의인연 | B17: 20.3 | C17: 21.3 | D17: 22.8 | E17: 20.1 | G17: 프라하의인연
A18: 그대와나 | B18: 15.6 | C18: 15.6 | D18: 16.9 | E18: 14.9 | G18: 그대와나
A19: 목욕탕집여자들 | B19: 18.6 | C19: 19.3 | D19: 21.6 | E19: 18.5 | G19: 목욕탕집여자들
A20: 서울의초승달 | B20: 19.7 | C20: 20.5 | D20: 22.2 | E20: 19.5 | G20: 서울의초승달
A21: 내이름은김탁구 | B21: 21.8 | C21: 22.7 | D21: 24.7 | E21: 21.7 | G21: 내이름은김탁구
A22: 시크릿목장 | B22: 22.5 | C22: 23.3 | D22: 25.3 | E22: 22.3 | G22: 시크릿목장
A23: 엄마의하늘 | B23: 18.2 | C23: 18.6 | D23: 20.2 | E23: 17.8 | G23: 엄마의하늘

Sheet 통합2(결과)
A1: [표1] 1월
A2: 담당자 | B2: 서울 | C2: 성남 | D2: 강원 | E2: 수원
A3: 박신희 | B3: 850000 | C3: 214000 | D3: 106400 | E3: 957600
A4: 문경태 | B4: 750000 | C4: 247000 | D4: 99700 | E4: 897300 | G4: [표4] 담당자별 지역별 최대값
A5: 정수정 | B5: 900000 | C5: 130000 | D5: 103000 | E5: 927000 | G5: 담당자 | H5: 서울 | I5: 성남 | J5: 인천 | K5: 수원
A6: 오금린 | B6: 750000 | C6: 204000 | D6: 95400 | E6: 858600 | G6: 박신희 | H6: 900000 | I6: 242000 | J6: 109200 | K6: 982800
G7: 문경태 | H7: 1000000 | I7: 247000 | J7: 110700 | K7: 951300
A8: [표2] 2월 | G8: 정수정 | H8: 1000000 | I8: 214000 | J8: 121400 | K8: 1092600
A9: 담당자 | B9: 서울 | C9: 성남 | D9: 인천 | E9: 부산 | G9: 오금린 | H9: 1000000 | I9: 222000 | J9: 116700 | K9: 964800
A10: 박신희 | B10: 900000 | C10: 141000 | D10: 104100 | E10: 936900
A11: 문경태 | B11: 1000000 | C11: 107000 | D11: 110700 | E11: 996300 | G11: [표5] 담당자별 지역별 최소값
A12: 정수정 | B12: 1000000 | C12: 112000 | D12: 111200 | E12: 1000800 | G12: 담당자 | H12: 서울 | I12: 성남 | J12: 인천 | K12: 수원
A13: 오금린 | B13: 1000000 | C13: 167000 | D13: 116700 | E13: 1050300 | G13: 박신희 | H13: 850000 | I13: 141000 | J13: 104100 | K13: 957600
G14: 문경태 | H14: 750000 | I14: 107000 | J14: 105700 | K14: 897300
A15: [표3] 3월 | G15: 정수정 | H15: 900000 | I15: 112000 | J15: 111200 | K15: 927000
A16: 담당자 | B16: 광주 | C16: 성남 | D16: 인천 | E16: 수원 | G16: 오금린 | H16: 750000 | I16: 167000 | J16: 107200 | K16: 858600
A17: 박신희 | B17: 850000 | C17: 242000 | D17: 109200 | E17: 982800
A18: 문경태 | B18: 900000 | C18: 157000 | D18: 105700 | E18: 951300
A19: 정수정 | B19: 1000000 | C19: 214000 | D19: 121400 | E19: 1092600
A20: 오금린 | B20: 850000 | C20: 222000 | D20: 107200 | E20: 964800

Sheet 정렬1(예제)
A1: 컴퓨터 활용 능력 합격자 발표
A2: 수검번호 | B2: 성명 | C2: 필기 | D2: SP | E2: 합계 | F2: 평균 | G2: 합격여부
A3: 107 | B3: 김여울 | C3: 79 | D3: 80 | E3: =SUM(C3:D3) -> 159 | F3: =AVERAGE(C3:D3) -> 79.5 | G3: 합격
A4: 106 | B4: 류하늘 | C4: 75 | D4: 64 | E4: 139 | F4: 69.5 | G4: 합격
A5: 105 | B5: 박바다 | C5: 97 | D5: 100 | E5: 197 | F5: 98.5 | G5: 합격
A6: 103 | B6: 엄지손 | C6: 100 | D6: 98 | E6: 198 | F6: 99 | G6: 합격
A7: 101 | B7: 이타석 | C7: 98 | D7: 85 | E7: 183 | F7: 91.5 | G7: 합격
A8: 100 | B8: 장돌뱅 | C8: 85 | D8: 80 | E8: 165 | F8: 82.5 | G8: 합격
A9: 104 | B9: 강사랑 | C9: 55 | D9: 75 | E9: 130 | F9: 65 | G9: 불합격
A10: 102 | B10: 김정현 | C10: 78 | D10: 79 | E10: 157 | F10: 78.5 | G10: 불합격
A11: 108 | B11: 최호수 | C11: 45 | D11: 65 | E11: 110 | F11: 55 | G11: 불합격

Sheet 정렬1(결과)
A1: 컴퓨터 활용 능력 합격자 발표
A2: 수검번호 | B2: 성명 | C2: 필기 | D2: SP | E2: 합계 | F2: 평균 | G2: 합격여부
A3: 107 | B3: 김여울 | C3: 79 | D3: 80 | E3: =SUM(C3:D3) -> 159 | F3: =AVERAGE(C3:D3) -> 79.5 | G3: 합격
A4: 106 | B4: 류하늘 | C4: 75 | D4: 64 | E4: 139 | F4: 69.5 | G4: 합격
A5: 105 | B5: 박바다 | C5: 97 | D5: 100 | E5: 197 | F5: 98.5 | G5: 합격
A6: 103 | B6: 엄지손 | C6: 100 | D6: 98 | E6: 198 | F6: 99 | G6: 합격
A7: 101 | B7: 이타석 | C7: 98 | D7: 85 | E7: 183 | F7: 91.5 | G7: 합격
A8: 100 | B8: 장돌뱅 | C8: 85 | D8: 80 | E8: 165 | F8: 82.5 | G8: 합격
A9: 104 | B9: 강사랑 | C9: 55 | D9: 75 | E9: 130 | F9: 65 | G9: 불합격
A10: 102 | B10: 김정현 | C10: 78 | D10: 79 | E10: 157 | F10: 78.5 | G10: 불합격
A11: 108 | B11: 최호수 | C11: 45 | D11: 65 | E11: 110 | F11: 55 | G11: 불합격

Sheet 정렬2(예제)
A1: 분유 납품 현황
G2: 단위: t
A4: 업체명 | B4: 구분 | C4: 전지분유 | D4: 탈지분유 | E4: 계 | F4: 2007년 | G4: 증감량
A5: 건욱유업 | B5: 회원사 | C5: 25 | D5: 34 | E5: 59 | F5: 41 | G5: 18
A6: 경동낙협 | B6: 조합 | C6: 12 | D6: 152 | E6: 164 | F6: 123 | G6: 41
A7: 경천낙협 | B7: 조합 | C7: 14 | D7: 37 | E7: 51 | F7: 43 | G7: 8
A8: 남동유업 | B8: 회원사 | C8: 78 | D8: 789 | E8: 867 | F8: 934 | G8: -67
A9: 대천우유합 | B9: 조합 | C9: 2 | D9: 182 | E9: 184 | F9: 202 | G9: -18
A10: 로우햄우유 | B10: 회원사 | C10: 5 | D10: 99 | E10: 104 | F10: 79 | G10: 25
A11: 매달유업 | B11: 비회원사 | C11: 47 | D11: 698 | E11: 745 | F11: 854 | G11: -109
A12: 모닝콜유업 | B12: 기타 | C12: 3 | D12: 3 | E12: 6 | F12: 5 | G12: 1
A13: 엠오푸드 | B13: 기타 | C13: 12 | D13: 21 | E13: 33 | F13: 35 | G13: -2
A14: 부부우유합 | B14: 조합 | C14: 21 | D14: 888 | E14: 909 | F14: 913 | G14: -4
A15: 비록 | B15: 비회원사 | C15: 2 | D15: 198 | E15: 200 | F15: 156 | G15: 44
A16: 삼양식품 | B16: 회원사 | C16: 2 | D16: 5 | E16: 7 | F16: 12 | G16: -5
A17: 육오대학식품 | B17: 비회원사 | C17: 5 | D17: 3 | E17: 8 | F17: 12 | G17: -4
A18: 서울우유합 | B18: 조합 | C18: 779 | D18: 1208 | E18: 1987 | F18: 1704 | G18: 283
A19: 우목촌 | B19: 기타 | C19: 24 | D19: 567 | E19: 591 | F19: 552 | G19: 39
A20: 청평우유합 | B20: 조합 | C20: 7 | D20: 4 | E20: 11 | F20: 8 | G20: 3
A21: 합계 | C21: 1038 | D21: 4888 | E21: 5926 | F21: 5673 | G21: 253

Sheet 정렬2(결과)
A1: 분유 납품 현황
G2: 단위: t
A4: 업체명 | B4: 구분 | C4: 전지분유 | D4: 탈지분유 | E4: 계 | F4: 2007년 | G4: 증감량
A5: 경동낙협 | B5: 조합 | C5: 12 | D5: 152 | E5: 164 | F5: 123 | G5: 41
A6: 경천낙협 | B6: 조합 | C6: 14 | D6: 37 | E6: 51 | F6: 43 | G6: 8
A7: 대천우유합 | B7: 조합 | C7: 2 | D7: 182 | E7: 184 | F7: 202 | G7: -18
A8: 부부우유합 | B8: 조합 | C8: 21 | D8: 888 | E8: 909 | F8: 913 | G8: -4
A9: 서울우유합 | B9: 조합 | C9: 779 | D9: 1208 | E9: 1987 | F9: 1704 | G9: 283
A10: 청평우유합 | B10: 조합 | C10: 7 | D10: 4 | E10: 11 | F10: 8 | G10: 3
A11: 건욱유업 | B11: 회원사 | C11: 25 | D11: 34 | E11: 59 | F11: 41 | G11: 18
A12: 남동유업 | B12: 회원사 | C12: 78 | D12: 789 | E12: 867 | F12: 934 | G12: -67
A13: 로우햄우유 | B13: 회원사 | C13: 5 | D13: 99 | E13: 104 | F13: 79 | G13: 25
A14: 삼양식품 | B14: 회원사 | C14: 2 | D14: 5 | E14: 7 | F14: 12 | G14: -5
A15: 매달유업 | B15: 비회원사 | C15: 47 | D15: 698 | E15: 745 | F15: 854 | G15: -109
A16: 비록 | B16: 비회원사 | C16: 2 | D16: 198 | E16: 200 | F16: 156 | G16: 44
A17: 육오대학식품 | B17: 비회원사 | C17: 5 | D17: 3 | E17: 8 | F17: 12 | G17: -4
A18: 모닝콜유업 | B18: 기타 | C18: 3 | D18: 3 | E18: 6 | F18: 5 | G18: 1
A19: 엠오푸드 | B19: 기타 | C19: 12 | D19: 21 | E19: 33 | F19: 35 | G19: -2
A20: 우목촌 | B20: 기타 | C20: 24 | D20: 567 | E20: 591 | F20: 552 | G20: 39
A21: 합계 | C21: 1038 | D21: 4888 | E21: 5926 | F21: 5673 | G21: 253

Sheet 부분합1(예제)
B1: 한국근대사 성적
B3: 성명 | C3: 학년 | D3: 중간 | E3: 기말 | F3: 과제 | G3: 환산점수 | H3: 평가
B4: 김난영 | C4: 3학년 | D4: 79 | E4: 63 | F4: 7 | G4: 70.1 | H4: C
B5: 윤종두 | C5: 1학년 | D5: 96 | E5: 89 | F5: 9 | G5: 91.9 | H5: A
B6: 이재곤 | C6: 1학년 | D6: 78 | E6: 74 | F6: 8 | G6: 76.2 | H6: C
B7: 이종대 | C7: 1학년 | D7: 64 | E7: 75 | F7: 7 | G7: 70.1 | H7: C
B8: 장대철 | C8: 2학년 | D8: 54 | E8: 45 | F8: 5 | G8: 49.1 | H8: F
B9: 정두호 | C9: 2학년 | D9: 86 | E9: 84 | F9: 10 | G9: 86.4 | H9: B
B10: 최대식 | C10: 3학년 | D10: 85 | E10: 92 | F10: 9 | G10: 89 | H10: A
B11: 최만호 | C11: 2학년 | D11: 63 | E11: 65 | F11: 6 | G11: 63.7 | H11: D
B12: 한주연 | C12: 1학년 | D12: 85 | E12: 86 | F12: 9 | G12: 86 | H12: B

Sheet 부분합1(결과)
B1: 한국근대사 성적
B3: 성명 | C3: 학년 | D3: 중간 | E3: 기말 | F3: 과제 | G3: 환산점수 | H3: 평가
B4: 이종대 | C4: 1학년 | D4: 64 | E4: 75 | F4: 7 | G4: 70.1 | H4: C
B5: 윤종두 | C5: 1학년 | D5: 96 | E5: 89 | F5: 9 | G5: 91.9 | H5: A
B6: 이재곤 | C6: 1학년 | D6: 78 | E6: 74 | F6: 8 | G6: 76.2 | H6: C
B7: 한주연 | C7: 1학년 | D7: 85 | E7: 86 | F7: 9 | G7: 86 | H7: B
C8: 1학년 최소값 | G8: =SUBTOTAL(5,G4:G7) -> 70.1
C9: 1학년 최대값 | G9: =SUBTOTAL(4,G4:G7) -> 91.9
B10: 정두호 | C10: 2학년 | D10: 86 | E10: 84 | F10: 10 | G10: 86.4 | H10: B
B11: 장대철 | C11: 2학년 | D11: 54 | E11: 45 | F11: 5 | G11: 49.1 | H11: F
B12: 최만호 | C12: 2학년 | D12: 63 | E12: 65 | F12: 6 | G12: 63.7 | H12: D
C13: 2학년 최소값 | G13: =SUBTOTAL(5,G10:G12) -> 49.1
C14: 2학년 최대값 | G14: =SUBTOTAL(4,G10:G12) -> 86.4
B15: 최대식 | C15: 3학년 | D15: 85 | E15: 92 | F15: 9 | G15: 89 | H15: A
B16: 김난영 | C16: 3학년 | D16: 79 | E16: 63 | F16: 7 | G16: 70.1 | H16: C
C17: 3학년 최소값 | G17: =SUBTOTAL(5,G15:G16) -> 70.1
C18: 3학년 최대값 | G18: =SUBTOTAL(4,G15:G16) -> 89
C19: 전체 최소값 | G19: =SUBTOTAL(5,G4:G16) -> 49.1
C20: 전체 최대값 | G20: =SUBTOTAL(4,G4:G16) -> 91.9

Sheet 부분합2(예제)
B1: 급여현황
B3: 성별 | C3: 성명 | D3: 기본급 | E3: 수당 | F3: 공제액 | G3: 실수령액
B4: 남 | C4: 김병학 | D4: 2000000 | E4: 600000 | F4: 260000 | G4: 2340000
B5: 남 | C5: 유주영 | D5: 2000000 | E5: 600000 | F5: 260000 | G5: 2340000
B6: 여 | C6: 박성희 | D6: 800000 | E6: 80000 | F6: 88000 | G6: 792000
B7: 여 | C7: 남주희 | D7: 1500000 | E7: 300000 | F7: 180000 | G7: 1620000
B8: 남 | C8: 조항관 | D8: 1200000 | E8: 180000 | F8: 138000 | G8: 1242000
B9: 여 | C9: 임하영 | D9: 800000 | E9: 80000 | F9: 88000 | G9: 792000
B10: 남 | C10: 한상국 | D10: 2000000 | E10: 600000 | F10: 260000 | G10: 2340000
B11: 여 | C11: 김영숙 | D11: 1500000 | E11: 300000 | F11: 180000 | G11: 1620000
B12: 남 | C12: 문규례 | D12: 1500000 | E12: 300000 | F12: 180000 | G12: 1620000
B13: 남 | C13: 신명섭 | D13: 1200000 | E13: 180000 | F13: 138000 | G13: 1242000
B14: 여 | C14: 김현욱 | D14: 800000 | E14: 80000 | F14: 88000 | G14: 792000

Sheet 부분합2(결과)
B1: 급여현황
B3: 성별 | C3: 성명 | D3: 기본급 | E3: 수당 | F3: 공제액 | G3: 실수령액
B4: 남 | C4: 김병학 | D4: 2000000 | E4: 600000 | F4: 260000 | G4: 2340000
B5: 남 | C5: 유주영 | D5: 2000000 | E5: 600000 | F5: 260000 | G5: 2340000
B6: 남 | C6: 조항관 | D6: 1200000 | E6: 180000 | F6: 138000 | G6: 1242000
B7: 남 | C7: 한상국 | D7: 2000000 | E7: 600000 | F7: 260000 | G7: 2340000
B8: 남 | C8: 문규례 | D8: 1500000 | E8: 300000 | F8: 180000 | G8: 1620000
B9: 남 | C9: 신명섭 | D9: 1200000 | E9: 180000 | F9: 138000 | G9: 1242000
B10: 남 요약 | G10: =SUBTOTAL(9,G4:G9) -> 11124000
B11: 여 | C11: 박성희 | D11: 800000 | E11: 80000 | F11: 88000 | G11: 792000
B12: 여 | C12: 남주희 | D12: 1500000 | E12: 300000 | F12: 180000 | G12: 1620000
B13: 여 | C13: 임하영 | D13: 800000 | E13: 80000 | F13: 88000 | G13: 792000
B14: 여 | C14: 김영숙 | D14: 1500000 | E14: 300000 | F14: 180000 | G14: 1620000
B15: 여 | C15: 김현욱 | D15: 800000 | E15: 80000 | F15: 88000 | G15: 792000
B16: 여 요약 | G16: =SUBTOTAL(9,G11:G15) -> 5616000
B17: 총합계 | G17: =SUBTOTAL(9,G4:G15) -> 16740000

Sheet 데이터표1(예제)
A1: 영업이익 계산시트
A3: 판매량 | B3: 30
A4: 판매단가 | B4: 100 | F4: 판매량
A5: 매출액 | B5: =B3*B4 -> 3000 | F5: 10 | G5: 20 | H5: 30 | I5: 40 | J5: 50
D6: 판 매 단 가 | E6: 50
A7: 매출원가 | B7: 900 | E7: 60
A8: 총이익 | B8: =B5-B7 -> 2100 | E8: 70
E9: 80
A10: 판매비 | B10: 50 | E10: 90
A11: 관리비 | B11: 10 | E11: 100
A12: 영업이익 | B12: =$B$8-$B$10-$B$11 -> 2040 | E12: 110
E13: 120
E14: 130
E15: 140

Sheet 데이터표1(예제)_결과
A1: 영업이익 계산시트
A3: 판매량 | B3: 30
A4: 판매단가 | B4: 100 | F4: 판매량
A5: 매출액 | B5: =B3*B4 -> 3000 | F5: 10 | G5: 20 | H5: 30 | I5: 40 | J5: 50
D6: 판 매 단 가 | E6: 50
A7: 매출원가 | B7: 900 | E7: 60
A8: 총이익 | B8: =B5-B7 -> 2100 | E8: 70
E9: 80
A10: 판매비 | B10: 50 | E10: 90
A11: 관리비 | B11: 10 | E11: 100
A12: 영업이익 | B12: =$B$8-$B$10-$B$11 -> 2040 | E12: 110
E13: 120
E14: 130
E15: 140

Sheet 데이터표2(예제)
A2: 대출금 | B2: 10000000
A3: 년이자 | B3: 0.07
A4: 기간 | B4: 3
A6: 월상환액 | B6: =PMT(B3/12,B4*12,-B2) -> 308770.9687
C9: 대출기간
C10: 1 | D10: 2 | E10: 3 | F10: 4 | G10: 5
A11: 년이자 | B11: 0.04
B12: 0.045
B13: 0.05
B14: 0.055
B15: 0.06
B16: 0.065
B17: 0.07
B18: 0.075
B19: 0.08
B20: 0.085
B21: 0.09

Sheet 데이터표2(결과)
A2: 대출금 | B2: 10000000
A3: 년이자 | B3: 0.07
A4: 기간 | B4: 3
A6: 월상환액 | B6: =PMT(B3/12,B4*12,-B2) -> 308770.9687
C9: 대출기간
B10: =B6 -> 308770.9687 | C10: 1 | D10: 2 | E10: 3 | F10: 4 | G10: 5
A11: 년이자 | B11: 0.04 | C11: 851499.042 | D11: 434249.2217 | E11: 295239.8501 | F11: 225790.5464 | G11: 184165.2206
B12: 0.045 | C12: 853785.2159 | D12: 436478.1155 | E12: 297469.2448 | F12: 228034.8608 | G12: 186430.1924
B13: 0.05 | C13: 856074.8179 | D13: 438713.8973 | E13: 299708.971 | F13: 230292.9357 | G13: 188712.3364
B14: 0.055 | C14: 858367.8457 | D14: 440956.5616 | E14: 301959.018 | F14: 232564.7523 | G14: 191011.6217
B15: 0.06 | C15: 860664.2971 | D15: 443206.1025 | E15: 304219.3745 | F15: 234850.2905 | G15: 193328.0153
B16: 0.065 | C16: 862964.1696 | D16: 445462.5143 | E16: 306490.0288 | F16: 237149.5293 | G16: 195661.4822
B17: 0.07 | C17: 865267.461 | D17: 447725.791 | E17: 308770.9687 | F17: 239462.4466 | G17: 198011.9854
B18: 0.075 | C18: 867574.1689 | D18: 449995.9265 | E18: 311062.1816 | F18: 241789.0194 | G18: 200379.486
B19: 0.08 | C19: 869884.2909 | D19: 452272.9146 | E19: 313363.6546 | F19: 244129.2234 | G19: 202763.9429
B20: 0.085 | C20: 872197.8246 | D20: 454556.7488 | E20: 315675.3742 | F20: 246483.0336 | G20: 205165.3133
B21: 0.09 | C21: 874514.7677 | D21: 456847.4228 | E21: 317997.3266 | F21: 248850.4237 | G21: 207583.5523

Sheet 목표값1(예제)
B4: 성명 | C4: 학년 | D4: 중간 | E4: 기말 | F4: 평균
B5: 최대식 | C5: 3학년 | D5: 85 | E5: 92 | F5: =AVERAGE(D5:E5) -> 88.5

Sheet 목표값1(결과)
B4: 성명 | C4: 학년 | D4: 중간 | E4: 기말 | F4: 평균
B5: 최대식 | C5: 3학년 | D5: 98 | E5: 92 | F5: =AVERAGE(D5:E5) -> 95

Sheet 목표값2(예제)
B2: 차량 할부금 계산
B3: 차량금액 | C3: 25000000
B4: 계약금 | C4: 8000000
B5: 할부금 | C5: 17000000
B6: 연이율 | C6: 0.105
B7: 상환기간(개월) | C7: 60
B8: 월납부액 | C8: =(C5+C5*C6*C7/12)/C7 -> 432083.3333

Sheet 목표값2(결과)
B2: 차량 할부금 계산
B3: 차량금액 | C3: 25000000
B4: 계약금 | C4: 8000000
B5: 할부금 | C5: 17000000
B6: 연이율 | C6: 0.105
B7: 상환기간(개월) | C7: 67.66169154
B8: 월납부액 | C8: =(C5+C5*C6*C7/12)/C7 -> 400000

Sheet 시나리오1(예제)
A1: 재고부담률 계산시나리오
A2: 항목 | B2: 현재
A3: 생산량 | B3: 3000
A4: 판매량 | B4: 2000
A5: 판매단가 | B5: 3000
A6: 재고단가 | B6: 300
A8: 판매액 | B8: =생산량*판매단가 -> 9000000
A9: 재고량 | B9: =생산량-판매량 -> 1000
A10: 재고비용 | B10: =재고량*재고단가 -> 300000
A11: 재고부담률 | B11: =재고비용/판매액 -> 0.03333333333

Sheet 시나리오1(결과)
B2: 시나리오 요약
D3: 현재 값: | E3: 생산/판매변화1 | F3: 생산/판매변화2 | G3: 생산/판매변화3
B5: 변경 셀:
C6: 생산량 | D6: 3000 | E6: 4000 | F6: 5000 | G6: 6000
C7: 판매량 | D7: 2000 | E7: 3000 | F7: 4000 | G7: 5000
B8: 결과 셀:
C9: 재고부담률 | D9: 0.03333333333 | E9: 0.025 | F9: 0.02 | G9: 0.01666666667
B10: 참고: 현재 값 열은 시나리오 요약 보고서가 작성될 때의
B11: 변경 셀 값을 나타냅니다. 각 시나리오의 변경 셀들은
B12: 회색으로 표시됩니다.

Sheet 시나리오2(예제)
B2: 영업 현황 분석
F3: 제품원가 | G3: 3200
B4: 판매수량 | C4: 3000 | F4: 판매가 | G4: 4600
B5: 매출액 | C5: =G4*C4 -> 13800000
B6: 매출원가 | C6: =G3*C4 -> 9600000
B7: 판매수익 | C7: =C5-C6 -> 4200000
B9: 총비용 | C9: =C10+C11+C12+C13 -> 1242000
B10: 인건비 | C10: =C5*3% -> 414000
B11: 광고비 | C11: =C5*2.5% -> 345000
B12: 일반관리비 | C12: =C5*2% -> 276000
B13: 운송비 | C13: =C5*1.5% -> 207000
B15: 영업이익 | C15: =C7-C9 -> 2958000

Sheet 시나리오2(결과)
B2: 시나리오 요약
D3: 현재 값: | E3: 판매수량 증가 | F3: 판매수량 감소
B5: 변경 셀:
C6: 판매수량 | D6: 3000 | E6: 4000 | F6: 2000
B7: 결과 셀:
C8: 영업이익 | D8: 2958000 | E8: 3944000 | F8: 1972000
B9: 참고: 현재 값 열은 시나리오 요약 보고서가 작성될 때의
B10: 변경 셀 값을 나타냅니다. 각 시나리오의 변경 셀들은
B11: 회색으로 표시됩니다.

Sheet 분석작업_시나리오
A1: 사원별 급여 지급 현황
A3: 사원명 | B3: 직위 | C3: 호봉 | D3: 기본급 | E3: 초과근로수당 | F3: 상여금 | G3: 세금 | H3: 실지급액
A4: 장하다 | B4: 부장 | C4: 8 | D4: 3600000 | E4: 432000 | F4: 1800000 | G4: 525000 | H4: =D4+D4*$B$17+E4-G4 -> 5307000
A5: 백만원 | B5: 대리 | C5: 4 | D5: 2000000 | E5: 240000 | F5: 1000000 | G5: 292000 | H5: 2948000
A6: 장애자 | B6: 과장 | C6: 7 | D6: 2800000 | E6: 336000 | F6: 1400000 | G6: 408000 | H6: 4128000
A7: 정상인 | B7: 대리 | C7: 5 | D7: 2200000 | E7: 264000 | F7: 1100000 | G7: 321000 | H7: 3243000
A8: 전용택 | B8: 부장 | C8: 4 | D8: 3400000 | E8: 408000 | F8: 1700000 | G8: 496000 | H8: 5012000
A9: 조만근 | B9: 대리 | C9: 5 | D9: 2200000 | E9: 264000 | F9: 1100000 | G9: 321000 | H9: 3243000
A10: 허영심 | B10: 과장 | C10: 4 | D10: 2500000 | E10: 300000 | F10: 1250000 | G10: 365000 | H10: 3685000
A11: 신기해 | B11: 사원 | C11: 3 | D11: 2000000 | E11: 240000 | F11: 1000000 | G11: 292000 | H11: 2948000
A12: 양귀비 | B12: 부장 | C12: 2 | D12: 3100000 | E12: 372000 | F12: 1550000 | G12: 452000 | H12: 4570000
A13: 조약돌 | B13: 사원 | C13: 1 | D13: 1800000 | E13: 216000 | F13: 900000 | G13: 262000 | H13: 2654000
A14: 강북남 | B14: 과장 | C14: 4 | D14: 2500000 | E14: 300000 | F14: 1250000 | G14: 365000 | H14: 3685000
A15: 이겨래 | B15: 사원 | C15: 3 | D15: 2000000 | E15: 240000 | F15: 1000000 | G15: 292000 | H15: 2948000
A17: 상여금비율 | B17: 0.5
A20: 6월 전자제품 판매현황
A22: 제품명 | B22: 지역 | C22: 담당자 | D22: 입고일 | E22: 입고량 | F22: 판매단가 | G22: 판매량 | H22: 매출액 | I22: 순이익
A23: 프린터 | B23: 광주 | C23: 강정동 | D23: 2012-05-31 | E23: 50 | F23: 150000 | G23: 30 | H23: =F23*G23 -> 4500000 | I23: =H23*$I$40 -> 1350000
A24: 스캐너 | B24: 경기 | C24: 김국영 | D24: 2012-06-01 | E24: 40 | F24: 250000 | G24: 38 | H24: 9500000 | I24: 2850000
A25: 프린터 | B25: 서울 | C25: 김시운 | D25: 2012-06-01 | E25: 50 | F25: 150000 | G25: 34 | H25: 5100000 | I25: 1530000
A26: 노트북 | B26: 서울 | C26: 남세연 | D26: 2012-06-01 | E26: 60 | F26: 600000 | G26: 57 | H26: 34200000 | I26: 10260000
A27: 스캐너 | B27: 부산 | C27: 문지섭 | D27: 2012-06-01 | E27: 80 | F27: 250000 | G27: 59 | H27: 14750000 | I27: 4425000
A28: 노트북 | B28: 강원 | C28: 박세균 | D28: 2012-05-31 | E28: 60 | F28: 600000 | G28: 55 | H28: 33000000 | I28: 9900000
A29: 노트북 | B29: 광주 | C29: 송미율 | D29: 2012-05-31 | E29: 60 | F29: 600000 | G29: 60 | H29: 36000000 | I29: 10800000
A30: 프린터 | B30: 강원 | C30: 신수라 | D30: 2012-05-31 | E30: 40 | F30: 150000 | G30: 29 | H30: 4350000 | I30: 1305000
A31: 스캐너 | B31: 서울 | C31: 유지원 | D31: 2012-06-01 | E31: 50 | F31: 250000 | G31: 45 | H31: 11250000 | I31: 3375000
A32: 스캐너 | B32: 광주 | C32: 윤서민 | D32: 2012-05-31 | E32: 30 | F32: 250000 | G32: 19 | H32: 4750000 | I32: 1425000
A33: 스캐너 | B33: 강원 | C33: 이민우 | D33: 2012-05-31 | E33: 50 | F33: 250000 | G33: 47 | H33: 11750000 | I33: 3525000
A34: 프린터 | B34: 경기 | C34: 이설화 | D34: 2012-06-01 | E34: 30 | F34: 150000 | G34: 26 | H34: 3900000 | I34: 1170000
A35: 노트북 | B35: 경기 | C35: 조강민 | D35: 2012-06-01 | E35: 80 | F35: 600000 | G35: 69 | H35: 41400000 | I35: 12420000
A36: 프린터 | B36: 부산 | C36: 한기석 | D36: 2012-06-01 | E36: 50 | F36: 150000 | G36: 40 | H36: 6000000 | I36: 1800000
A37: 노트북 | B37: 부산 | C37: 허남용 | D37: 2012-06-01 | E37: 60 | F37: 600000 | G37: 52 | H37: 31200000 | I37: 9360000
A38: 합계 | H38: =SUM(H23:H37) -> 251650000 | I38: 75495000
H40: 이익률 | I40: 0.3

Sheet 매크로1(예제)
A5: 관리코드 | B5: 타이틀명 | C5: 입고일자 | D5: 가격 | E5: 장르 | F5: 시간 | G5: 제작년도 | H5: 대여료 | I5: 대여기간
A6: DVD-01 | B6: 7년만의 외출 | C6: 2001-05-26 | D6: 25000 | E6: 코메디 | F6: 105 | G6: 1955 | H6: 2000 | I6: 1
A7: DVD-02 | B7: 3000마일 | C7: 2001-05-29 | D7: 25300 | E7: 액션 | F7: 125 | G7: 2001 | H7: 1000 | I7: 2
A8: DVD-03 | B8: 대탈주SE | C8: 2001-06-01 | D8: 29500 | E8: 액션 | F8: 175 | G8: 1963 | H8: 1000 | I8: 1
A9: DVD-04 | B9: 빨강머리앤 | C9: 2001-06-04 | D9: 23000 | E9: 애니메이션 | F9: 128 | G9: 1973 | H9: 1000 | I9: 2
A10: DVD-05 | B10: 화산고 | C10: 2001-06-07 | D10: 25000 | E10: 액션 | F10: 121 | G10: 2002 | H10: 1500 | I10: 1
A11: DVD-06 | B11: 프렌치키스 | C11: 2001-06-10 | D11: 25000 | E11: 코메디 | F11: 111 | G11: 1995 | H11: 500 | I11: 2
A12: DVD-07 | B12: 일단 뛰어 | C12: 2001-07-05 | D12: 25300 | E12: 코메디 | F12: 110 | G12: 2002 | H12: 1500 | I12: 1
A13: DVD-08 | B13: 타이탄 족의 멸망 | C13: 2001-07-30 | D13: 16500 | E13: 모험 | F13: 118 | G13: 1981 | H13: 500 | I13: 2
A14: DVD-09 | B14: 아마겟돈 | C14: 2001-08-24 | D14: 29000 | E14: 액션 | F14: 145 | G14: 1998 | H14: 500 | I14: 2
A15: DVD-10 | B15: 아비정전 | C15: 2001-09-18 | D15: 22000 | E15: 드라마 | F15: 94 | G15: 1991 | H15: 500 | I15: 2
A16: DVD-11 | B16: 철목련 | C16: 2001-10-13 | D16: 25000 | E16: 드라마 | F16: 117 | G16: 1989 | H16: 500 | I16: 2
A17: DVD-12 | B17: 자이언트 로보 | C17: 2001-11-07 | D17: 25000 | E17: 애니메이션 | F17: 60 | G17: 1991 | H17: 500 | I17: 2
A18: DVD-13 | B18: 피터팬 | C18: 2001-12-02 | D18: 29000 | E18: 애니메이션 | F18: 76 | G18: 1953 | H18: 2000 | I18: 1
A19: DVD-14 | B19: 톰썸의 비밀모험 | C19: 2001-12-27 | D19: 25000 | E19: 모험 | F19: 58 | G19: 1993 | H19: 500 | I19: 2
A20: DVD-15 | B20: 반지의 제왕 | C20: 2002-01-21 | D20: 29000 | E20: 모험 | F20: 178 | G20: 2001 | H20: 1000 | I20: 2
A21: DVD-16 | B21: 피도 눈물도 없이 | C21: 2002-02-15 | D21: 25000 | E21: 액션 | F21: 113 | G21: 2002 | H21: 1500 | I21: 1
A22: DVD-17 | B22: 뿌리 | C22: 2002-03-03 | D22: 37000 | E22: 드라마 | F22: 578 | G22: 1977 | H22: 3000 | I22: 2
A23: DVD-18 | B23: 마리이야기 | C23: 2002-03-19 | D23: 25300 | E23: 애니메이션 | F23: 80 | G23: 2002 | H23: 500 | I23: 2
A24: DVD-19 | B24: 스몰빌 | C24: 2002-04-04 | D24: 16500 | E24: 액션 | F24: 91 | G24: 2001 | H24: 1000 | I24: 2
A25: DVD-20 | B25: 양철북 | C25: 2002-04-20 | D25: 19800 | E25: 드라마 | F25: 142 | G25: 1979 | H25: 1000 | I25: 1
A26: DVD-21 | B26: 하드 캐쉬 | C26: 2002-05-06 | D26: 22000 | E26: 액션 | F26: 99 | G26: 2002 | H26: 1500 | I26: 1
A27: DVD-22 | B27: 친구 | C27: 2002-05-22 | D27: 25300 | E27: 드라마 | F27: 116 | G27: 2001 | H27: 1500 | I27: 1
A28: DVD-23 | B28: 진주만 | C28: 2002-06-07 | D28: 49000 | E28: 모험 | F28: 184 | G28: 2001 | H28: 3000 | I28: 2
A29: DVD-24 | B29: 내겐 너무 가벼운 그녀 | C29: 2002-06-23 | D29: 27500 | E29: 코메디 | F29: 113 | G29: 2001 | H29: 1500 | I29: 1
A30: DVD-25 | B30: 서부전선 이상없다 | C30: 2002-07-09 | D30: 19980 | E30: 액션 | F30: 128 | G30: 1979 | H30: 1000 | I30: 1
A31: DVD-26 | B31: 슬레이어즈 NEXT | C31: 2002-07-25 | D31: 25000 | E31: 애니메이션 | F31: 25 | G31: 1996 | H31: 1000 | I31: 2
A32: DVD-27 | B32: 달마야 놀자 | C32: 2002-08-10 | D32: 25300 | E32: 코메디 | F32: 95 | G32: 2001 | H32: 1500 | I32: 1
A33: DVD-28 | B33: 스파이 게임 | C33: 2002-08-26 | D33: 25300 | E33: 액션 | F33: 127 | G33: 2001 | H33: 1000 | I33: 2
A34: DVD-29 | B34: 재미있는 영화 | C34: 2001-05-25 | D34: 25000 | E34: 코메디 | F34: 126 | G34: 2002 | H34: 2000 | I34: 2
A35: DVD-30 | B35: 콘에어 | C35: 2001-06-10 | D35: 24000 | E35: 모험 | F35: 115 | G35: 1997 | H35: 1000 | I35: 1

Sheet 매크로1(결과)
A5: 관리코드 | B5: 타이틀명 | C5: 입고일자 | D5: 가격 | E5: 장르 | F5: 시간 | G5: 제작년도 | H5: 대여료 | I5: 대여기간
A6: DVD-01 | B6: 7년만의 외출 | C6: 2001-05-26 | D6: 25000 | E6: 코메디 | F6: 105 | G6: 1955 | H6: 2000 | I6: 1
A7: DVD-02 | B7: 3000마일 | C7: 2001-05-29 | D7: 25300 | E7: 액션 | F7: 125 | G7: 2001 | H7: 1000 | I7: 2
A8: DVD-03 | B8: 대탈주SE | C8: 2001-06-01 | D8: 29500 | E8: 액션 | F8: 175 | G8: 1963 | H8: 1000 | I8: 1
A9: DVD-04 | B9: 빨강머리앤 | C9: 2001-06-04 | D9: 23000 | E9: 애니메이션 | F9: 128 | G9: 1973 | H9: 1000 | I9: 2
A10: DVD-05 | B10: 화산고 | C10: 2001-06-07 | D10: 25000 | E10: 액션 | F10: 121 | G10: 2002 | H10: 1500 | I10: 1
A11: DVD-06 | B11: 프렌치키스 | C11: 2001-06-10 | D11: 25000 | E11: 코메디 | F11: 111 | G11: 1995 | H11: 500 | I11: 2
A12: DVD-07 | B12: 일단 뛰어 | C12: 2001-07-05 | D12: 25300 | E12: 코메디 | F12: 110 | G12: 2002 | H12: 1500 | I12: 1
A13: DVD-08 | B13: 타이탄 족의 멸망 | C13: 2001-07-30 | D13: 16500 | E13: 모험 | F13: 118 | G13: 1981 | H13: 500 | I13: 2
A14: DVD-09 | B14: 아마겟돈 | C14: 2001-08-24 | D14: 29000 | E14: 액션 | F14: 145 | G14: 1998 | H14: 500 | I14: 2
A15: DVD-10 | B15: 아비정전 | C15: 2001-09-18 | D15: 22000 | E15: 드라마 | F15: 94 | G15: 1991 | H15: 500 | I15: 2
A16: DVD-11 | B16: 철목련 | C16: 2001-10-13 | D16: 25000 | E16: 드라마 | F16: 117 | G16: 1989 | H16: 500 | I16: 2
A17: DVD-12 | B17: 자이언트 로보 | C17: 2001-11-07 | D17: 25000 | E17: 애니메이션 | F17: 60 | G17: 1991 | H17: 500 | I17: 2
A18: DVD-13 | B18: 피터팬 | C18: 2001-12-02 | D18: 29000 | E18: 애니메이션 | F18: 76 | G18: 1953 | H18: 2000 | I18: 1
A19: DVD-14 | B19: 톰썸의 비밀모험 | C19: 2001-12-27 | D19: 25000 | E19: 모험 | F19: 58 | G19: 1993 | H19: 500 | I19: 2
A20: DVD-15 | B20: 반지의 제왕 | C20: 2002-01-21 | D20: 29000 | E20: 모험 | F20: 178 | G20: 2001 | H20: 1000 | I20: 2
A21: DVD-16 | B21: 피도 눈물도 없이 | C21: 2002-02-15 | D21: 25000 | E21: 액션 | F21: 113 | G21: 2002 | H21: 1500 | I21: 1
A22: DVD-17 | B22: 뿌리 | C22: 2002-03-03 | D22: 37000 | E22: 드라마 | F22: 578 | G22: 1977 | H22: 3000 | I22: 2
A23: DVD-18 | B23: 마리이야기 | C23: 2002-03-19 | D23: 25300 | E23: 애니메이션 | F23: 80 | G23: 2002 | H23: 500 | I23: 2
A24: DVD-19 | B24: 스몰빌 | C24: 2002-04-04 | D24: 16500 | E24: 액션 | F24: 91 | G24: 2001 | H24: 1000 | I24: 2
A25: DVD-20 | B25: 양철북 | C25: 2002-04-20 | D25: 19800 | E25: 드라마 | F25: 142 | G25: 1979 | H25: 1000 | I25: 1
A26: DVD-21 | B26: 하드 캐쉬 | C26: 2002-05-06 | D26: 22000 | E26: 액션 | F26: 99 | G26: 2002 | H26: 1500 | I26: 1
A27: DVD-22 | B27: 친구 | C27: 2002-05-22 | D27: 25300 | E27: 드라마 | F27: 116 | G27: 2001 | H27: 1500 | I27: 1
A28: DVD-23 | B28: 진주만 | C28: 2002-06-07 | D28: 49000 | E28: 모험 | F28: 184 | G28: 2001 | H28: 3000 | I28: 2
A29: DVD-24 | B29: 내겐 너무 가벼운 그녀 | C29: 2002-06-23 | D29: 27500 | E29: 코메디 | F29: 113 | G29: 2001 | H29: 1500 | I29: 1
A30: DVD-25 | B30: 서부전선 이상없다 | C30: 2002-07-09 | D30: 19980 | E30: 액션 | F30: 128 | G30: 1979 | H30: 1000 | I30: 1
A31: DVD-26 | B31: 슬레이어즈 NEXT | C31: 2002-07-25 | D31: 25000 | E31: 애니메이션 | F31: 25 | G31: 1996 | H31: 1000 | I31: 2
A32: DVD-27 | B32: 달마야 놀자 | C32: 2002-08-10 | D32: 25300 | E32: 코메디 | F32: 95 | G32: 2001 | H32: 1500 | I32: 1
A33: DVD-28 | B33: 스파이 게임 | C33: 2002-08-26 | D33: 25300 | E33: 액션 | F33: 127 | G33: 2001 | H33: 1000 | I33: 2
A34: DVD-29 | B34: 재미있는 영화 | C34: 2001-05-25 | D34: 25000 | E34: 코메디 | F34: 126 | G34: 2002 | H34: 2000 | I34: 2
A35: DVD-30 | B35: 콘에어 | C35: 2001-06-10 | D35: 24000 | E35: 모험 | F35: 115 | G35: 1997 | H35: 1000 | I35: 1

Sheet 매크로2(예제)
B5: 지점명 | C5: 담당자 | D5: 매출금액 | E5: 받은금액 | F5: 미수금
B6: 강동 | C6: 채진욱 | D6: 33000 | E6: 32010 | F6: 990
B7: 강서 | C7: 박형주 | D7: 89000 | E7: 66750 | F7: 22250
B8: 강동 | C8: 채진욱 | D8: 39780 | E8: 31824 | F8: 7956
B9: 강서 | C9: 안병찬 | D9: 94000 | E9: 58280 | F9: 35720
B10: 강동 | C10: 채진욱 | D10: 21000 | E10: 18480 | F10: 2520
B11: 강서 | C11: 안병찬 | D11: 50000 | E11: 37500 | F11: 12500
B12: 강동 | C12: 채진욱 | D12: 19800 | E12: 9504 | F12: 10296
B13: 강서 | C13: 안병찬 | D13: 64000 | E13: 42240 | F13: 21760
B14: 강서 | C14: 채진욱 | D14: 19000 | E14: 13490 | F14: 5510
B15: 강서 | C15: 박형주 | D15: 110000 | E15: 74800 | F15: 35200
B16: 강동 | C16: 채진욱 | D16: 18000 | E16: 9900 | F16: 8100
B17: 강서 | C17: 안병찬 | D17: 75600 | E17: 45360 | F17: 30240
B18: 강동 | C18: 채진욱 | D18: 28000 | E18: 25760 | F18: 2240
B19: 강동 | C19: 채진욱 | D19: 26800 | E19: 19028 | F19: 7772
B20: 강동 | C20: 이은주 | D20: 79800 | E20: 57456 | F20: 22344
B21: 강동 | C21: 이은주 | D21: 84000 | E21: 79800 | F21: 4200
B22: 강서 | C22: 안병찬 | D22: 60000 | E22: 58200 | F22: 1800
B23: 강서 | C23: 박형주 | D23: 120000 | E23: 102000 | F23: 18000

Sheet 매크로2(결과)
B5: 지점명 | C5: 담당자 | D5: 매출금액 | E5: 받은금액 | F5: 미수금
B6: 강동 | C6: 채진욱 | D6: 33000 | E6: 32010 | F6: 990
B7: 강서 | C7: 박형주 | D7: 89000 | E7: 66750 | F7: 22250
B8: 강동 | C8: 채진욱 | D8: 39780 | E8: 31824 | F8: 7956
B9: 강서 | C9: 안병찬 | D9: 94000 | E9: 58280 | F9: 35720
B10: 강동 | C10: 채진욱 | D10: 21000 | E10: 18480 | F10: 2520
B11: 강서 | C11: 안병찬 | D11: 50000 | E11: 37500 | F11: 12500
B12: 강동 | C12: 채진욱 | D12: 19800 | E12: 9504 | F12: 10296
B13: 강서 | C13: 안병찬 | D13: 64000 | E13: 42240 | F13: 21760
B14: 강서 | C14: 채진욱 | D14: 19000 | E14: 13490 | F14: 5510
B15: 강서 | C15: 박형주 | D15: 110000 | E15: 74800 | F15: 35200
B16: 강동 | C16: 채진욱 | D16: 18000 | E16: 9900 | F16: 8100
B17: 강서 | C17: 안병찬 | D17: 75600 | E17: 45360 | F17: 30240
B18: 강동 | C18: 채진욱 | D18: 28000 | E18: 25760 | F18: 2240
B19: 강동 | C19: 채진욱 | D19: 26800 | E19: 19028 | F19: 7772
B20: 강동 | C20: 이은주 | D20: 79800 | E20: 57456 | F20: 22344
B21: 강동 | C21: 이은주 | D21: 84000 | E21: 79800 | F21: 4200
B22: 강서 | C22: 안병찬 | D22: 60000 | E22: 58200 | F22: 1800
B23: 강서 | C23: 박형주 | D23: 120000 | E23: 102000 | F23: 18000

Sheet 차트1(예제)
A1: 사원입사현황
A3: 부서 | B3: 성명 | C3: 성별 | D3: 직위 | E3: 입사일자 | F3: 기본급 | G3: 수당 | H3: 세금 | I3: 본봉
A4: 자재부 | B4: 은현희 | C4: 여 | D4: 사원 | E4: 1999-02-27 | F4: 750000 | G4: 107000 | H4: 85700 | I4: 771300
A5: 자재부 | B5: 박성수 | C5: 남 | D5: 과장 | E5: 1997-10-03 | F5: 900000 | G5: 132000 | H5: 103200 | I5: 928800
A6: 자재부 | B6: 문경태 | C6: 남 | D6: 과장 | E6: 1996-01-07 | F6: 900000 | G6: 192000 | H6: 109200 | I6: 982800
A7: 자재부 | B7: 고춘자 | C7: 여 | D7: 대리 | E7: 1992-07-03 | F7: 850000 | G7: 118000 | H7: 96800 | I7: 871200
A8: 자재부 | B8: 오창곤 | C8: 남 | D8: 대리 | E8: 1992-07-02 | F8: 850000 | G8: 186000 | H8: 103600 | I8: 932400
A9: 자재부 | B9: 정수정 | C9: 여 | D9: 대리 | E9: 1996-02-24 | F9: 850000 | G9: 164000 | H9: 101400 | I9: 912600
A10: 자재부 | B10: 채상유 | C10: 남 | D10: 대리 | E10: 1994-10-17 | F10: 850000 | G10: 164000 | H10: 101400 | I10: 912600
A11: 자재부 | B11: 정진영 | C11: 여 | D11: 사원 | E11: 1999-01-14 | F11: 750000 | G11: 128000 | H11: 87800 | I11: 790200
A12: 개발부 | B12: 홍길동 | C12: 남 | D12: 대리 | E12: 1993-12-22 | F12: 850000 | G12: 153000 | H12: 100300 | I12: 902700
A13: 개발부 | B13: 복분자 | C13: 여 | D13: 사원 | E13: 1994-12-16 | F13: 750000 | G13: 124000 | H13: 87400 | I13: 786600
A14: 개발부 | B14: 김수철 | C14: 남 | D14: 과장 | E14: 1993-09-14 | F14: 900000 | G14: 242000 | H14: 114200 | I14: 1027800

Sheet 차트1(결과)
A1: 사원입사현황
A3: 부서 | B3: 성명 | C3: 성별 | D3: 직위 | E3: 입사일자 | F3: 기본급 | G3: 수당 | H3: 세금 | I3: 본봉
A4: 자재부 | B4: 은현희 | C4: 여 | D4: 사원 | E4: 1999-02-27 | F4: 750000 | G4: 107000 | H4: 85700 | I4: 771300
A5: 자재부 | B5: 박성수 | C5: 남 | D5: 과장 | E5: 1997-10-03 | F5: 900000 | G5: 132000 | H5: 103200 | I5: 928800
A6: 자재부 | B6: 문경태 | C6: 남 | D6: 과장 | E6: 1996-01-07 | F6: 900000 | G6: 192000 | H6: 109200 | I6: 982800
A7: 자재부 | B7: 고춘자 | C7: 여 | D7: 대리 | E7: 1992-07-03 | F7: 850000 | G7: 118000 | H7: 96800 | I7: 871200
A8: 자재부 | B8: 오창곤 | C8: 남 | D8: 대리 | E8: 1992-07-02 | F8: 850000 | G8: 186000 | H8: 103600 | I8: 932400
A9: 자재부 | B9: 정수정 | C9: 여 | D9: 대리 | E9: 1996-02-24 | F9: 850000 | G9: 164000 | H9: 101400 | I9: 912600
A10: 자재부 | B10: 채상유 | C10: 남 | D10: 대리 | E10: 1994-10-17 | F10: 850000 | G10: 164000 | H10: 101400 | I10: 912600
A11: 자재부 | B11: 정진영 | C11: 여 | D11: 사원 | E11: 1999-01-14 | F11: 750000 | G11: 128000 | H11: 87800 | I11: 790200
A12: 개발부 | B12: 홍길동 | C12: 남 | D12: 대리 | E12: 1993-12-22 | F12: 850000 | G12: 153000 | H12: 100300 | I12: 902700
A13: 개발부 | B13: 복분자 | C13: 여 | D13: 사원 | E13: 1994-12-16 | F13: 750000 | G13: 124000 | H13: 87400 | I13: 786600
A14: 개발부 | B14: 김수철 | C14: 남 | D14: 과장 | E14: 1993-09-14 | F14: 900000 | G14: 242000 | H14: 114200 | I14: 1027800

Sheet 차트2(예제)
A2: 부서별 성적 현황
A4: 부서 | B4: 1차교육 | C4: 2차교육 | D4: 3차교육 | E4: 평균
A5: 관리부 | B5: 47.625 | C5: 48.125 | D5: 64 | E5: =AVERAGE(B5:D5) -> 53.25
A6: 기획부 | B6: 44.9 | C6: 54.9 | D6: 62.9 | E6: =AVERAGE(B6:D6) -> 54.23333333
A7: 총무부 | B7: 56.28571429 | C7: 70.57142857 | D7: 46.28571429 | E7: =AVERAGE(B7:D7) -> 57.71428571
A8: 영업부 | B8: 62 | C8: 59.4 | D8: 42 | E8: =AVERAGE(B8:D8) -> 54.46666667

Sheet 차트2(결과)
A2: 부서별 성적 현황
A4: 부서 | B4: 1차교육 | C4: 2차교육 | D4: 3차교육 | E4: 평균
A5: 관리부 | B5: 47.625 | C5: 48.125 | D5: 64 | E5: =AVERAGE(B5:D5) -> 53.25
A6: 기획부 | B6: 44.9 | C6: 54.9 | D6: 62.9 | E6: =AVERAGE(B6:D6) -> 54.23333333
A7: 총무부 | B7: 56.28571429 | C7: 70.57142857 | D7: 46.28571429 | E7: =AVERAGE(B7:D7) -> 57.71428571
A8: 영업부 | B8: 62 | C8: 59.4 | D8: 42 | E8: =AVERAGE(B8:D8) -> 54.46666667

Sheet 차트3(예제)
D1: 영업 현황
B2: 이름 | C2: 직책 | D2: 부서 | E2: 목표액 | F2: 달성액
B3: 김사원 | C3: 사원 | D3: 영업2부 | E3: 35200 | F3: 35000
B4: 김흥부 | C4: 사원 | D4: 영업2부 | E4: 12500 | F4: 21000
B5: 노지심 | C5: 부장 | D5: 영업1부 | E5: 62500 | F5: 65000
B6: 송치윤 | C6: 부장 | D6: 영업4부 | E6: 62533 | F6: 61890
B7: 이관우 | C7: 사원 | D7: 영업3부 | E7: 32560 | F7: 33000
B8: 이봉주 | C8: 부장 | D8: 영업2부 | E8: 64250 | F8: 56000
B9: 이수진 | C9: 사원 | D9: 영업4부 | E9: 45850 | F9: 43650
B10: 이양양 | C10: 사원 | D10: 영업1부 | E10: 56800 | F10: 60000
B11: 이인상 | C11: 부장 | D11: 영업부 | E11: 54000 | F11: 50000
B12: 이충렬 | C12: 대리 | D12: 영업4부 | E12: 45110 | F12: 45390
B13: 장유비 | C13: 부장 | D13: 영업3부 | E13: 58000 | F13: 60000
B14: 제갈량 | C14: 대리 | D14: 영업1부 | E14: 46200 | F14: 45000
B15: 조자룡 | C15: 사원 | D15: 영업3부 | E15: 32560 | F15: 32660

Sheet 차트3(결과)
D1: 영업 현황
B2: 이름 | C2: 직책 | D2: 부서 | E2: 목표액 | F2: 달성액
B3: 김사원 | C3: 사원 | D3: 영업2부 | E3: 35200 | F3: 35000
B4: 김흥부 | C4: 사원 | D4: 영업2부 | E4: 12500 | F4: 21000
B5: 노지심 | C5: 부장 | D5: 영업1부 | E5: 62500 | F5: 65000
B6: 송치윤 | C6: 부장 | D6: 영업4부 | E6: 62533 | F6: 61890
B7: 이관우 | C7: 사원 | D7: 영업3부 | E7: 32560 | F7: 33000
B8: 이봉주 | C8: 부장 | D8: 영업2부 | E8: 64250 | F8: 56000
B9: 이수진 | C9: 사원 | D9: 영업4부 | E9: 45850 | F9: 43650
B10: 이양양 | C10: 사원 | D10: 영업1부 | E10: 56800 | F10: 60000
B11: 이인상 | C11: 부장 | D11: 영업부 | E11: 54000 | F11: 50000
B12: 이충렬 | C12: 대리 | D12: 영업4부 | E12: 45110 | F12: 45390
B13: 장유비 | C13: 부장 | D13: 영업3부 | E13: 58000 | F13: 60000
B14: 제갈량 | C14: 대리 | D14: 영업1부 | E14: 46200 | F14: 45000
B15: 조자룡 | C15: 사원 | D15: 영업3부 | E15: 32560 | F15: 32660

Sheet 차트
A3: 어린이완구 매출현황
A4: 완구명 | B4: 제조사 | C4: 대상연령 | D4: 판매수량 | E4: 판매단가 | F4: 총판매액
A5: 전동차 | B5: 토이랜드 | C5: 36개월~8세 | D5: 162 | E5: 180000 | F5: =D5*E5 -> 29160000
A6: 블럭세트 | B6: 키즈토이 | C6: 12개월~4세 | D6: 295 | E6: 75000 | F6: 22125000
A7: 실내그네 | B7: 뽕뽕키즈 | C7: 36개월~6세 | D7: 178 | E7: 60000 | F7: 10680000
A8: 교통놀이 | B8: 왕자공주 | C8: 24개월~5세 | D8: 199 | E8: 68000 | F8: 13532000
A9: 킥보드 | B9: 세계완구 | C9: 5세~8세 | D9: 184 | E9: 42000 | F9: 7728000
A10: 자전거 | B10: 완구랜드 | C10: 24개월~4세 | D10: 169 | E10: 115000 | F10: 19435000

Sheet 사원현황(예제)
B1: 신입사원현황
B3: 부서명 | C3: 사원명 | D3: 입사일자 | H3: 총무부
H4: 인사부
H5: 영업부
H6: 전산부
H7: 관리부

Sheet 수강등록(예제)
A1: [표1]
A2: 접수자 | B2: 수강개월 | C2: 접수코드 | D2: 과목 | E2: 과목강사 | F2: 수강료
H5: [참조표]
H6: 접수코드 | I6: 과목 | J6: 과목강사 | K6: 월수강료
H7: A100 | I7: 국어 | J7: 신동길 | K7: 100000
H8: A200 | I8: 고전 | J8: 김솔유 | K8: 110000
H9: B100 | I9: 국사 | J9: 고두심 | K9: 100000
H10: B200 | I10: 현대사 | J10: 노현정 | K10: 100000
H11: C100 | I11: 영어 | J11: 조예슬 | K11: 120000
H12: C200 | I12: 문법 | J12: 박종훈 | K12: 120000
H13: D100 | I13: 수학 | J13: 정솔희 | K13: 110000
H14: D200 | I14: 과탐 | J14: 김태희 | K14: 100000
H15: E300 | I15: 사탐 | J15: 유인촌 | K15: 100000

Sheet 조회(예제)
A2: 보험종류 | B2: 월납부액 | C2: 납부총액 | D2: 이자총액
A3: 건강저축보험 | B3: 785720 | C3: 28285904 | D3: 1714096
A4: 주택저축보험 | B4: 779908 | C4: 28076678 | D4: 1923322
A5: 목돈마련보험 | B5: 774127 | C5: 27868569 | D5: 2131431
A6: 연금저축보험 | B6: 768378 | C6: 27661574 | D6: 2338426
A7: 무지개저축보험 | B7: 762659 | C7: 27455692 | D7: 2544308
